{"text_format":"1","workbook":"xlsx","n_sheets":6,"sheets":["Cover Sheet","PLEASE READ INSTRUCTIONS","Day Rate Minimums & Caps","UK Rate Card - evaluated","Offshore Rate Card","EVALUATED"],"not_rendered":{"charts":0,"images":0,"macros":0,"external_links":0,"defined_names":0,"comments":0,"pivot_tables":0},"unopened":[],"bounds":{"document_bytes":16777216,"sheet_cells":100000,"rows_first":2000,"rows_last":500,"rows_between":2000,"halvings":0,"cell_chars":16384,"cell_head_chars":4096},"cells_cut":0,"cells_raw":0,"read":"whole","date_system":"1900"}

{"sheet":"Cover Sheet","index":0,"n_rows":3,"n_cols":2,"rows_kept":3,"cut":false,"hidden":false,"merged":[]}
[null,"Attachment 3 - Pricing Matrix v1.0                                                                                                                                                                                                                                                                                 Digital Capability for Health 2                                                                                                                                                                                                                                                                       Contract Reference: RM6345"]
[]
[null,"MANDATORY: Please enter Bidders NAME in the text box below"]

{"sheet":"PLEASE READ INSTRUCTIONS","index":1,"n_rows":26,"n_cols":6,"rows_kept":26,"cut":false,"hidden":false,"merged":[[0,0,0,9],[1,0,1,9],[2,0,2,9],[4,0,4,9],[5,0,5,9],[6,0,6,9],[8,0,8,9],[9,0,9,9],[10,0,10,9],[11,0,11,9],[12,0,12,9],[13,0,13,9],[15,0,15,9],[16,0,16,9],[17,0,17,9],[18,0,18,11],[19,0,19,11],[20,0,20,11],[21,0,21,9],[22,0,22,11],[23,0,23,9],[35,0,35,11],[36,0,36,11],[37,0,37,11],[38,0,38,11],[25,0,25,6],[39,0,39,11],[40,0,40,11],[24,0,24,11],[26,0,26,9],[27,0,27,9],[30,0,30,9],[32,0,32,11],[33,0,33,11],[34,0,34,11]]}
["Contract Reference: RM6345 Attachment 3 - Pricing Matrix                                                                                                                                                                                                                                                                "]
["Before completing the Pricing Matrix, Bidders are requested to read 'Attachment 2 - How to Bid'. This document contains instructions on how to complete this pricing schedule as well as how this will be evaluated."]
["Note if a tender is deemed non compliant, the tender may be excluded and you may be excluded from further participation in the Procurement. "]
["Mandatory\nGreen Cells - Table 2 UK rate card\nenter your prices\n","No input required\nRed cells - Table 3 Validation will auto highlight a non-compliant price entered in Table 2","No input required\nYellow Cells - Tables 3 and 7 will validates and indicate if you have not entered a price in the mandatory and optional cells","No input required\nGrey Cells are for CCS use only ","Optional \nBlue Cells - Table 6 Offshore Rate Card","No input required - Table 9 - will be used for evaluation"]
["Bidders are required to complete the cells within the following tabs: (I) 'UK Rate Card' table 2 (highlighted green) and OPTIONAL (iii) 'Offshore Rate Card' table 6 (highlighted blue). \nPlease note the following: \n•\tday rate minimums and caps must be adhered to when completing the pricing schedule. \n•\toffshore rates must not exceed the rate supplied at national level (Table 2 Colum D)"]
["TAB - Day Rate Minimums & Caps"]
["Do not amend this TAB"]
[]
["UK Rate Card - to be evaluated"]
["Failure to enter a price for all of the roles that we have asked you for may result in your bid being deemed non-compliant. \nBidders should note that the validation of price inputs table (UK Rate Card Table 3) will automatically  highlight if you have  entered a non compliant price for the following reasons:                                                                                    \n1 - Price entered is above the CAP in Table 1 \"Day Rate Minimums & Caps\" \n2 - Price entered for a senior role is less than a junior role for example the price entered for an Associate Business Architect should be entered more than or equal to the cost of a Trainee Business Architect\n3 - Price entered is Below Minimum benchmark as per Table 1 in \"Day Rate Minimums & Caps\" this includes zero (0.00) pricing  \n4 - You have not entered a price into Table 2 corresponding cell                                                                                                                                                                                                                                                                                                     "]
["If you do not achieve a 'Pass' in each of the cells of the validation table then your response may be deemed non compliant. The validation table can be found in Table 3 Columns H to K in the UK Rate Card."]
["Offshore Rate Card - table 8"]
["Bidders may, if they have the capability, provide offshore rates. This will not be evaluated. If applicable, bidders must enter the geographic location to which the offshore rates apply in cell P4, Q4 and R4 of the Offshore Rate Card tab. Bidders should note that the validation of price inputs table will automatically highlight if you have submitted a failed price base on the following:                                                                                                                                                                                                                                                                                         "]
["1 - Price greater than National Day Rate in UK Rate Card"]
["Evaluation Table"]
["This sheet is not to be amended"]
["NOTE: "]
["Your submitted prices will be the maximum payable under this Framework for the first 24 Months following the Framework Start Date."]
["Prices must be sustainable and inclusive of all profit, overheads, costs and expenses relating to the provision of the Services."]
["You should account for the Management Charge of 1% which shall be paid by you to us as the Authority."]
["All prices should be set out in British Pounds Sterling to two decimal places as applicable and exclusive of VAT based on a 7.5 hour working day (excluding a break)\n"]
["Do not modify cells, add rows and/or columns within the tabs."]
["Negative bids will not be allowed and we will investigate where we consider your bid to be abnormally low, including where you have submitted a zero bid. "]
["The minimum rate is guided by the national living wage."]
["Bidders should read and review the roles specified in the rate card which are aligned to the Government Digital and Data Profession Capability and ensure the rates offered against the role align to the detailed descriptions, levels and individual skills defined on the Government profession site:"]
["Read more about the Government Digital and Data Profession Capability Framework"]

{"sheet":"Day Rate Minimums & Caps","index":2,"n_rows":5,"n_cols":4,"rows_kept":5,"cut":false,"hidden":false,"merged":[]}
[]
[null,"Table 1 - Day Rate Minimums & Caps - DO NOT AMEND"]
[null,null,"Day Rate Cap","Day Rate Minimum"]
[null,"National Rate Card",1100,100]
[null,"London Rate Card",1300,100]

{"sheet":"UK Rate Card - evaluated","index":3,"n_rows":245,"n_cols":20,"rows_kept":245,"cut":false,"hidden":false,"merged":[[169,16,169,17],[169,7,169,8],[170,7,178,7],[180,12,185,12],[187,12,195,12],[197,12,197,13],[180,7,185,7],[187,7,195,7],[197,7,197,8],[180,16,185,16],[187,16,195,16],[197,16,197,17],[108,16,112,16],[114,12,115,12],[114,16,115,16],[117,12,120,12],[117,16,120,16],[122,16,125,16],[108,12,112,12],[122,12,125,12],[127,16,127,17],[48,16,49,16],[62,16,66,16],[31,16,35,16],[37,16,37,17],[38,16,41,16],[43,16,46,16],[51,12,53,12],[55,12,60,12],[62,12,66,12],[51,16,53,16],[43,12,46,12],[48,12,49,12],[55,16,60,16],[31,12,35,12],[37,12,37,13],[38,12,41,12],[69,7,73,7],[75,7,77,7],[79,7,81,7],[83,7,86,7],[69,12,73,12],[128,12,133,12],[135,12,138,12],[140,12,143,12],[94,7,97,7],[122,7,125,7],[127,12,127,13],[99,12,100,12],[102,12,106,12],[88,12,92,12],[94,12,97,12],[75,12,77,12],[79,12,81,12],[83,12,86,12],[88,7,92,7],[99,7,100,7],[102,7,106,7],[114,7,115,7],[117,7,120,7],[127,7,127,8],[68,16,68,17],[69,16,73,16],[75,16,77,16],[79,16,81,16],[83,16,86,16],[88,16,92,16],[94,16,97,16],[99,16,100,16],[102,16,106,16],[68,12,68,13],[37,7,37,8],[31,7,35,7],[38,7,41,7],[43,7,46,7],[48,7,49,7],[51,7,53,7],[55,7,60,7],[68,7,68,8],[62,7,66,7],[88,1,92,1],[94,1,97,1],[75,1,77,1],[8,1,10,1],[12,1,15,1],[17,1,19,1],[21,1,23,1],[25,1,29,1],[31,1,35,1],[37,1,37,2],[38,1,41,1],[43,1,46,1],[69,1,73,1],[48,1,49,1],[51,1,53,1],[55,1,60,1],[62,1,66,1],[68,1,68,2],[79,1,81,1],[83,1,86,1],[99,1,100,1],[102,1,106,1],[108,1,112,1],[114,1,115,1],[117,1,120,1],[122,1,125,1],[127,1,127,2],[128,1,133,1],[135,1,138,1],[140,1,143,1],[145,1,149,1],[155,1,155,2],[156,1,159,1],[161,1,164,1],[166,1,167,1],[169,1,169,2],[170,1,178,1],[226,1,231,1],[233,1,234,1],[236,1,241,1],[180,1,185,1],[187,1,195,1],[197,1,197,2],[198,1,201,1],[203,1,208,1],[212,1,217,1],[219,1,224,1],[0,1,0,10],[2,1,2,2],[2,7,2,8],[2,12,2,13],[3,1,6,1],[3,12,6,12],[8,12,10,12],[2,16,2,17],[3,16,6,16],[8,16,10,16],[12,16,15,16],[17,16,19,16],[21,16,23,16],[25,16,29,16],[3,7,6,7],[8,7,10,7],[12,7,15,7],[17,7,19,7],[21,7,23,7],[25,7,29,7],[12,12,15,12],[17,12,19,12],[21,12,23,12],[25,12,29,12],[135,7,138,7],[140,7,143,7],[145,7,149,7],[155,7,155,8],[156,7,159,7],[161,7,164,7],[198,12,201,12],[140,16,143,16],[145,16,149,16],[155,16,155,17],[156,16,159,16],[161,16,164,16],[166,7,167,7],[166,12,167,12],[166,16,167,16],[170,16,178,16],[135,16,138,16],[145,12,149,12],[155,12,155,13],[156,12,159,12],[161,12,164,12],[198,16,201,16],[169,12,169,13],[170,12,178,12],[108,7,112,7],[236,16,241,16],[243,18,243,19],[244,18,244,19],[226,7,231,7],[226,12,231,12],[226,16,231,16],[233,7,234,7],[233,12,234,12],[236,7,241,7],[236,12,241,12],[212,16,217,16],[219,16,224,16],[203,12,208,12],[212,12,217,12],[219,12,224,12],[203,7,208,7],[212,7,217,7],[219,7,224,7],[233,16,234,16],[203,16,208,16],[198,7,201,7],[128,16,133,16],[128,7,133,7]]}
[null,"TO BE EVALUATED  - 30% of the total evaluation. \nYou will FAIL if :                                                                                                                                                                                                                                                                                                                                                                                                                                                                                                       1 - Price is above CAP as per Table 1 in \"Day Rate Minimums & Caps\" \n2 - Price for a senior role is cheaper than a junior role e.g. Associate Business Architect should cost more than or equal to the cost of a Trainee Business Architect\n3 - Price Below Minimum benchmark as per Table 1 in \"Day Rate Minimums & Caps\""]
[null,"Table 2 - UK Rate Card - MANDATORY - enter a price in all of the green cells",null,null,null,null,null,"Table 3 - UK Rate Card validation table - DO NOT AMEND",null,null,null,null,"Table 4 - Evaluation Weighting - DO NOT AMEND",null,null,null,"Table 5 - Weighted Price for Evaluation - DO NOT AMEND"]
[null,"Architecture roles",null,"National","London",null,null,"Architecture roles",null,"National","London",null,"Architecture roles",null,"Evaluation Weighting",null,"Architecture roles",null,"Weighted Price National","Weighted Price London"]
[null,"Business architect","1. Trainee business architect",null,null,null,null,"Business architect","1. Trainee business architect",{"$f":"IF(D4=\"\",\"No Price\",IF(D4>'Day Rate Minimums & Caps'!$C$4,\"Fail 1\",IF(D4<'Day Rate Minimums & Caps'!$D$4,\"Fail 3\",\"Pass\")))","v":"No Price"},{"$f":"IF(E4=\"\",\"No Price\",IF(E4>'Day Rate Minimums & Caps'!$C$5,\"Fail 1\",IF(E4<'Day Rate Minimums & Caps'!$D$5,\"Fail 3\",\"Pass\")))","v":"No Price"},null,"Business architect","1. Trainee business architect",6.3291139240506333E-2,null,"Business architect","1. Trainee business architect",{"$f":"D4*O4","v":0},{"$f":"E4*O4","v":0}]
[null,null,"2. Associate business architect",null,null,null,null,null,"2. Associate business architect",{"$f":"IF(D5=\"\",\"No Price\",IF(D5>'Day Rate Minimums & Caps'!$C$4,\"Fail 1\",IF(D5<'Day Rate Minimums & Caps'!$D$4,\"Fail 3\",IF(D5<D4,\"Fail 2\",\"Pass\"))))","v":"No Price"},{"$f":"IF(E5=\"\",\"No Price\",IF(E5>'Day Rate Minimums & Caps'!$C$5,\"Fail 1\",IF(E5<'Day Rate Minimums & Caps'!$D$5,\"Fail 3\",IF(E5<E4,\"Fail 2\",\"Pass\"))))","v":"No Price"},null,null,"2. Associate business architect",6.3291139240506333E-2,null,null,"2. Associate business architect",0,0]
[null,null,"3. Business architect",null,null,null,null,null,"3. Business architect",{"$f":"IF(D6=\"\",\"No Price\",IF(D6>'Day Rate Minimums & Caps'!$C$4,\"Fail 1\",IF(D6<'Day Rate Minimums & Caps'!$D$4,\"Fail 3\",IF(D6<D5,\"Fail 2\",\"Pass\"))))","v":"No Price"},{"$f":"IF(E6=\"\",\"No Price\",IF(E6>'Day Rate Minimums & Caps'!$C$5,\"Fail 1\",IF(E6<'Day Rate Minimums & Caps'!$D$5,\"Fail 3\",IF(E6<E5,\"Fail 2\",\"Pass\"))))","v":"No Price"},null,null,"3. Business architect",6.3291139240506333E-2,null,null,"3. Business architect",0,0]
[null,null,"4. Lead business architect",null,null,null,null,null,"4. Lead business architect",{"$f":"IF(D7=\"\",\"No Price\",IF(D7>'Day Rate Minimums & Caps'!$C$4,\"Fail 1\",IF(D7<'Day Rate Minimums & Caps'!$D$4,\"Fail 3\",IF(D7<D6,\"Fail 2\",\"Pass\"))))","v":"No Price"},{"$f":"IF(E7=\"\",\"No Price\",IF(E7>'Day Rate Minimums & Caps'!$C$5,\"Fail 1\",IF(E7<'Day Rate Minimums & Caps'!$D$5,\"Fail 3\",IF(E7<E6,\"Fail 2\",\"Pass\"))))","v":"No Price"},null,null,"4. Lead business architect",6.3291139240506333E-2,null,null,"4. Lead business architect",0,0]
[]
[null,"Data architect","1. Data architect",null,null,null,null,"Data architect","1. Data architect",{"$f":"IF(D9=\"\",\"No Price\",IF(D9>'Day Rate Minimums & Caps'!$C$4,\"Fail 1\",IF(D9<'Day Rate Minimums & Caps'!$D$4,\"Fail 3\",\"Pass\")))","v":"No Price"},{"$f":"IF(E9=\"\",\"No Price\",IF(E9>'Day Rate Minimums & Caps'!$C$5,\"Fail 1\",IF(E9<'Day Rate Minimums & Caps'!$D$5,\"Fail 3\",\"Pass\")))","v":"No Price"},null,"Data architect","1. Data architect",2.7377521613832854E-2,null,"Data architect","1. Data architect",{"$f":"D9*O9","v":0},{"$f":"E9*O9","v":0}]
[null,null,"2. Senior data architect",null,null,null,null,null,"2. Senior data architect",{"$f":"IF(D10=\"\",\"No Price\",IF(D10>'Day Rate Minimums & Caps'!$C$4,\"Fail 1\",IF(D10<'Day Rate Minimums & Caps'!$D$4,\"Fail 3\",IF(D10<D9,\"Fail 2\",\"Pass\"))))","v":"No Price"},{"$f":"IF(E10=\"\",\"No Price\",IF(E10>'Day Rate Minimums & Caps'!$C$5,\"Fail 1\",IF(E10<'Day Rate Minimums & Caps'!$D$5,\"Fail 3\",IF(E10<E9,\"Fail 2\",\"Pass\"))))","v":"No Price"},null,null,"2. Senior data architect",0.87608069164265123,null,null,"2. Senior data architect",0,0]
[null,null,"3. Chief data architect",null,null,null,null,null,"3. Chief data architect",{"$f":"IF(D11=\"\",\"No Price\",IF(D11>'Day Rate Minimums & Caps'!$C$4,\"Fail 1\",IF(D11<'Day Rate Minimums & Caps'!$D$4,\"Fail 3\",IF(D11<D10,\"Fail 2\",\"Pass\"))))","v":"No Price"},{"$f":"IF(E11=\"\",\"No Price\",IF(E11>'Day Rate Minimums & Caps'!$C$5,\"Fail 1\",IF(E11<'Day Rate Minimums & Caps'!$D$5,\"Fail 3\",IF(E11<E10,\"Fail 2\",\"Pass\"))))","v":"No Price"},null,null,"3. Chief data architect",0.21902017291066284,null,null,"3. Chief data architect",0,0]
[]
[null,"Enterprise architect","1. Enterprise architect",null,null,null,null,"Enterprise architect","1. Enterprise architect",{"$f":"IF(D13=\"\",\"No Price\",IF(D13>'Day Rate Minimums & Caps'!$C$4,\"Fail 1\",IF(D13<'Day Rate Minimums & Caps'!$D$4,\"Fail 3\",\"Pass\")))","v":"No Price"},{"$f":"IF(E13=\"\",\"No Price\",IF(E13>'Day Rate Minimums & Caps'!$C$5,\"Fail 1\",IF(E13<'Day Rate Minimums & Caps'!$D$5,\"Fail 3\",\"Pass\")))","v":"No Price"},null,"Enterprise architect","1. Enterprise architect",6.3291139240506333E-2,null,"Enterprise architect","1. Enterprise architect",{"$f":"D13*O13","v":0},{"$f":"E13*O13","v":0}]
[null,null,"2. Senior enterprise architect",null,null,null,null,null,"2. Senior enterprise architect",{"$f":"IF(D14=\"\",\"No Price\",IF(D14>'Day Rate Minimums & Caps'!$C$4,\"Fail 1\",IF(D14<'Day Rate Minimums & Caps'!$D$4,\"Fail 3\",IF(D14<D13,\"Fail 2\",\"Pass\"))))","v":"No Price"},{"$f":"IF(E14=\"\",\"No Price\",IF(E14>'Day Rate Minimums & Caps'!$C$5,\"Fail 1\",IF(E14<'Day Rate Minimums & Caps'!$D$5,\"Fail 3\",IF(E14<E13,\"Fail 2\",\"Pass\"))))","v":"No Price"},null,null,"2. Senior enterprise architect",6.3291139240506333E-2,null,null,"2. Senior enterprise architect",0,0]
[null,null,"3. Lead enterprise architect",null,null,null,null,null,"3. Lead enterprise architect",{"$f":"IF(D15=\"\",\"No Price\",IF(D15>'Day Rate Minimums & Caps'!$C$4,\"Fail 1\",IF(D15<'Day Rate Minimums & Caps'!$D$4,\"Fail 3\",IF(D15<D14,\"Fail 2\",\"Pass\"))))","v":"No Price"},{"$f":"IF(E15=\"\",\"No Price\",IF(E15>'Day Rate Minimums & Caps'!$C$5,\"Fail 1\",IF(E15<'Day Rate Minimums & Caps'!$D$5,\"Fail 3\",IF(E15<E14,\"Fail 2\",\"Pass\"))))","v":"No Price"},null,null,"3. Lead enterprise architect",6.3291139240506333E-2,null,null,"3. Lead enterprise architect",0,0]
[null,null,"4. Principal enterprise architect",null,null,null,null,null,"4. Principal enterprise architect",{"$f":"IF(D16=\"\",\"No Price\",IF(D16>'Day Rate Minimums & Caps'!$C$4,\"Fail 1\",IF(D16<'Day Rate Minimums & Caps'!$D$4,\"Fail 3\",IF(D16<D15,\"Fail 2\",\"Pass\"))))","v":"No Price"},{"$f":"IF(E16=\"\",\"No Price\",IF(E16>'Day Rate Minimums & Caps'!$C$5,\"Fail 1\",IF(E16<'Day Rate Minimums & Caps'!$D$5,\"Fail 3\",IF(E16<E15,\"Fail 2\",\"Pass\"))))","v":"No Price"},null,null,"4. Principal enterprise architect",6.3291139240506333E-2,null,null,"4. Principal enterprise architect",0,0]
[]
[null,"Network architect","1. Associate network architect",null,null,null,null,"Network architect","1. Associate network architect",{"$f":"IF(D18=\"\",\"No Price\",IF(D18>'Day Rate Minimums & Caps'!$C$4,\"Fail 1\",IF(D18<'Day Rate Minimums & Caps'!$D$4,\"Fail 3\",\"Pass\")))","v":"No Price"},{"$f":"IF(E18=\"\",\"No Price\",IF(E18>'Day Rate Minimums & Caps'!$C$5,\"Fail 1\",IF(E18<'Day Rate Minimums & Caps'!$D$5,\"Fail 3\",\"Pass\")))","v":"No Price"},null,"Network architect","1. Associate network architect",6.3291139240506333E-2,null,"Network architect","1. Associate network architect",{"$f":"D18*O18","v":0},{"$f":"E18*O18","v":0}]
[null,null,"2. Network architect",null,null,null,null,null,"2. Network architect",{"$f":"IF(D19=\"\",\"No Price\",IF(D19>'Day Rate Minimums & Caps'!$C$4,\"Fail 1\",IF(D19<'Day Rate Minimums & Caps'!$D$4,\"Fail 3\",IF(D19<D18,\"Fail 2\",\"Pass\"))))","v":"No Price"},{"$f":"IF(E19=\"\",\"No Price\",IF(E19>'Day Rate Minimums & Caps'!$C$5,\"Fail 1\",IF(E19<'Day Rate Minimums & Caps'!$D$5,\"Fail 3\",IF(E19<E18,\"Fail 2\",\"Pass\"))))","v":"No Price"},null,null,"2. Network architect",2.7377521613832854E-2,null,null,"2. Network architect",0,0]
[null,null,"3. Lead network architect",null,null,null,null,null,"3. Lead network architect",{"$f":"IF(D20=\"\",\"No Price\",IF(D20>'Day Rate Minimums & Caps'!$C$4,\"Fail 1\",IF(D20<'Day Rate Minimums & Caps'!$D$4,\"Fail 3\",IF(D20<D19,\"Fail 2\",\"Pass\"))))","v":"No Price"},{"$f":"IF(E20=\"\",\"No Price\",IF(E20>'Day Rate Minimums & Caps'!$C$5,\"Fail 1\",IF(E20<'Day Rate Minimums & Caps'!$D$5,\"Fail 3\",IF(E20<E19,\"Fail 2\",\"Pass\"))))","v":"No Price"},null,null,"3. Lead network architect",6.3291139240506333E-2,null,null,"3. Lead network architect",0,0]
[]
[null,"Security architect","1. Security architect",null,null,null,null,"Security architect","1. Security architect",{"$f":"IF(D22=\"\",\"No Price\",IF(D22>'Day Rate Minimums & Caps'!$C$4,\"Fail 1\",IF(D22<'Day Rate Minimums & Caps'!$D$4,\"Fail 3\",\"Pass\")))","v":"No Price"},{"$f":"IF(E22=\"\",\"No Price\",IF(E22>'Day Rate Minimums & Caps'!$C$5,\"Fail 1\",IF(E22<'Day Rate Minimums & Caps'!$D$5,\"Fail 3\",\"Pass\")))","v":"No Price"},null,"Security architect","1. Security architect",6.3291139240506333E-2,null,"Security architect","1. Security architect",{"$f":"D22*O22","v":0},{"$f":"E22*O22","v":0}]
[null,null,"2. Lead security architect",null,null,null,null,null,"2. Lead security architect",{"$f":"IF(D23=\"\",\"No Price\",IF(D23>'Day Rate Minimums & Caps'!$C$4,\"Fail 1\",IF(D23<'Day Rate Minimums & Caps'!$D$4,\"Fail 3\",IF(D23<D22,\"Fail 2\",\"Pass\"))))","v":"No Price"},{"$f":"IF(E23=\"\",\"No Price\",IF(E23>'Day Rate Minimums & Caps'!$C$5,\"Fail 1\",IF(E23<'Day Rate Minimums & Caps'!$D$5,\"Fail 3\",IF(E23<E22,\"Fail 2\",\"Pass\"))))","v":"No Price"},null,null,"2. Lead security architect",0.16426512968299711,null,null,"2. Lead security architect",0,0]
[null,null,"3. Principal security architect",null,null,null,null,null,"3. Principal security architect",{"$f":"IF(D24=\"\",\"No Price\",IF(D24>'Day Rate Minimums & Caps'!$C$4,\"Fail 1\",IF(D24<'Day Rate Minimums & Caps'!$D$4,\"Fail 3\",IF(D24<D23,\"Fail 2\",\"Pass\"))))","v":"No Price"},{"$f":"IF(E24=\"\",\"No Price\",IF(E24>'Day Rate Minimums & Caps'!$C$5,\"Fail 1\",IF(E24<'Day Rate Minimums & Caps'!$D$5,\"Fail 3\",IF(E24<E23,\"Fail 2\",\"Pass\"))))","v":"No Price"},null,null,"3. Principal security architect",5.4755043227665709E-2,null,null,"3. Principal security architect",0,0]
[]
[null,"Solution architect","1. Associate solution architect",null,null,null,null,"Solution architect","1. Associate solution architect",{"$f":"IF(D26=\"\",\"No Price\",IF(D26>'Day Rate Minimums & Caps'!$C$4,\"Fail 1\",IF(D26<'Day Rate Minimums & Caps'!$D$4,\"Fail 3\",\"Pass\")))","v":"No Price"},{"$f":"IF(E26=\"\",\"No Price\",IF(E26>'Day Rate Minimums & Caps'!$C$5,\"Fail 1\",IF(E26<'Day Rate Minimums & Caps'!$D$5,\"Fail 3\",\"Pass\")))","v":"No Price"},null,"Solution architect","1. Associate solution architect",6.3291139240506333E-2,null,"Solution architect","1. Associate solution architect",{"$f":"D26*O26","v":0},{"$f":"E26*O26","v":0}]
[null,null,"2. Solution architect",null,null,null,null,null,"2. Solution architect",{"$f":"IF(D27=\"\",\"No Price\",IF(D27>'Day Rate Minimums & Caps'!$C$4,\"Fail 1\",IF(D27<'Day Rate Minimums & Caps'!$D$4,\"Fail 3\",IF(D27<D26,\"Fail 2\",\"Pass\"))))","v":"No Price"},{"$f":"IF(E27=\"\",\"No Price\",IF(E27>'Day Rate Minimums & Caps'!$C$5,\"Fail 1\",IF(E27<'Day Rate Minimums & Caps'!$D$5,\"Fail 3\",IF(E27<E26,\"Fail 2\",\"Pass\"))))","v":"No Price"},null,null,"2. Solution architect",6.3291139240506333E-2,null,null,"2. Solution architect",0,0]
[null,null,"3. Senior solution architect",null,null,null,null,null,"3. Senior solution architect",{"$f":"IF(D28=\"\",\"No Price\",IF(D28>'Day Rate Minimums & Caps'!$C$4,\"Fail 1\",IF(D28<'Day Rate Minimums & Caps'!$D$4,\"Fail 3\",IF(D28<D27,\"Fail 2\",\"Pass\"))))","v":"No Price"},{"$f":"IF(E28=\"\",\"No Price\",IF(E28>'Day Rate Minimums & Caps'!$C$5,\"Fail 1\",IF(E28<'Day Rate Minimums & Caps'!$D$5,\"Fail 3\",IF(E28<E27,\"Fail 2\",\"Pass\"))))","v":"No Price"},null,null,"3. Senior solution architect",6.3291139240506333E-2,null,null,"3. Senior solution architect",0,0]
[null,null,"4. Lead solution architect",null,null,null,null,null,"4. Lead solution architect",{"$f":"IF(D29=\"\",\"No Price\",IF(D29>'Day Rate Minimums & Caps'!$C$4,\"Fail 1\",IF(D29<'Day Rate Minimums & Caps'!$D$4,\"Fail 3\",IF(D29<D28,\"Fail 2\",\"Pass\"))))","v":"No Price"},{"$f":"IF(E29=\"\",\"No Price\",IF(E29>'Day Rate Minimums & Caps'!$C$5,\"Fail 1\",IF(E29<'Day Rate Minimums & Caps'!$D$5,\"Fail 3\",IF(E29<E28,\"Fail 2\",\"Pass\"))))","v":"No Price"},null,null,"4. Lead solution architect",6.3291139240506333E-2,null,null,"4. Lead solution architect",0,0]
[null,null,"5. Principal solution architect",null,null,null,null,null,"5. Principal solution architect",{"$f":"IF(D30=\"\",\"No Price\",IF(D30>'Day Rate Minimums & Caps'!$C$4,\"Fail 1\",IF(D30<'Day Rate Minimums & Caps'!$D$4,\"Fail 3\",IF(D30<D29,\"Fail 2\",\"Pass\"))))","v":"No Price"},{"$f":"IF(E30=\"\",\"No Price\",IF(E30>'Day Rate Minimums & Caps'!$C$5,\"Fail 1\",IF(E30<'Day Rate Minimums & Caps'!$D$5,\"Fail 3\",IF(E30<E29,\"Fail 2\",\"Pass\"))))","v":"No Price"},null,null,"5. Principal solution architect",6.3291139240506333E-2,null,null,"5. Principal solution architect",0,0]
[]
[null,"Technical architect","1. Associate technical architect",null,null,null,null,"Technical architect","1. Associate technical architect",{"$f":"IF(D32=\"\",\"No Price\",IF(D32>'Day Rate Minimums & Caps'!$C$4,\"Fail 1\",IF(D32<'Day Rate Minimums & Caps'!$D$4,\"Fail 3\",\"Pass\")))","v":"No Price"},{"$f":"IF(E32=\"\",\"No Price\",IF(E32>'Day Rate Minimums & Caps'!$C$5,\"Fail 1\",IF(E32<'Day Rate Minimums & Caps'!$D$5,\"Fail 3\",\"Pass\")))","v":"No Price"},null,"Technical architect","1. Associate technical architect",8.2132564841498557E-2,null,"Technical architect","1. Associate technical architect",{"$f":"D32*O32","v":0},{"$f":"E32*O32","v":0}]
[null,null,"2. Technical architect",null,null,null,null,null,"2. Technical architect",{"$f":"IF(D33=\"\",\"No Price\",IF(D33>'Day Rate Minimums & Caps'!$C$4,\"Fail 1\",IF(D33<'Day Rate Minimums & Caps'!$D$4,\"Fail 3\",IF(D33<D32,\"Fail 2\",\"Pass\"))))","v":"No Price"},{"$f":"IF(E33=\"\",\"No Price\",IF(E33>'Day Rate Minimums & Caps'!$C$5,\"Fail 1\",IF(E33<'Day Rate Minimums & Caps'!$D$5,\"Fail 3\",IF(E33<E32,\"Fail 2\",\"Pass\"))))","v":"No Price"},null,null,"2. Technical architect",0.57492795389049001,null,null,"2. Technical architect",0,0]
[null,null,"3. Senior technical architect",null,null,null,null,null,"3. Senior technical architect",{"$f":"IF(D34=\"\",\"No Price\",IF(D34>'Day Rate Minimums & Caps'!$C$4,\"Fail 1\",IF(D34<'Day Rate Minimums & Caps'!$D$4,\"Fail 3\",IF(D34<D33,\"Fail 2\",\"Pass\"))))","v":"No Price"},{"$f":"IF(E34=\"\",\"No Price\",IF(E34>'Day Rate Minimums & Caps'!$C$5,\"Fail 1\",IF(E34<'Day Rate Minimums & Caps'!$D$5,\"Fail 3\",IF(E34<E33,\"Fail 2\",\"Pass\"))))","v":"No Price"},null,null,"3. Senior technical architect",2.5734870317002883,null,null,"3. Senior technical architect",0,0]
[null,null,"4. Lead technical architect",null,null,null,null,null,"4. Lead technical architect",{"$f":"IF(D35=\"\",\"No Price\",IF(D35>'Day Rate Minimums & Caps'!$C$4,\"Fail 1\",IF(D35<'Day Rate Minimums & Caps'!$D$4,\"Fail 3\",IF(D35<D34,\"Fail 2\",\"Pass\"))))","v":"No Price"},{"$f":"IF(E35=\"\",\"No Price\",IF(E35>'Day Rate Minimums & Caps'!$C$5,\"Fail 1\",IF(E35<'Day Rate Minimums & Caps'!$D$5,\"Fail 3\",IF(E35<E34,\"Fail 2\",\"Pass\"))))","v":"No Price"},null,null,"4. Lead technical architect",2.3270893371757921,null,null,"4. Lead technical architect",0,0]
[null,null,"5. Principal technical architect",null,null,null,null,null,"5. Principal technical architect",{"$f":"IF(D36=\"\",\"No Price\",IF(D36>'Day Rate Minimums & Caps'!$C$4,\"Fail 1\",IF(D36<'Day Rate Minimums & Caps'!$D$4,\"Fail 3\",IF(D36<D35,\"Fail 2\",\"Pass\"))))","v":"No Price"},{"$f":"IF(E36=\"\",\"No Price\",IF(E36>'Day Rate Minimums & Caps'!$C$5,\"Fail 1\",IF(E36<'Day Rate Minimums & Caps'!$D$5,\"Fail 3\",IF(E36<E35,\"Fail 2\",\"Pass\"))))","v":"No Price"},null,null,"5. Principal technical architect",1.4510086455331412,null,null,"5. Principal technical architect",0,0]
[]
[null,"Data roles",null,"National","London",null,null,"Data roles",null,"National","London",null,"Data roles",null,"Evaluation Weighting",null,"Data roles",null,"Weighted Price National","Weighted Price London"]
[null,"Data analyst","1. Associate analyst",null,null,null,null,"Data analyst","1. Associate analyst",{"$f":"IF(D39=\"\",\"No Price\",IF(D39>'Day Rate Minimums & Caps'!$C$4,\"Fail 1\",IF(D39<'Day Rate Minimums & Caps'!$D$4,\"Fail 3\",\"Pass\")))","v":"No Price"},{"$f":"IF(E39=\"\",\"No Price\",IF(E39>'Day Rate Minimums & Caps'!$C$5,\"Fail 1\",IF(E39<'Day Rate Minimums & Caps'!$D$5,\"Fail 3\",\"Pass\")))","v":"No Price"},null,"Data analyst","1. Associate analyst",6.3291139240506333E-2,null,"Data analyst","1. Associate analyst",{"$f":"D39*O39","v":0},{"$f":"E39*O39","v":0}]
[null,null,"2. Data analyst",null,null,null,null,null,"2. Data analyst",{"$f":"IF(D40=\"\",\"No Price\",IF(D40>'Day Rate Minimums & Caps'!$C$4,\"Fail 1\",IF(D40<'Day Rate Minimums & Caps'!$D$4,\"Fail 3\",IF(D40<D39,\"Fail 2\",\"Pass\"))))","v":"No Price"},{"$f":"IF(E40=\"\",\"No Price\",IF(E40>'Day Rate Minimums & Caps'!$C$5,\"Fail 1\",IF(E40<'Day Rate Minimums & Caps'!$D$5,\"Fail 3\",IF(E40<E39,\"Fail 2\",\"Pass\"))))","v":"No Price"},null,null,"2. Data analyst",6.3291139240506333E-2,null,null,"2. Data analyst",0,0]
[null,null,"3. Senior data analyst",null,null,null,null,null,"3. Senior data analyst",{"$f":"IF(D41=\"\",\"No Price\",IF(D41>'Day Rate Minimums & Caps'!$C$4,\"Fail 1\",IF(D41<'Day Rate Minimums & Caps'!$D$4,\"Fail 3\",IF(D41<D40,\"Fail 2\",\"Pass\"))))","v":"No Price"},{"$f":"IF(E41=\"\",\"No Price\",IF(E41>'Day Rate Minimums & Caps'!$C$5,\"Fail 1\",IF(E41<'Day Rate Minimums & Caps'!$D$5,\"Fail 3\",IF(E41<E40,\"Fail 2\",\"Pass\"))))","v":"No Price"},null,null,"3. Senior data analyst",6.3291139240506333E-2,null,null,"3. Senior data analyst",0,0]
[null,null,"4. Principal data analyst",null,null,null,null,null,"4. Principal data analyst",{"$f":"IF(D42=\"\",\"No Price\",IF(D42>'Day Rate Minimums & Caps'!$C$4,\"Fail 1\",IF(D42<'Day Rate Minimums & Caps'!$D$4,\"Fail 3\",IF(D42<D41,\"Fail 2\",\"Pass\"))))","v":"No Price"},{"$f":"IF(E42=\"\",\"No Price\",IF(E42>'Day Rate Minimums & Caps'!$C$5,\"Fail 1\",IF(E42<'Day Rate Minimums & Caps'!$D$5,\"Fail 3\",IF(E42<E41,\"Fail 2\",\"Pass\"))))","v":"No Price"},null,null,"4. Principal data analyst",6.3291139240506333E-2,null,null,"4. Principal data analyst",0,0]
[]
[null,"Data engineer","1. Data engineer",null,null,null,null,"Data engineer","1. Data engineer",{"$f":"IF(D44=\"\",\"No Price\",IF(D44>'Day Rate Minimums & Caps'!$C$4,\"Fail 1\",IF(D44<'Day Rate Minimums & Caps'!$D$4,\"Fail 3\",\"Pass\")))","v":"No Price"},{"$f":"IF(E44=\"\",\"No Price\",IF(E44>'Day Rate Minimums & Caps'!$C$5,\"Fail 1\",IF(E44<'Day Rate Minimums & Caps'!$D$5,\"Fail 3\",\"Pass\")))","v":"No Price"},null,"Data engineer","1. Data engineer",0.52017291066282412,null,"Data engineer","1. Data engineer",{"$f":"D44*O44","v":0},{"$f":"E44*O44","v":0}]
[null,null,"2. Senior data engineer",null,null,null,null,null,"2. Senior data engineer",{"$f":"IF(D45=\"\",\"No Price\",IF(D45>'Day Rate Minimums & Caps'!$C$4,\"Fail 1\",IF(D45<'Day Rate Minimums & Caps'!$D$4,\"Fail 3\",IF(D45<D44,\"Fail 2\",\"Pass\"))))","v":"No Price"},{"$f":"IF(E45=\"\",\"No Price\",IF(E45>'Day Rate Minimums & Caps'!$C$5,\"Fail 1\",IF(E45<'Day Rate Minimums & Caps'!$D$5,\"Fail 3\",IF(E45<E44,\"Fail 2\",\"Pass\"))))","v":"No Price"},null,null,"2. Senior data engineer",1.7795389048991355,null,null,"2. Senior data engineer",0,0]
[null,null,"3. Lead data engineer",null,null,null,null,null,"3. Lead data engineer",{"$f":"IF(D46=\"\",\"No Price\",IF(D46>'Day Rate Minimums & Caps'!$C$4,\"Fail 1\",IF(D46<'Day Rate Minimums & Caps'!$D$4,\"Fail 3\",IF(D46<D45,\"Fail 2\",\"Pass\"))))","v":"No Price"},{"$f":"IF(E46=\"\",\"No Price\",IF(E46>'Day Rate Minimums & Caps'!$C$5,\"Fail 1\",IF(E46<'Day Rate Minimums & Caps'!$D$5,\"Fail 3\",IF(E46<E45,\"Fail 2\",\"Pass\"))))","v":"No Price"},null,null,"3. Lead data engineer",0.73919308357348701,null,null,"3. Lead data engineer",0,0]
[null,null,"4. Head of data engineering",null,null,null,null,null,"4. Head of data engineering",{"$f":"IF(D47=\"\",\"No Price\",IF(D47>'Day Rate Minimums & Caps'!$C$4,\"Fail 1\",IF(D47<'Day Rate Minimums & Caps'!$D$4,\"Fail 3\",IF(D47<D46,\"Fail 2\",\"Pass\"))))","v":"No Price"},{"$f":"IF(E47=\"\",\"No Price\",IF(E47>'Day Rate Minimums & Caps'!$C$5,\"Fail 1\",IF(E47<'Day Rate Minimums & Caps'!$D$5,\"Fail 3\",IF(E47<E46,\"Fail 2\",\"Pass\"))))","v":"No Price"},null,null,"4. Head of data engineering",0.13688760806916425,null,null,"4. Head of data engineering",0,0]
[]
[null,"Data ethicist","1. Data ethics lead",null,null,null,null,"Data ethicist","1. Data ethics lead",{"$f":"IF(D49=\"\",\"No Price\",IF(D49>'Day Rate Minimums & Caps'!$C$4,\"Fail 1\",IF(D49<'Day Rate Minimums & Caps'!$D$4,\"Fail 3\",\"Pass\")))","v":"No Price"},{"$f":"IF(E49=\"\",\"No Price\",IF(E49>'Day Rate Minimums & Caps'!$C$5,\"Fail 1\",IF(E49<'Day Rate Minimums & Caps'!$D$5,\"Fail 3\",\"Pass\")))","v":"No Price"},null,"Data ethicist","1. Data ethics lead",6.3291139240506333E-2,null,"Data ethicist","1. Data ethics lead",{"$f":"D49*O49","v":0},{"$f":"E49*O49","v":0}]
[null,null,"2. Head of data ethics",null,null,null,null,null,"2. Head of data ethics",{"$f":"IF(D50=\"\",\"No Price\",IF(D50>'Day Rate Minimums & Caps'!$C$4,\"Fail 1\",IF(D50<'Day Rate Minimums & Caps'!$D$4,\"Fail 3\",IF(D50<D49,\"Fail 2\",\"Pass\"))))","v":"No Price"},{"$f":"IF(E50=\"\",\"No Price\",IF(E50>'Day Rate Minimums & Caps'!$C$5,\"Fail 1\",IF(E50<'Day Rate Minimums & Caps'!$D$5,\"Fail 3\",IF(E50<E49,\"Fail 2\",\"Pass\"))))","v":"No Price"},null,null,"2. Head of data ethics",6.3291139240506333E-2,null,null,"2. Head of data ethics",0,0]
[]
[null,"Data governance manager","1. Data governance manager",null,null,null,null,"Data governance manager","1. Data governance manager",{"$f":"IF(D52=\"\",\"No Price\",IF(D52>'Day Rate Minimums & Caps'!$C$4,\"Fail 1\",IF(D52<'Day Rate Minimums & Caps'!$D$4,\"Fail 3\",\"Pass\")))","v":"No Price"},{"$f":"IF(E52=\"\",\"No Price\",IF(E52>'Day Rate Minimums & Caps'!$C$5,\"Fail 1\",IF(E52<'Day Rate Minimums & Caps'!$D$5,\"Fail 3\",\"Pass\")))","v":"No Price"},null,"Data governance manager","1. Data governance manager",6.3291139240506333E-2,null,"Data governance manager","1. Data governance manager",{"$f":"D52*O52","v":0},{"$f":"E52*O52","v":0}]
[null,null,"2. Lead data governance manager",null,null,null,null,null,"2. Lead data governance manager",{"$f":"IF(D53=\"\",\"No Price\",IF(D53>'Day Rate Minimums & Caps'!$C$4,\"Fail 1\",IF(D53<'Day Rate Minimums & Caps'!$D$4,\"Fail 3\",IF(D53<D52,\"Fail 2\",\"Pass\"))))","v":"No Price"},{"$f":"IF(E53=\"\",\"No Price\",IF(E53>'Day Rate Minimums & Caps'!$C$5,\"Fail 1\",IF(E53<'Day Rate Minimums & Caps'!$D$5,\"Fail 3\",IF(E53<E52,\"Fail 2\",\"Pass\"))))","v":"No Price"},null,null,"2. Lead data governance manager",6.3291139240506333E-2,null,null,"2. Lead data governance manager",0,0]
[null,null,"3. Head of data governance",null,null,null,null,null,"3. Head of data governance",{"$f":"IF(D54=\"\",\"No Price\",IF(D54>'Day Rate Minimums & Caps'!$C$4,\"Fail 1\",IF(D54<'Day Rate Minimums & Caps'!$D$4,\"Fail 3\",IF(D54<D53,\"Fail 2\",\"Pass\"))))","v":"No Price"},{"$f":"IF(E54=\"\",\"No Price\",IF(E54>'Day Rate Minimums & Caps'!$C$5,\"Fail 1\",IF(E54<'Day Rate Minimums & Caps'!$D$5,\"Fail 3\",IF(E54<E53,\"Fail 2\",\"Pass\"))))","v":"No Price"},null,null,"3. Head of data governance",6.3291139240506333E-2,null,null,"3. Head of data governance",0,0]
[]
[null,"Data scientist","1. Trainee data scientist",null,null,null,null,"Data scientist","1. Trainee data scientist",{"$f":"IF(D56=\"\",\"No Price\",IF(D56>'Day Rate Minimums & Caps'!$C$4,\"Fail 1\",IF(D56<'Day Rate Minimums & Caps'!$D$4,\"Fail 3\",\"Pass\")))","v":"No Price"},{"$f":"IF(E56=\"\",\"No Price\",IF(E56>'Day Rate Minimums & Caps'!$C$5,\"Fail 1\",IF(E56<'Day Rate Minimums & Caps'!$D$5,\"Fail 3\",\"Pass\")))","v":"No Price"},null,"Data scientist","1. Trainee data scientist",0.16426512968299711,null,"Data scientist","1. Trainee data scientist",{"$f":"D56*O56","v":0},{"$f":"E56*O56","v":0}]
[null,null,"2. Associate data scientist",null,null,null,null,null,"2. Associate data scientist",{"$f":"IF(D57=\"\",\"No Price\",IF(D57>'Day Rate Minimums & Caps'!$C$4,\"Fail 1\",IF(D57<'Day Rate Minimums & Caps'!$D$4,\"Fail 3\",IF(D57<D56,\"Fail 2\",\"Pass\"))))","v":"No Price"},{"$f":"IF(E57=\"\",\"No Price\",IF(E57>'Day Rate Minimums & Caps'!$C$5,\"Fail 1\",IF(E57<'Day Rate Minimums & Caps'!$D$5,\"Fail 3\",IF(E57<E56,\"Fail 2\",\"Pass\"))))","v":"No Price"},null,null,"2. Associate data scientist",0.24639769452449567,null,null,"2. Associate data scientist",0,0]
[null,null,"3. Data scientist",null,null,null,null,null,"3. Data scientist",{"$f":"IF(D58=\"\",\"No Price\",IF(D58>'Day Rate Minimums & Caps'!$C$4,\"Fail 1\",IF(D58<'Day Rate Minimums & Caps'!$D$4,\"Fail 3\",IF(D58<D57,\"Fail 2\",\"Pass\"))))","v":"No Price"},{"$f":"IF(E58=\"\",\"No Price\",IF(E58>'Day Rate Minimums & Caps'!$C$5,\"Fail 1\",IF(E58<'Day Rate Minimums & Caps'!$D$5,\"Fail 3\",IF(E58<E57,\"Fail 2\",\"Pass\"))))","v":"No Price"},null,null,"3. Data scientist",0.16426512968299711,null,null,"3. Data scientist",0,0]
[null,null,"4. Principal data scientist",null,null,null,null,null,"4. Principal data scientist",{"$f":"IF(D59=\"\",\"No Price\",IF(D59>'Day Rate Minimums & Caps'!$C$4,\"Fail 1\",IF(D59<'Day Rate Minimums & Caps'!$D$4,\"Fail 3\",IF(D59<D58,\"Fail 2\",\"Pass\"))))","v":"No Price"},{"$f":"IF(E59=\"\",\"No Price\",IF(E59>'Day Rate Minimums & Caps'!$C$5,\"Fail 1\",IF(E59<'Day Rate Minimums & Caps'!$D$5,\"Fail 3\",IF(E59<E58,\"Fail 2\",\"Pass\"))))","v":"No Price"},null,null,"4. Principal data scientist",8.2132564841498557E-2,null,null,"4. Principal data scientist",0,0]
[null,null,"5. Lead data scientist",null,null,null,null,null,"5. Lead data scientist",{"$f":"IF(D60=\"\",\"No Price\",IF(D60>'Day Rate Minimums & Caps'!$C$4,\"Fail 1\",IF(D60<'Day Rate Minimums & Caps'!$D$4,\"Fail 3\",IF(D60<D59,\"Fail 2\",\"Pass\"))))","v":"No Price"},{"$f":"IF(E60=\"\",\"No Price\",IF(E60>'Day Rate Minimums & Caps'!$C$5,\"Fail 1\",IF(E60<'Day Rate Minimums & Caps'!$D$5,\"Fail 3\",IF(E60<E59,\"Fail 2\",\"Pass\"))))","v":"No Price"},null,null,"5. Lead data scientist",0.19164265129682995,null,null,"5. Lead data scientist",0,0]
[null,null,"6. Head of data science",null,null,null,null,null,"6. Head of data science",{"$f":"IF(D61=\"\",\"No Price\",IF(D61>'Day Rate Minimums & Caps'!$C$4,\"Fail 1\",IF(D61<'Day Rate Minimums & Caps'!$D$4,\"Fail 3\",IF(D61<D60,\"Fail 2\",\"Pass\"))))","v":"No Price"},{"$f":"IF(E61=\"\",\"No Price\",IF(E61>'Day Rate Minimums & Caps'!$C$5,\"Fail 1\",IF(E61<'Day Rate Minimums & Caps'!$D$5,\"Fail 3\",IF(E61<E60,\"Fail 2\",\"Pass\"))))","v":"No Price"},null,null,"6. Head of data science",2.7377521613832854E-2,null,null,"6. Head of data science",0,0]
[]
[null,"Performance analyst","1. Associate performance analyst",null,null,null,null,"Performance analyst","1. Associate performance analyst",{"$f":"IF(D63=\"\",\"No Price\",IF(D63>'Day Rate Minimums & Caps'!$C$4,\"Fail 1\",IF(D63<'Day Rate Minimums & Caps'!$D$4,\"Fail 3\",\"Pass\")))","v":"No Price"},{"$f":"IF(E63=\"\",\"No Price\",IF(E63>'Day Rate Minimums & Caps'!$C$5,\"Fail 1\",IF(E63<'Day Rate Minimums & Caps'!$D$5,\"Fail 3\",\"Pass\")))","v":"No Price"},null,"Performance analyst","1. Associate performance analyst",8.2132564841498557E-2,null,"Performance analyst","1. Associate performance analyst",{"$f":"D63*O63","v":0},{"$f":"E63*O63","v":0}]
[null,null,"2. Performance analyst",null,null,null,null,null,"2. Performance analyst",{"$f":"IF(D64=\"\",\"No Price\",IF(D64>'Day Rate Minimums & Caps'!$C$4,\"Fail 1\",IF(D64<'Day Rate Minimums & Caps'!$D$4,\"Fail 3\",IF(D64<D63,\"Fail 2\",\"Pass\"))))","v":"No Price"},{"$f":"IF(E64=\"\",\"No Price\",IF(E64>'Day Rate Minimums & Caps'!$C$5,\"Fail 1\",IF(E64<'Day Rate Minimums & Caps'!$D$5,\"Fail 3\",IF(E64<E63,\"Fail 2\",\"Pass\"))))","v":"No Price"},null,null,"2. Performance analyst",0.46541786743515845,null,null,"2. Performance analyst",0,0]
[null,null,"3. Senior performance analyst",null,null,null,null,null,"3. Senior performance analyst",{"$f":"IF(D65=\"\",\"No Price\",IF(D65>'Day Rate Minimums & Caps'!$C$4,\"Fail 1\",IF(D65<'Day Rate Minimums & Caps'!$D$4,\"Fail 3\",IF(D65<D64,\"Fail 2\",\"Pass\"))))","v":"No Price"},{"$f":"IF(E65=\"\",\"No Price\",IF(E65>'Day Rate Minimums & Caps'!$C$5,\"Fail 1\",IF(E65<'Day Rate Minimums & Caps'!$D$5,\"Fail 3\",IF(E65<E64,\"Fail 2\",\"Pass\"))))","v":"No Price"},null,null,"3. Senior performance analyst",0.2737752161383285,null,null,"3. Senior performance analyst",0,0]
[null,null,"4. Lead performance analyst",null,null,null,null,null,"4. Lead performance analyst",{"$f":"IF(D66=\"\",\"No Price\",IF(D66>'Day Rate Minimums & Caps'!$C$4,\"Fail 1\",IF(D66<'Day Rate Minimums & Caps'!$D$4,\"Fail 3\",IF(D66<D65,\"Fail 2\",\"Pass\"))))","v":"No Price"},{"$f":"IF(E66=\"\",\"No Price\",IF(E66>'Day Rate Minimums & Caps'!$C$5,\"Fail 1\",IF(E66<'Day Rate Minimums & Caps'!$D$5,\"Fail 3\",IF(E66<E65,\"Fail 2\",\"Pass\"))))","v":"No Price"},null,null,"4. Lead performance analyst",5.4755043227665709E-2,null,null,"4. Lead performance analyst",0,0]
[null,null,"5. Head of performance analysis",null,null,null,null,null,"5. Head of performance analysis",{"$f":"IF(D67=\"\",\"No Price\",IF(D67>'Day Rate Minimums & Caps'!$C$4,\"Fail 1\",IF(D67<'Day Rate Minimums & Caps'!$D$4,\"Fail 3\",IF(D67<D66,\"Fail 2\",\"Pass\"))))","v":"No Price"},{"$f":"IF(E67=\"\",\"No Price\",IF(E67>'Day Rate Minimums & Caps'!$C$5,\"Fail 1\",IF(E67<'Day Rate Minimums & Caps'!$D$5,\"Fail 3\",IF(E67<E66,\"Fail 2\",\"Pass\"))))","v":"No Price"},null,null,"5. Head of performance analysis",2.7377521613832854E-2,null,null,"5. Head of performance analysis",0,0]
[]
[null,"IT operations roles",null,"National","London",null,null,"IT operations roles",null,"National","London",null,"IT operations roles",null,"Evaluation Weighting",null,"IT operations roles",null,"Weighted Price National","Weighted Price London"]
[null,"Application operations engineer","1. Associate application operations engineer",null,null,null,null,"Application operations engineer","1. Associate application operations engineer",{"$f":"IF(D70=\"\",\"No Price\",IF(D70>'Day Rate Minimums & Caps'!$C$4,\"Fail 1\",IF(D70<'Day Rate Minimums & Caps'!$D$4,\"Fail 3\",\"Pass\")))","v":"No Price"},{"$f":"IF(E70=\"\",\"No Price\",IF(E70>'Day Rate Minimums & Caps'!$C$5,\"Fail 1\",IF(E70<'Day Rate Minimums & Caps'!$D$5,\"Fail 3\",\"Pass\")))","v":"No Price"},null,"Application operations engineer","1. Associate application operations engineer",6.3291139240506333E-2,null,"Application operations engineer","1. Associate application operations engineer",{"$f":"D70*O70","v":0},{"$f":"E70*O70","v":0}]
[null,null,"2. Application operations engineer",null,null,null,null,null,"2. Application operations engineer",{"$f":"IF(D71=\"\",\"No Price\",IF(D71>'Day Rate Minimums & Caps'!$C$4,\"Fail 1\",IF(D71<'Day Rate Minimums & Caps'!$D$4,\"Fail 3\",IF(D71<D70,\"Fail 2\",\"Pass\"))))","v":"No Price"},{"$f":"IF(E71=\"\",\"No Price\",IF(E71>'Day Rate Minimums & Caps'!$C$5,\"Fail 1\",IF(E71<'Day Rate Minimums & Caps'!$D$5,\"Fail 3\",IF(E71<E70,\"Fail 2\",\"Pass\"))))","v":"No Price"},null,null,"2. Application operations engineer",6.3291139240506333E-2,null,null,"2. Application operations engineer",0,0]
[null,null,"3. Senior application operations engineer",null,null,null,null,null,"3. Senior application operations engineer",{"$f":"IF(D72=\"\",\"No Price\",IF(D72>'Day Rate Minimums & Caps'!$C$4,\"Fail 1\",IF(D72<'Day Rate Minimums & Caps'!$D$4,\"Fail 3\",IF(D72<D71,\"Fail 2\",\"Pass\"))))","v":"No Price"},{"$f":"IF(E72=\"\",\"No Price\",IF(E72>'Day Rate Minimums & Caps'!$C$5,\"Fail 1\",IF(E72<'Day Rate Minimums & Caps'!$D$5,\"Fail 3\",IF(E72<E71,\"Fail 2\",\"Pass\"))))","v":"No Price"},null,null,"3. Senior application operations engineer",0.32853025936599423,null,null,"3. Senior application operations engineer",0,0]
[null,null,"4. Lead application operations engineer",null,null,null,null,null,"4. Lead application operations engineer",{"$f":"IF(D73=\"\",\"No Price\",IF(D73>'Day Rate Minimums & Caps'!$C$4,\"Fail 1\",IF(D73<'Day Rate Minimums & Caps'!$D$4,\"Fail 3\",IF(D73<D72,\"Fail 2\",\"Pass\"))))","v":"No Price"},{"$f":"IF(E73=\"\",\"No Price\",IF(E73>'Day Rate Minimums & Caps'!$C$5,\"Fail 1\",IF(E73<'Day Rate Minimums & Caps'!$D$5,\"Fail 3\",IF(E73<E72,\"Fail 2\",\"Pass\"))))","v":"No Price"},null,null,"4. Lead application operations engineer",5.4755043227665709E-2,null,null,"4. Lead application operations engineer",0,0]
[null,null,"5. Principal application operations engineer",null,null,null,null,null,"5. Principal application operations engineer",{"$f":"IF(D74=\"\",\"No Price\",IF(D74>'Day Rate Minimums & Caps'!$C$4,\"Fail 1\",IF(D74<'Day Rate Minimums & Caps'!$D$4,\"Fail 3\",IF(D74<D73,\"Fail 2\",\"Pass\"))))","v":"No Price"},{"$f":"IF(E74=\"\",\"No Price\",IF(E74>'Day Rate Minimums & Caps'!$C$5,\"Fail 1\",IF(E74<'Day Rate Minimums & Caps'!$D$5,\"Fail 3\",IF(E74<E73,\"Fail 2\",\"Pass\"))))","v":"No Price"},null,null,"5. Principal application operations engineer",0.2737752161383285,null,null,"5. Principal application operations engineer",0,0]
[]
[null,"Business relationship manager","1. Business relationship manager",null,null,null,null,"Business relationship manager","1. Business relationship manager",{"$f":"IF(D76=\"\",\"No Price\",IF(D76>'Day Rate Minimums & Caps'!$C$4,\"Fail 1\",IF(D76<'Day Rate Minimums & Caps'!$D$4,\"Fail 3\",\"Pass\")))","v":"No Price"},{"$f":"IF(E76=\"\",\"No Price\",IF(E76>'Day Rate Minimums & Caps'!$C$5,\"Fail 1\",IF(E76<'Day Rate Minimums & Caps'!$D$5,\"Fail 3\",\"Pass\")))","v":"No Price"},null,"Business relationship manager","1. Business relationship manager",8.2132564841498557E-2,null,"Business relationship manager","1. Business relationship manager",{"$f":"D76*O76","v":0},{"$f":"E76*O76","v":0}]
[null,null,"2. Senior business relationship manager",null,null,null,null,null,"2. Senior business relationship manager",{"$f":"IF(D77=\"\",\"No Price\",IF(D77>'Day Rate Minimums & Caps'!$C$4,\"Fail 1\",IF(D77<'Day Rate Minimums & Caps'!$D$4,\"Fail 3\",IF(D77<D76,\"Fail 2\",\"Pass\"))))","v":"No Price"},{"$f":"IF(E77=\"\",\"No Price\",IF(E77>'Day Rate Minimums & Caps'!$C$5,\"Fail 1\",IF(E77<'Day Rate Minimums & Caps'!$D$5,\"Fail 3\",IF(E77<E76,\"Fail 2\",\"Pass\"))))","v":"No Price"},null,null,"2. Senior business relationship manager",6.3291139240506333E-2,null,null,"2. Senior business relationship manager",0,0]
[null,null,"3. Lead business relationship manager",null,null,null,null,null,"3. Lead business relationship manager",{"$f":"IF(D78=\"\",\"No Price\",IF(D78>'Day Rate Minimums & Caps'!$C$4,\"Fail 1\",IF(D78<'Day Rate Minimums & Caps'!$D$4,\"Fail 3\",IF(D78<D77,\"Fail 2\",\"Pass\"))))","v":"No Price"},{"$f":"IF(E78=\"\",\"No Price\",IF(E78>'Day Rate Minimums & Caps'!$C$5,\"Fail 1\",IF(E78<'Day Rate Minimums & Caps'!$D$5,\"Fail 3\",IF(E78<E77,\"Fail 2\",\"Pass\"))))","v":"No Price"},null,null,"3. Lead business relationship manager",0.30115273775216139,null,null,"3. Lead business relationship manager",0,0]
[]
[null,"Change and release manager","1. Configuration analyst",null,null,null,null,"Change and release manager","1. Configuration analyst",{"$f":"IF(D80=\"\",\"No Price\",IF(D80>'Day Rate Minimums & Caps'!$C$4,\"Fail 1\",IF(D80<'Day Rate Minimums & Caps'!$D$4,\"Fail 3\",\"Pass\")))","v":"No Price"},{"$f":"IF(E80=\"\",\"No Price\",IF(E80>'Day Rate Minimums & Caps'!$C$5,\"Fail 1\",IF(E80<'Day Rate Minimums & Caps'!$D$5,\"Fail 3\",\"Pass\")))","v":"No Price"},null,"Change and release manager","1. Configuration analyst",6.3291139240506333E-2,null,"Change and release manager","1. Configuration analyst",{"$f":"D80*O80","v":0},{"$f":"E80*O80","v":0}]
[null,null,"2. Change and release analyst",null,null,null,null,null,"2. Change and release analyst",{"$f":"IF(D81=\"\",\"No Price\",IF(D81>'Day Rate Minimums & Caps'!$C$4,\"Fail 1\",IF(D81<'Day Rate Minimums & Caps'!$D$4,\"Fail 3\",IF(D81<D80,\"Fail 2\",\"Pass\"))))","v":"No Price"},{"$f":"IF(E81=\"\",\"No Price\",IF(E81>'Day Rate Minimums & Caps'!$C$5,\"Fail 1\",IF(E81<'Day Rate Minimums & Caps'!$D$5,\"Fail 3\",IF(E81<E80,\"Fail 2\",\"Pass\"))))","v":"No Price"},null,null,"2. Change and release analyst",5.4755043227665709E-2,null,null,"2. Change and release analyst",0,0]
[null,null,"3. Change and release manager",null,null,null,null,null,"3. Change and release manager",{"$f":"IF(D82=\"\",\"No Price\",IF(D82>'Day Rate Minimums & Caps'!$C$4,\"Fail 1\",IF(D82<'Day Rate Minimums & Caps'!$D$4,\"Fail 3\",IF(D82<D81,\"Fail 2\",\"Pass\"))))","v":"No Price"},{"$f":"IF(E82=\"\",\"No Price\",IF(E82>'Day Rate Minimums & Caps'!$C$5,\"Fail 1\",IF(E82<'Day Rate Minimums & Caps'!$D$5,\"Fail 3\",IF(E82<E81,\"Fail 2\",\"Pass\"))))","v":"No Price"},null,null,"3. Change and release manager",0.19164265129682995,null,null,"3. Change and release manager",0,0]
[]
[null,"Command and control centre manager","1. Operations analyst",null,null,null,null,"Command and control centre manager","1. Operations analyst",{"$f":"IF(D84=\"\",\"No Price\",IF(D84>'Day Rate Minimums & Caps'!$C$4,\"Fail 1\",IF(D84<'Day Rate Minimums & Caps'!$D$4,\"Fail 3\",\"Pass\")))","v":"No Price"},{"$f":"IF(E84=\"\",\"No Price\",IF(E84>'Day Rate Minimums & Caps'!$C$5,\"Fail 1\",IF(E84<'Day Rate Minimums & Caps'!$D$5,\"Fail 3\",\"Pass\")))","v":"No Price"},null,"Command and control centre manager","1. Operations analyst",6.3291139240506333E-2,null,"Command and control centre manager","1. Operations analyst",{"$f":"D84*O84","v":0},{"$f":"E84*O84","v":0}]
[null,null,"2. Senior operations analyst",null,null,null,null,null,"2. Senior operations analyst",{"$f":"IF(D85=\"\",\"No Price\",IF(D85>'Day Rate Minimums & Caps'!$C$4,\"Fail 1\",IF(D85<'Day Rate Minimums & Caps'!$D$4,\"Fail 3\",IF(D85<D84,\"Fail 2\",\"Pass\"))))","v":"No Price"},{"$f":"IF(E85=\"\",\"No Price\",IF(E85>'Day Rate Minimums & Caps'!$C$5,\"Fail 1\",IF(E85<'Day Rate Minimums & Caps'!$D$5,\"Fail 3\",IF(E85<E84,\"Fail 2\",\"Pass\"))))","v":"No Price"},null,null,"2. Senior operations analyst",6.3291139240506333E-2,null,null,"2. Senior operations analyst",0,0]
[null,null,"3. Operational control manager",null,null,null,null,null,"3. Operational control manager",{"$f":"IF(D86=\"\",\"No Price\",IF(D86>'Day Rate Minimums & Caps'!$C$4,\"Fail 1\",IF(D86<'Day Rate Minimums & Caps'!$D$4,\"Fail 3\",IF(D86<D85,\"Fail 2\",\"Pass\"))))","v":"No Price"},{"$f":"IF(E86=\"\",\"No Price\",IF(E86>'Day Rate Minimums & Caps'!$C$5,\"Fail 1\",IF(E86<'Day Rate Minimums & Caps'!$D$5,\"Fail 3\",IF(E86<E85,\"Fail 2\",\"Pass\"))))","v":"No Price"},null,null,"3. Operational control manager",6.3291139240506333E-2,null,null,"3. Operational control manager",0,0]
[null,null,"4. Head of command and control",null,null,null,null,null,"4. Head of command and control",{"$f":"IF(D87=\"\",\"No Price\",IF(D87>'Day Rate Minimums & Caps'!$C$4,\"Fail 1\",IF(D87<'Day Rate Minimums & Caps'!$D$4,\"Fail 3\",IF(D87<D86,\"Fail 2\",\"Pass\"))))","v":"No Price"},{"$f":"IF(E87=\"\",\"No Price\",IF(E87>'Day Rate Minimums & Caps'!$C$5,\"Fail 1\",IF(E87<'Day Rate Minimums & Caps'!$D$5,\"Fail 3\",IF(E87<E86,\"Fail 2\",\"Pass\"))))","v":"No Price"},null,null,"4. Head of command and control",6.3291139240506333E-2,null,null,"4. Head of command and control",0,0]
[]
[null,"End user computing engineer","1. Associate end user computing engineer",null,null,null,null,"End user computing engineer","1. Associate end user computing engineer",{"$f":"IF(D89=\"\",\"No Price\",IF(D89>'Day Rate Minimums & Caps'!$C$4,\"Fail 1\",IF(D89<'Day Rate Minimums & Caps'!$D$4,\"Fail 3\",\"Pass\")))","v":"No Price"},{"$f":"IF(E89=\"\",\"No Price\",IF(E89>'Day Rate Minimums & Caps'!$C$5,\"Fail 1\",IF(E89<'Day Rate Minimums & Caps'!$D$5,\"Fail 3\",\"Pass\")))","v":"No Price"},null,"End user computing engineer","1. Associate end user computing engineer",6.3291139240506333E-2,null,"End user computing engineer","1. Associate end user computing engineer",{"$f":"D89*O89","v":0},{"$f":"E89*O89","v":0}]
[null,null,"2. End user computing engineer",null,null,null,null,null,"2. End user computing engineer",{"$f":"IF(D90=\"\",\"No Price\",IF(D90>'Day Rate Minimums & Caps'!$C$4,\"Fail 1\",IF(D90<'Day Rate Minimums & Caps'!$D$4,\"Fail 3\",IF(D90<D89,\"Fail 2\",\"Pass\"))))","v":"No Price"},{"$f":"IF(E90=\"\",\"No Price\",IF(E90>'Day Rate Minimums & Caps'!$C$5,\"Fail 1\",IF(E90<'Day Rate Minimums & Caps'!$D$5,\"Fail 3\",IF(E90<E89,\"Fail 2\",\"Pass\"))))","v":"No Price"},null,null,"2. End user computing engineer",6.3291139240506333E-2,null,null,"2. End user computing engineer",0,0]
[null,null,"3. Senior end user computing engineer",null,null,null,null,null,"3. Senior end user computing engineer",{"$f":"IF(D91=\"\",\"No Price\",IF(D91>'Day Rate Minimums & Caps'!$C$4,\"Fail 1\",IF(D91<'Day Rate Minimums & Caps'!$D$4,\"Fail 3\",IF(D91<D90,\"Fail 2\",\"Pass\"))))","v":"No Price"},{"$f":"IF(E91=\"\",\"No Price\",IF(E91>'Day Rate Minimums & Caps'!$C$5,\"Fail 1\",IF(E91<'Day Rate Minimums & Caps'!$D$5,\"Fail 3\",IF(E91<E90,\"Fail 2\",\"Pass\"))))","v":"No Price"},null,null,"3. Senior end user computing engineer",5.4755043227665709E-2,null,null,"3. Senior end user computing engineer",0,0]
[null,null,"4. Lead end user computing engineer",null,null,null,null,null,"4. Lead end user computing engineer",{"$f":"IF(D92=\"\",\"No Price\",IF(D92>'Day Rate Minimums & Caps'!$C$4,\"Fail 1\",IF(D92<'Day Rate Minimums & Caps'!$D$4,\"Fail 3\",IF(D92<D91,\"Fail 2\",\"Pass\"))))","v":"No Price"},{"$f":"IF(E92=\"\",\"No Price\",IF(E92>'Day Rate Minimums & Caps'!$C$5,\"Fail 1\",IF(E92<'Day Rate Minimums & Caps'!$D$5,\"Fail 3\",IF(E92<E91,\"Fail 2\",\"Pass\"))))","v":"No Price"},null,null,"4. Lead end user computing engineer",6.3291139240506333E-2,null,null,"4. Lead end user computing engineer",0,0]
[null,null,"5. Principal end user computing engineer",null,null,null,null,null,"5. Principal end user computing engineer",{"$f":"IF(D93=\"\",\"No Price\",IF(D93>'Day Rate Minimums & Caps'!$C$4,\"Fail 1\",IF(D93<'Day Rate Minimums & Caps'!$D$4,\"Fail 3\",IF(D93<D92,\"Fail 2\",\"Pass\"))))","v":"No Price"},{"$f":"IF(E93=\"\",\"No Price\",IF(E93>'Day Rate Minimums & Caps'!$C$5,\"Fail 1\",IF(E93<'Day Rate Minimums & Caps'!$D$5,\"Fail 3\",IF(E93<E92,\"Fail 2\",\"Pass\"))))","v":"No Price"},null,null,"5. Principal end user computing engineer",6.3291139240506333E-2,null,null,"5. Principal end user computing engineer",0,0]
[]
[null,"IT service manager","1. IT service analyst",null,null,null,null,"IT service manager","1. IT service analyst",{"$f":"IF(D95=\"\",\"No Price\",IF(D95>'Day Rate Minimums & Caps'!$C$4,\"Fail 1\",IF(D95<'Day Rate Minimums & Caps'!$D$4,\"Fail 3\",\"Pass\")))","v":"No Price"},{"$f":"IF(E95=\"\",\"No Price\",IF(E95>'Day Rate Minimums & Caps'!$C$5,\"Fail 1\",IF(E95<'Day Rate Minimums & Caps'!$D$5,\"Fail 3\",\"Pass\")))","v":"No Price"},null,"IT service manager","1. IT service analyst",0.49279538904899134,null,"IT service manager","1. IT service analyst",{"$f":"D95*O95","v":0},{"$f":"E95*O95","v":0}]
[null,null,"2. IT service manager",null,null,null,null,null,"2. IT service manager",{"$f":"IF(D96=\"\",\"No Price\",IF(D96>'Day Rate Minimums & Caps'!$C$4,\"Fail 1\",IF(D96<'Day Rate Minimums & Caps'!$D$4,\"Fail 3\",IF(D96<D95,\"Fail 2\",\"Pass\"))))","v":"No Price"},{"$f":"IF(E96=\"\",\"No Price\",IF(E96>'Day Rate Minimums & Caps'!$C$5,\"Fail 1\",IF(E96<'Day Rate Minimums & Caps'!$D$5,\"Fail 3\",IF(E96<E95,\"Fail 2\",\"Pass\"))))","v":"No Price"},null,null,"2. IT service manager",0.41066282420749278,null,null,"2. IT service manager",0,0]
[null,null,"3. Senior IT service manager",null,null,null,null,null,"3. Senior IT service manager",{"$f":"IF(D97=\"\",\"No Price\",IF(D97>'Day Rate Minimums & Caps'!$C$4,\"Fail 1\",IF(D97<'Day Rate Minimums & Caps'!$D$4,\"Fail 3\",IF(D97<D96,\"Fail 2\",\"Pass\"))))","v":"No Price"},{"$f":"IF(E97=\"\",\"No Price\",IF(E97>'Day Rate Minimums & Caps'!$C$5,\"Fail 1\",IF(E97<'Day Rate Minimums & Caps'!$D$5,\"Fail 3\",IF(E97<E96,\"Fail 2\",\"Pass\"))))","v":"No Price"},null,null,"3. Senior IT service manager",0.30115273775216139,null,null,"3. Senior IT service manager",0,0]
[null,null,"4. Head of IT service management",null,null,null,null,null,"4. Head of IT service management",{"$f":"IF(D98=\"\",\"No Price\",IF(D98>'Day Rate Minimums & Caps'!$C$4,\"Fail 1\",IF(D98<'Day Rate Minimums & Caps'!$D$4,\"Fail 3\",IF(D98<D97,\"Fail 2\",\"Pass\"))))","v":"No Price"},{"$f":"IF(E98=\"\",\"No Price\",IF(E98>'Day Rate Minimums & Caps'!$C$5,\"Fail 1\",IF(E98<'Day Rate Minimums & Caps'!$D$5,\"Fail 3\",IF(E98<E97,\"Fail 2\",\"Pass\"))))","v":"No Price"},null,null,"4. Head of IT service management",0.21902017291066284,null,null,"4. Head of IT service management",0,0]
[]
[null,"Incident manager","1. Incident manager",null,null,null,null,"Incident manager","1. Incident manager",{"$f":"IF(D100=\"\",\"No Price\",IF(D100>'Day Rate Minimums & Caps'!$C$4,\"Fail 1\",IF(D100<'Day Rate Minimums & Caps'!$D$4,\"Fail 3\",\"Pass\")))","v":"No Price"},{"$f":"IF(E100=\"\",\"No Price\",IF(E100>'Day Rate Minimums & Caps'!$C$5,\"Fail 1\",IF(E100<'Day Rate Minimums & Caps'!$D$5,\"Fail 3\",\"Pass\")))","v":"No Price"},null,"Incident manager","1. Incident manager",6.3291139240506333E-2,null,"Incident manager","1. Incident manager",{"$f":"D100*O100","v":0},{"$f":"E100*O100","v":0}]
[null,null,"2. Major incident manager",null,null,null,null,null,"2. Major incident manager",{"$f":"IF(D101=\"\",\"No Price\",IF(D101>'Day Rate Minimums & Caps'!$C$4,\"Fail 1\",IF(D101<'Day Rate Minimums & Caps'!$D$4,\"Fail 3\",IF(D101<D100,\"Fail 2\",\"Pass\"))))","v":"No Price"},{"$f":"IF(E101=\"\",\"No Price\",IF(E101>'Day Rate Minimums & Caps'!$C$5,\"Fail 1\",IF(E101<'Day Rate Minimums & Caps'!$D$5,\"Fail 3\",IF(E101<E100,\"Fail 2\",\"Pass\"))))","v":"No Price"},null,null,"2. Major incident manager",6.3291139240506333E-2,null,null,"2. Major incident manager",0,0]
[]
[null,"Infrastructure engineer","1. Associate infrastructure engineer",null,null,null,null,"Infrastructure engineer","1. Associate infrastructure engineer",{"$f":"IF(D103=\"\",\"No Price\",IF(D103>'Day Rate Minimums & Caps'!$C$4,\"Fail 1\",IF(D103<'Day Rate Minimums & Caps'!$D$4,\"Fail 3\",\"Pass\")))","v":"No Price"},{"$f":"IF(E103=\"\",\"No Price\",IF(E103>'Day Rate Minimums & Caps'!$C$5,\"Fail 1\",IF(E103<'Day Rate Minimums & Caps'!$D$5,\"Fail 3\",\"Pass\")))","v":"No Price"},null,"Infrastructure engineer","1. Associate infrastructure engineer",6.3291139240506333E-2,null,"Infrastructure engineer","1. Associate infrastructure engineer",{"$f":"D103*O103","v":0},{"$f":"E103*O103","v":0}]
[null,null,"2. Infrastructure engineer",null,null,null,null,null,"2. Infrastructure engineer",{"$f":"IF(D104=\"\",\"No Price\",IF(D104>'Day Rate Minimums & Caps'!$C$4,\"Fail 1\",IF(D104<'Day Rate Minimums & Caps'!$D$4,\"Fail 3\",IF(D104<D103,\"Fail 2\",\"Pass\"))))","v":"No Price"},{"$f":"IF(E104=\"\",\"No Price\",IF(E104>'Day Rate Minimums & Caps'!$C$5,\"Fail 1\",IF(E104<'Day Rate Minimums & Caps'!$D$5,\"Fail 3\",IF(E104<E103,\"Fail 2\",\"Pass\"))))","v":"No Price"},null,null,"2. Infrastructure engineer",0.7391930835734869,null,null,"2. Infrastructure engineer",0,0]
[null,null,"3. Senior infrastructure engineer",null,null,null,null,null,"3. Senior infrastructure engineer",{"$f":"IF(D105=\"\",\"No Price\",IF(D105>'Day Rate Minimums & Caps'!$C$4,\"Fail 1\",IF(D105<'Day Rate Minimums & Caps'!$D$4,\"Fail 3\",IF(D105<D104,\"Fail 2\",\"Pass\"))))","v":"No Price"},{"$f":"IF(E105=\"\",\"No Price\",IF(E105>'Day Rate Minimums & Caps'!$C$5,\"Fail 1\",IF(E105<'Day Rate Minimums & Caps'!$D$5,\"Fail 3\",IF(E105<E104,\"Fail 2\",\"Pass\"))))","v":"No Price"},null,null,"3. Senior infrastructure engineer",1.9438040345821324,null,null,"3. Senior infrastructure engineer",0,0]
[null,null,"4. Lead infrastructure engineer",null,null,null,null,null,"4. Lead infrastructure engineer",{"$f":"IF(D106=\"\",\"No Price\",IF(D106>'Day Rate Minimums & Caps'!$C$4,\"Fail 1\",IF(D106<'Day Rate Minimums & Caps'!$D$4,\"Fail 3\",IF(D106<D105,\"Fail 2\",\"Pass\"))))","v":"No Price"},{"$f":"IF(E106=\"\",\"No Price\",IF(E106>'Day Rate Minimums & Caps'!$C$5,\"Fail 1\",IF(E106<'Day Rate Minimums & Caps'!$D$5,\"Fail 3\",IF(E106<E105,\"Fail 2\",\"Pass\"))))","v":"No Price"},null,null,"4. Lead infrastructure engineer",1.8069164265129682,null,null,"4. Lead infrastructure engineer",0,0]
[null,null,"5. Principal infrastructure engineer",null,null,null,null,null,"5. Principal infrastructure engineer",{"$f":"IF(D107=\"\",\"No Price\",IF(D107>'Day Rate Minimums & Caps'!$C$4,\"Fail 1\",IF(D107<'Day Rate Minimums & Caps'!$D$4,\"Fail 3\",IF(D107<D106,\"Fail 2\",\"Pass\"))))","v":"No Price"},{"$f":"IF(E107=\"\",\"No Price\",IF(E107>'Day Rate Minimums & Caps'!$C$5,\"Fail 1\",IF(E107<'Day Rate Minimums & Caps'!$D$5,\"Fail 3\",IF(E107<E106,\"Fail 2\",\"Pass\"))))","v":"No Price"},null,null,"5. Principal infrastructure engineer",0.43804034582132562,null,null,"5. Principal infrastructure engineer",0,0]
[]
[null,"Infrastructure operations engineer","1. Associate infrastructure operations engineer",null,null,null,null,"Infrastructure operations engineer","1. Associate infrastructure operations engineer",{"$f":"IF(D109=\"\",\"No Price\",IF(D109>'Day Rate Minimums & Caps'!$C$4,\"Fail 1\",IF(D109<'Day Rate Minimums & Caps'!$D$4,\"Fail 3\",\"Pass\")))","v":"No Price"},{"$f":"IF(E109=\"\",\"No Price\",IF(E109>'Day Rate Minimums & Caps'!$C$5,\"Fail 1\",IF(E109<'Day Rate Minimums & Caps'!$D$5,\"Fail 3\",\"Pass\")))","v":"No Price"},null,"Infrastructure operations engineer","1. Associate infrastructure operations engineer",6.3291139240506333E-2,null,"Infrastructure operations engineer","1. Associate infrastructure operations engineer",{"$f":"D109*O109","v":0},{"$f":"E109*O109","v":0}]
[null,null,"2. Infrastructure operations engineer",null,null,null,null,null,"2. Infrastructure operations engineer",{"$f":"IF(D110=\"\",\"No Price\",IF(D110>'Day Rate Minimums & Caps'!$C$4,\"Fail 1\",IF(D110<'Day Rate Minimums & Caps'!$D$4,\"Fail 3\",IF(D110<D109,\"Fail 2\",\"Pass\"))))","v":"No Price"},{"$f":"IF(E110=\"\",\"No Price\",IF(E110>'Day Rate Minimums & Caps'!$C$5,\"Fail 1\",IF(E110<'Day Rate Minimums & Caps'!$D$5,\"Fail 3\",IF(E110<E109,\"Fail 2\",\"Pass\"))))","v":"No Price"},null,null,"2. Infrastructure operations engineer",6.3291139240506333E-2,null,null,"2. Infrastructure operations engineer",0,0]
[null,null,"3. Senior infrastructure operations engineer",null,null,null,null,null,"3. Senior infrastructure operations engineer",{"$f":"IF(D111=\"\",\"No Price\",IF(D111>'Day Rate Minimums & Caps'!$C$4,\"Fail 1\",IF(D111<'Day Rate Minimums & Caps'!$D$4,\"Fail 3\",IF(D111<D110,\"Fail 2\",\"Pass\"))))","v":"No Price"},{"$f":"IF(E111=\"\",\"No Price\",IF(E111>'Day Rate Minimums & Caps'!$C$5,\"Fail 1\",IF(E111<'Day Rate Minimums & Caps'!$D$5,\"Fail 3\",IF(E111<E110,\"Fail 2\",\"Pass\"))))","v":"No Price"},null,null,"3. Senior infrastructure operations engineer",6.3291139240506333E-2,null,null,"3. Senior infrastructure operations engineer",0,0]
[null,null,"4. Lead infrastructure operations engineer",null,null,null,null,null,"4. Lead infrastructure operations engineer",{"$f":"IF(D112=\"\",\"No Price\",IF(D112>'Day Rate Minimums & Caps'!$C$4,\"Fail 1\",IF(D112<'Day Rate Minimums & Caps'!$D$4,\"Fail 3\",IF(D112<D111,\"Fail 2\",\"Pass\"))))","v":"No Price"},{"$f":"IF(E112=\"\",\"No Price\",IF(E112>'Day Rate Minimums & Caps'!$C$5,\"Fail 1\",IF(E112<'Day Rate Minimums & Caps'!$D$5,\"Fail 3\",IF(E112<E111,\"Fail 2\",\"Pass\"))))","v":"No Price"},null,null,"4. Lead infrastructure operations engineer",6.3291139240506333E-2,null,null,"4. Lead infrastructure operations engineer",0,0]
[null,null,"5. Principal infrastructure operations engineer",null,null,null,null,null,"5. Principal infrastructure operations engineer",{"$f":"IF(D113=\"\",\"No Price\",IF(D113>'Day Rate Minimums & Caps'!$C$4,\"Fail 1\",IF(D113<'Day Rate Minimums & Caps'!$D$4,\"Fail 3\",IF(D113<D112,\"Fail 2\",\"Pass\"))))","v":"No Price"},{"$f":"IF(E113=\"\",\"No Price\",IF(E113>'Day Rate Minimums & Caps'!$C$5,\"Fail 1\",IF(E113<'Day Rate Minimums & Caps'!$D$5,\"Fail 3\",IF(E113<E112,\"Fail 2\",\"Pass\"))))","v":"No Price"},null,null,"5. Principal infrastructure operations engineer",6.3291139240506333E-2,null,null,"5. Principal infrastructure operations engineer",0,0]
[]
[null,"Problem manager","1. Problem analyst",null,null,null,null,"Problem manager","1. Problem analyst",{"$f":"IF(D115=\"\",\"No Price\",IF(D115>'Day Rate Minimums & Caps'!$C$4,\"Fail 1\",IF(D115<'Day Rate Minimums & Caps'!$D$4,\"Fail 3\",\"Pass\")))","v":"No Price"},{"$f":"IF(E115=\"\",\"No Price\",IF(E115>'Day Rate Minimums & Caps'!$C$5,\"Fail 1\",IF(E115<'Day Rate Minimums & Caps'!$D$5,\"Fail 3\",\"Pass\")))","v":"No Price"},null,"Problem manager","1. Problem analyst",2.7377521613832854E-2,null,"Problem manager","1. Problem analyst",{"$f":"D115*O115","v":0},{"$f":"E115*O115","v":0}]
[null,null,"2. Problem manager",null,null,null,null,null,"2. Problem manager",{"$f":"IF(D116=\"\",\"No Price\",IF(D116>'Day Rate Minimums & Caps'!$C$4,\"Fail 1\",IF(D116<'Day Rate Minimums & Caps'!$D$4,\"Fail 3\",IF(D116<D115,\"Fail 2\",\"Pass\"))))","v":"No Price"},{"$f":"IF(E116=\"\",\"No Price\",IF(E116>'Day Rate Minimums & Caps'!$C$5,\"Fail 1\",IF(E116<'Day Rate Minimums & Caps'!$D$5,\"Fail 3\",IF(E116<E115,\"Fail 2\",\"Pass\"))))","v":"No Price"},null,null,"2. Problem manager",5.4755043227665709E-2,null,null,"2. Problem manager",0,0]
[]
[null,"Service desk manager","1. Service desk analyst",null,null,null,null,"Service desk manager","1. Service desk analyst",{"$f":"IF(D118=\"\",\"No Price\",IF(D118>'Day Rate Minimums & Caps'!$C$4,\"Fail 1\",IF(D118<'Day Rate Minimums & Caps'!$D$4,\"Fail 3\",\"Pass\")))","v":"No Price"},{"$f":"IF(E118=\"\",\"No Price\",IF(E118>'Day Rate Minimums & Caps'!$C$5,\"Fail 1\",IF(E118<'Day Rate Minimums & Caps'!$D$5,\"Fail 3\",\"Pass\")))","v":"No Price"},null,"Service desk manager","1. Service desk analyst",6.3291139240506333E-2,null,"Service desk manager","1. Service desk analyst",{"$f":"D118*O118","v":0},{"$f":"E118*O118","v":0}]
[null,null,"2. Senior service desk analyst",null,null,null,null,null,"2. Senior service desk analyst",{"$f":"IF(D119=\"\",\"No Price\",IF(D119>'Day Rate Minimums & Caps'!$C$4,\"Fail 1\",IF(D119<'Day Rate Minimums & Caps'!$D$4,\"Fail 3\",IF(D119<D118,\"Fail 2\",\"Pass\"))))","v":"No Price"},{"$f":"IF(E119=\"\",\"No Price\",IF(E119>'Day Rate Minimums & Caps'!$C$5,\"Fail 1\",IF(E119<'Day Rate Minimums & Caps'!$D$5,\"Fail 3\",IF(E119<E118,\"Fail 2\",\"Pass\"))))","v":"No Price"},null,null,"2. Senior service desk analyst",0.21902017291066284,null,null,"2. Senior service desk analyst",0,0]
[null,null,"3. Service desk manager",null,null,null,null,null,"3. Service desk manager",{"$f":"IF(D120=\"\",\"No Price\",IF(D120>'Day Rate Minimums & Caps'!$C$4,\"Fail 1\",IF(D120<'Day Rate Minimums & Caps'!$D$4,\"Fail 3\",IF(D120<D119,\"Fail 2\",\"Pass\"))))","v":"No Price"},{"$f":"IF(E120=\"\",\"No Price\",IF(E120>'Day Rate Minimums & Caps'!$C$5,\"Fail 1\",IF(E120<'Day Rate Minimums & Caps'!$D$5,\"Fail 3\",IF(E120<E119,\"Fail 2\",\"Pass\"))))","v":"No Price"},null,null,"3. Service desk manager",6.3291139240506333E-2,null,null,"3. Service desk manager",0,0]
[null,null,"4. Head of service desk",null,null,null,null,null,"4. Head of service desk",{"$f":"IF(D121=\"\",\"No Price\",IF(D121>'Day Rate Minimums & Caps'!$C$4,\"Fail 1\",IF(D121<'Day Rate Minimums & Caps'!$D$4,\"Fail 3\",IF(D121<D120,\"Fail 2\",\"Pass\"))))","v":"No Price"},{"$f":"IF(E121=\"\",\"No Price\",IF(E121>'Day Rate Minimums & Caps'!$C$5,\"Fail 1\",IF(E121<'Day Rate Minimums & Caps'!$D$5,\"Fail 3\",IF(E121<E120,\"Fail 2\",\"Pass\"))))","v":"No Price"},null,null,"4. Head of service desk",2.7377521613832854E-2,null,null,"4. Head of service desk",0,0]
[]
[null,"Service transition manager","1. Service acceptance analyst",null,null,null,null,"Service transition manager","1. Service acceptance analyst",{"$f":"IF(D123=\"\",\"No Price\",IF(D123>'Day Rate Minimums & Caps'!$C$4,\"Fail 1\",IF(D123<'Day Rate Minimums & Caps'!$D$4,\"Fail 3\",\"Pass\")))","v":"No Price"},{"$f":"IF(E123=\"\",\"No Price\",IF(E123>'Day Rate Minimums & Caps'!$C$5,\"Fail 1\",IF(E123<'Day Rate Minimums & Caps'!$D$5,\"Fail 3\",\"Pass\")))","v":"No Price"},null,"Service transition manager","1. Service acceptance analyst",6.3291139240506333E-2,null,"Service transition manager","1. Service acceptance analyst",{"$f":"D123*O123","v":0},{"$f":"E123*O123","v":0}]
[null,null,"2. Service readiness analyst",null,null,null,null,null,"2. Service readiness analyst",{"$f":"IF(D124=\"\",\"No Price\",IF(D124>'Day Rate Minimums & Caps'!$C$4,\"Fail 1\",IF(D124<'Day Rate Minimums & Caps'!$D$4,\"Fail 3\",IF(D124<D123,\"Fail 2\",\"Pass\"))))","v":"No Price"},{"$f":"IF(E124=\"\",\"No Price\",IF(E124>'Day Rate Minimums & Caps'!$C$5,\"Fail 1\",IF(E124<'Day Rate Minimums & Caps'!$D$5,\"Fail 3\",IF(E124<E123,\"Fail 2\",\"Pass\"))))","v":"No Price"},null,null,"2. Service readiness analyst",6.3291139240506333E-2,null,null,"2. Service readiness analyst",0,0]
[null,null,"3. Service transition manager",null,null,null,null,null,"3. Service transition manager",{"$f":"IF(D125=\"\",\"No Price\",IF(D125>'Day Rate Minimums & Caps'!$C$4,\"Fail 1\",IF(D125<'Day Rate Minimums & Caps'!$D$4,\"Fail 3\",IF(D125<D124,\"Fail 2\",\"Pass\"))))","v":"No Price"},{"$f":"IF(E125=\"\",\"No Price\",IF(E125>'Day Rate Minimums & Caps'!$C$5,\"Fail 1\",IF(E125<'Day Rate Minimums & Caps'!$D$5,\"Fail 3\",IF(E125<E124,\"Fail 2\",\"Pass\"))))","v":"No Price"},null,null,"3. Service transition manager",2.7377521613832854E-2,null,null,"3. Service transition manager",0,0]
[null,null,"4. Lead service transition manager",null,null,null,null,null,"4. Lead service transition manager",{"$f":"IF(D126=\"\",\"No Price\",IF(D126>'Day Rate Minimums & Caps'!$C$4,\"Fail 1\",IF(D126<'Day Rate Minimums & Caps'!$D$4,\"Fail 3\",IF(D126<D125,\"Fail 2\",\"Pass\"))))","v":"No Price"},{"$f":"IF(E126=\"\",\"No Price\",IF(E126>'Day Rate Minimums & Caps'!$C$5,\"Fail 1\",IF(E126<'Day Rate Minimums & Caps'!$D$5,\"Fail 3\",IF(E126<E125,\"Fail 2\",\"Pass\"))))","v":"No Price"},null,null,"4. Lead service transition manager",0.13688760806916425,null,null,"4. Lead service transition manager",0,0]
[]
[null,"Product and delivery roles",null,"National","London",null,null,"Product and delivery roles",null,"National","London",null,"Product and delivery roles",null,"Evaluation Weighting",null,"Product and delivery roles",null,"Weighted Price National","Weighted Price London"]
[null,"Business analyst","1. Trainee business analyst",null,null,null,null,"Business analyst","1. Trainee business analyst",{"$f":"IF(D129=\"\",\"No Price\",IF(D129>'Day Rate Minimums & Caps'!$C$4,\"Fail 1\",IF(D129<'Day Rate Minimums & Caps'!$D$4,\"Fail 3\",\"Pass\")))","v":"No Price"},{"$f":"IF(E129=\"\",\"No Price\",IF(E129>'Day Rate Minimums & Caps'!$C$5,\"Fail 1\",IF(E129<'Day Rate Minimums & Caps'!$D$5,\"Fail 3\",\"Pass\")))","v":"No Price"},null,"Business analyst","1. Trainee business analyst",6.3291139240506333E-2,null,"Business analyst","1. Trainee business analyst",{"$f":"D129*O129","v":0},{"$f":"E129*O129","v":0}]
[null,null,"2. Junior business analyst",null,null,null,null,null,"2. Junior business analyst",{"$f":"IF(D130=\"\",\"No Price\",IF(D130>'Day Rate Minimums & Caps'!$C$4,\"Fail 1\",IF(D130<'Day Rate Minimums & Caps'!$D$4,\"Fail 3\",IF(D130<D129,\"Fail 2\",\"Pass\"))))","v":"No Price"},{"$f":"IF(E130=\"\",\"No Price\",IF(E130>'Day Rate Minimums & Caps'!$C$5,\"Fail 1\",IF(E130<'Day Rate Minimums & Caps'!$D$5,\"Fail 3\",IF(E130<E129,\"Fail 2\",\"Pass\"))))","v":"No Price"},null,null,"2. Junior business analyst",0.84870317002881845,null,null,"2. Junior business analyst",0,0]
[null,null,"3. Business analyst",null,null,null,null,null,"3. Business analyst",{"$f":"IF(D131=\"\",\"No Price\",IF(D131>'Day Rate Minimums & Caps'!$C$4,\"Fail 1\",IF(D131<'Day Rate Minimums & Caps'!$D$4,\"Fail 3\",IF(D131<D130,\"Fail 2\",\"Pass\"))))","v":"No Price"},{"$f":"IF(E131=\"\",\"No Price\",IF(E131>'Day Rate Minimums & Caps'!$C$5,\"Fail 1\",IF(E131<'Day Rate Minimums & Caps'!$D$5,\"Fail 3\",IF(E131<E130,\"Fail 2\",\"Pass\"))))","v":"No Price"},null,null,"3. Business analyst",3.7233429394812676,null,null,"3. Business analyst",0,0]
[null,null,"4. Senior business analyst",null,null,null,null,null,"4. Senior business analyst",{"$f":"IF(D132=\"\",\"No Price\",IF(D132>'Day Rate Minimums & Caps'!$C$4,\"Fail 1\",IF(D132<'Day Rate Minimums & Caps'!$D$4,\"Fail 3\",IF(D132<D131,\"Fail 2\",\"Pass\"))))","v":"No Price"},{"$f":"IF(E132=\"\",\"No Price\",IF(E132>'Day Rate Minimums & Caps'!$C$5,\"Fail 1\",IF(E132<'Day Rate Minimums & Caps'!$D$5,\"Fail 3\",IF(E132<E131,\"Fail 2\",\"Pass\"))))","v":"No Price"},null,null,"4. Senior business analyst",5.4755043227665698,null,null,"4. Senior business analyst",0,0]
[null,null,"5. Lead business analyst",null,null,null,null,null,"5. Lead business analyst",{"$f":"IF(D133=\"\",\"No Price\",IF(D133>'Day Rate Minimums & Caps'!$C$4,\"Fail 1\",IF(D133<'Day Rate Minimums & Caps'!$D$4,\"Fail 3\",IF(D133<D132,\"Fail 2\",\"Pass\"))))","v":"No Price"},{"$f":"IF(E133=\"\",\"No Price\",IF(E133>'Day Rate Minimums & Caps'!$C$5,\"Fail 1\",IF(E133<'Day Rate Minimums & Caps'!$D$5,\"Fail 3\",IF(E133<E132,\"Fail 2\",\"Pass\"))))","v":"No Price"},null,null,"5. Lead business analyst",1.9711815561959654,null,null,"5. Lead business analyst",0,0]
[null,null,"6. Head of business analysis",null,null,null,null,null,"6. Head of business analysis",{"$f":"IF(D134=\"\",\"No Price\",IF(D134>'Day Rate Minimums & Caps'!$C$4,\"Fail 1\",IF(D134<'Day Rate Minimums & Caps'!$D$4,\"Fail 3\",IF(D134<D133,\"Fail 2\",\"Pass\"))))","v":"No Price"},{"$f":"IF(E134=\"\",\"No Price\",IF(E134>'Day Rate Minimums & Caps'!$C$5,\"Fail 1\",IF(E134<'Day Rate Minimums & Caps'!$D$5,\"Fail 3\",IF(E134<E133,\"Fail 2\",\"Pass\"))))","v":"No Price"},null,null,"6. Head of business analysis",6.3291139240506333E-2,null,null,"6. Head of business analysis",0,0]
[]
[null,"Delivery manager","1. Associate delivery manager",null,null,null,null,"Delivery manager","1. Associate delivery manager",{"$f":"IF(D136=\"\",\"No Price\",IF(D136>'Day Rate Minimums & Caps'!$C$4,\"Fail 1\",IF(D136<'Day Rate Minimums & Caps'!$D$4,\"Fail 3\",\"Pass\")))","v":"No Price"},{"$f":"IF(E136=\"\",\"No Price\",IF(E136>'Day Rate Minimums & Caps'!$C$5,\"Fail 1\",IF(E136<'Day Rate Minimums & Caps'!$D$5,\"Fail 3\",\"Pass\")))","v":"No Price"},null,"Delivery manager","1. Associate delivery manager",0.95821325648414979,null,"Delivery manager","1. Associate delivery manager",{"$f":"D136*O136","v":0},{"$f":"E136*O136","v":0}]
[null,null,"2. Delivery manager",null,null,null,null,null,"2. Delivery manager",{"$f":"IF(D137=\"\",\"No Price\",IF(D137>'Day Rate Minimums & Caps'!$C$4,\"Fail 1\",IF(D137<'Day Rate Minimums & Caps'!$D$4,\"Fail 3\",IF(D137<D136,\"Fail 2\",\"Pass\"))))","v":"No Price"},{"$f":"IF(E137=\"\",\"No Price\",IF(E137>'Day Rate Minimums & Caps'!$C$5,\"Fail 1\",IF(E137<'Day Rate Minimums & Caps'!$D$5,\"Fail 3\",IF(E137<E136,\"Fail 2\",\"Pass\"))))","v":"No Price"},null,null,"2. Delivery manager",4.9279538904899134,null,null,"2. Delivery manager",0,0]
[null,null,"3. Senior delivery manager",null,null,null,null,null,"3. Senior delivery manager",{"$f":"IF(D138=\"\",\"No Price\",IF(D138>'Day Rate Minimums & Caps'!$C$4,\"Fail 1\",IF(D138<'Day Rate Minimums & Caps'!$D$4,\"Fail 3\",IF(D138<D137,\"Fail 2\",\"Pass\"))))","v":"No Price"},{"$f":"IF(E138=\"\",\"No Price\",IF(E138>'Day Rate Minimums & Caps'!$C$5,\"Fail 1\",IF(E138<'Day Rate Minimums & Caps'!$D$5,\"Fail 3\",IF(E138<E137,\"Fail 2\",\"Pass\"))))","v":"No Price"},null,null,"3. Senior delivery manager",3.5590778097982709,null,null,"3. Senior delivery manager",0,0]
[null,null,"4. Head of (Agile) delivery management",null,null,null,null,null,"4. Head of (Agile) delivery management",{"$f":"IF(D139=\"\",\"No Price\",IF(D139>'Day Rate Minimums & Caps'!$C$4,\"Fail 1\",IF(D139<'Day Rate Minimums & Caps'!$D$4,\"Fail 3\",IF(D139<D138,\"Fail 2\",\"Pass\"))))","v":"No Price"},{"$f":"IF(E139=\"\",\"No Price\",IF(E139>'Day Rate Minimums & Caps'!$C$5,\"Fail 1\",IF(E139<'Day Rate Minimums & Caps'!$D$5,\"Fail 3\",IF(E139<E138,\"Fail 2\",\"Pass\"))))","v":"No Price"},null,null,"4. Head of (Agile) delivery management",0.35590778097982706,null,null,"4. Head of (Agile) delivery management",0,0]
[]
[null,"Digital portfolio manager","1. Digital portfolio analyst",null,null,null,null,"Digital portfolio manager","1. Digital portfolio analyst",{"$f":"IF(D141=\"\",\"No Price\",IF(D141>'Day Rate Minimums & Caps'!$C$4,\"Fail 1\",IF(D141<'Day Rate Minimums & Caps'!$D$4,\"Fail 3\",\"Pass\")))","v":"No Price"},{"$f":"IF(E141=\"\",\"No Price\",IF(E141>'Day Rate Minimums & Caps'!$C$5,\"Fail 1\",IF(E141<'Day Rate Minimums & Caps'!$D$5,\"Fail 3\",\"Pass\")))","v":"No Price"},null,"Digital portfolio manager","1. Digital portfolio analyst",6.3291139240506333E-2,null,"Digital portfolio manager","1. Digital portfolio analyst",{"$f":"D141*O141","v":0},{"$f":"E141*O141","v":0}]
[null,null,"2. Digital portfolio manager",null,null,null,null,null,"2. Digital portfolio manager",{"$f":"IF(D142=\"\",\"No Price\",IF(D142>'Day Rate Minimums & Caps'!$C$4,\"Fail 1\",IF(D142<'Day Rate Minimums & Caps'!$D$4,\"Fail 3\",IF(D142<D141,\"Fail 2\",\"Pass\"))))","v":"No Price"},{"$f":"IF(E142=\"\",\"No Price\",IF(E142>'Day Rate Minimums & Caps'!$C$5,\"Fail 1\",IF(E142<'Day Rate Minimums & Caps'!$D$5,\"Fail 3\",IF(E142<E141,\"Fail 2\",\"Pass\"))))","v":"No Price"},null,null,"2. Digital portfolio manager",6.3291139240506333E-2,null,null,"2. Digital portfolio manager",0,0]
[null,null,"3. Senior digital portfolio manager",null,null,null,null,null,"3. Senior digital portfolio manager",{"$f":"IF(D143=\"\",\"No Price\",IF(D143>'Day Rate Minimums & Caps'!$C$4,\"Fail 1\",IF(D143<'Day Rate Minimums & Caps'!$D$4,\"Fail 3\",IF(D143<D142,\"Fail 2\",\"Pass\"))))","v":"No Price"},{"$f":"IF(E143=\"\",\"No Price\",IF(E143>'Day Rate Minimums & Caps'!$C$5,\"Fail 1\",IF(E143<'Day Rate Minimums & Caps'!$D$5,\"Fail 3\",IF(E143<E142,\"Fail 2\",\"Pass\"))))","v":"No Price"},null,null,"3. Senior digital portfolio manager",6.3291139240506333E-2,null,null,"3. Senior digital portfolio manager",0,0]
[null,null,"4. Head of portfolio",null,null,null,null,null,"4. Head of portfolio",{"$f":"IF(D144=\"\",\"No Price\",IF(D144>'Day Rate Minimums & Caps'!$C$4,\"Fail 1\",IF(D144<'Day Rate Minimums & Caps'!$D$4,\"Fail 3\",IF(D144<D143,\"Fail 2\",\"Pass\"))))","v":"No Price"},{"$f":"IF(E144=\"\",\"No Price\",IF(E144>'Day Rate Minimums & Caps'!$C$5,\"Fail 1\",IF(E144<'Day Rate Minimums & Caps'!$D$5,\"Fail 3\",IF(E144<E143,\"Fail 2\",\"Pass\"))))","v":"No Price"},null,null,"4. Head of portfolio",6.3291139240506333E-2,null,null,"4. Head of portfolio",0,0]
[]
[null,"Product manager","1. Associate product manager",null,null,null,null,"Product manager","1. Associate product manager",{"$f":"IF(D146=\"\",\"No Price\",IF(D146>'Day Rate Minimums & Caps'!$C$4,\"Fail 1\",IF(D146<'Day Rate Minimums & Caps'!$D$4,\"Fail 3\",\"Pass\")))","v":"No Price"},{"$f":"IF(E146=\"\",\"No Price\",IF(E146>'Day Rate Minimums & Caps'!$C$5,\"Fail 1\",IF(E146<'Day Rate Minimums & Caps'!$D$5,\"Fail 3\",\"Pass\")))","v":"No Price"},null,"Product manager","1. Associate product manager",0.10951008645533142,null,"Product manager","1. Associate product manager",{"$f":"D146*O146","v":0},{"$f":"E146*O146","v":0}]
[null,null,"2. Product manager",null,null,null,null,null,"2. Product manager",{"$f":"IF(D147=\"\",\"No Price\",IF(D147>'Day Rate Minimums & Caps'!$C$4,\"Fail 1\",IF(D147<'Day Rate Minimums & Caps'!$D$4,\"Fail 3\",IF(D147<D146,\"Fail 2\",\"Pass\"))))","v":"No Price"},{"$f":"IF(E147=\"\",\"No Price\",IF(E147>'Day Rate Minimums & Caps'!$C$5,\"Fail 1\",IF(E147<'Day Rate Minimums & Caps'!$D$5,\"Fail 3\",IF(E147<E146,\"Fail 2\",\"Pass\"))))","v":"No Price"},null,null,"2. Product manager",0.21902017291066284,null,null,"2. Product manager",0,0]
[null,null,"3. Senior product manager",null,null,null,null,null,"3. Senior product manager",{"$f":"IF(D148=\"\",\"No Price\",IF(D148>'Day Rate Minimums & Caps'!$C$4,\"Fail 1\",IF(D148<'Day Rate Minimums & Caps'!$D$4,\"Fail 3\",IF(D148<D147,\"Fail 2\",\"Pass\"))))","v":"No Price"},{"$f":"IF(E148=\"\",\"No Price\",IF(E148>'Day Rate Minimums & Caps'!$C$5,\"Fail 1\",IF(E148<'Day Rate Minimums & Caps'!$D$5,\"Fail 3\",IF(E148<E147,\"Fail 2\",\"Pass\"))))","v":"No Price"},null,null,"3. Senior product manager",1.8069164265129682,null,null,"3. Senior product manager",0,0]
[null,null,"4. Lead product manager",null,null,null,null,null,"4. Lead product manager",{"$f":"IF(D149=\"\",\"No Price\",IF(D149>'Day Rate Minimums & Caps'!$C$4,\"Fail 1\",IF(D149<'Day Rate Minimums & Caps'!$D$4,\"Fail 3\",IF(D149<D148,\"Fail 2\",\"Pass\"))))","v":"No Price"},{"$f":"IF(E149=\"\",\"No Price\",IF(E149>'Day Rate Minimums & Caps'!$C$5,\"Fail 1\",IF(E149<'Day Rate Minimums & Caps'!$D$5,\"Fail 3\",IF(E149<E148,\"Fail 2\",\"Pass\"))))","v":"No Price"},null,null,"4. Lead product manager",1.4510086455331412,null,null,"4. Lead product manager",0,0]
[null,null,"5. Head of product",null,null,null,null,null,"5. Head of product",{"$f":"IF(D150=\"\",\"No Price\",IF(D150>'Day Rate Minimums & Caps'!$C$4,\"Fail 1\",IF(D150<'Day Rate Minimums & Caps'!$D$4,\"Fail 3\",IF(D150<D149,\"Fail 2\",\"Pass\"))))","v":"No Price"},{"$f":"IF(E150=\"\",\"No Price\",IF(E150>'Day Rate Minimums & Caps'!$C$5,\"Fail 1\",IF(E150<'Day Rate Minimums & Caps'!$D$5,\"Fail 3\",IF(E150<E149,\"Fail 2\",\"Pass\"))))","v":"No Price"},null,null,"5. Head of product",0.90345821325648412,null,null,"5. Head of product",0,0]
[]
[null,"Programme delivery manager","1. Programme delivery manager",null,null,null,null,"Programme delivery manager","1. Programme delivery manager",{"$f":"IF(D152=\"\",\"No Price\",IF(D152>'Day Rate Minimums & Caps'!$C$4,\"Fail 1\",IF(D152<'Day Rate Minimums & Caps'!$D$4,\"Fail 3\",\"Pass\")))","v":"No Price"},{"$f":"IF(E152=\"\",\"No Price\",IF(E152>'Day Rate Minimums & Caps'!$C$5,\"Fail 1\",IF(E152<'Day Rate Minimums & Caps'!$D$5,\"Fail 3\",\"Pass\")))","v":"No Price"},null,"Programme delivery manager","1. Programme delivery manager",1.3962536023054755,null,"Programme delivery manager","1. Programme delivery manager",{"$f":"D152*O152","v":0},{"$f":"E152*O152","v":0}]
[]
[null,"Service owner","1. Service owner",null,null,null,null,"Service owner","1. Service owner",{"$f":"IF(D154=\"\",\"No Price\",IF(D154>'Day Rate Minimums & Caps'!$C$4,\"Fail 1\",IF(D154<'Day Rate Minimums & Caps'!$D$4,\"Fail 3\",\"Pass\")))","v":"No Price"},{"$f":"IF(E154=\"\",\"No Price\",IF(E154>'Day Rate Minimums & Caps'!$C$5,\"Fail 1\",IF(E154<'Day Rate Minimums & Caps'!$D$5,\"Fail 3\",\"Pass\")))","v":"No Price"},null,"Service owner","1. Service owner",2.7377521613832854E-2,null,"Service owner","1. Service owner",{"$f":"D154*O154","v":0},{"$f":"E154*O154","v":0}]
[]
[null,"Quality assurance testing (QAT) roles",null,"National","London",null,null,"Quality assurance testing (QAT) roles",null,"National","London",null,"Quality assurance testing (QAT) roles",null,"Evaluation Weighting",null,"Quality assurance testing (QAT) roles",null,"Weighted Price National","Weighted Price London"]
[null,"Quality assurance testing (QAT) analyst","1. Tester (QAT)",null,null,null,null,"Quality assurance testing (QAT) analyst","1. Tester (QAT)",{"$f":"IF(D157=\"\",\"No Price\",IF(D157>'Day Rate Minimums & Caps'!$C$4,\"Fail 1\",IF(D157<'Day Rate Minimums & Caps'!$D$4,\"Fail 3\",\"Pass\")))","v":"No Price"},{"$f":"IF(E157=\"\",\"No Price\",IF(E157>'Day Rate Minimums & Caps'!$C$5,\"Fail 1\",IF(E157<'Day Rate Minimums & Caps'!$D$5,\"Fail 3\",\"Pass\")))","v":"No Price"},null,"Quality assurance testing (QAT) analyst","1. Tester (QAT)",0.21902017291066284,null,"Quality assurance testing (QAT) analyst","1. Tester (QAT)",{"$f":"D157*O157","v":0},{"$f":"E157*O157","v":0}]
[null,null,"2. QAT analyst",null,null,null,null,null,"2. QAT analyst",{"$f":"IF(D158=\"\",\"No Price\",IF(D158>'Day Rate Minimums & Caps'!$C$4,\"Fail 1\",IF(D158<'Day Rate Minimums & Caps'!$D$4,\"Fail 3\",IF(D158<D157,\"Fail 2\",\"Pass\"))))","v":"No Price"},{"$f":"IF(E158=\"\",\"No Price\",IF(E158>'Day Rate Minimums & Caps'!$C$5,\"Fail 1\",IF(E158<'Day Rate Minimums & Caps'!$D$5,\"Fail 3\",IF(E158<E157,\"Fail 2\",\"Pass\"))))","v":"No Price"},null,null,"2. QAT analyst",0.10951008645533142,null,null,"2. QAT analyst",0,0]
[null,null,"3. Senior QAT analyst",null,null,null,null,null,"3. Senior QAT analyst",{"$f":"IF(D159=\"\",\"No Price\",IF(D159>'Day Rate Minimums & Caps'!$C$4,\"Fail 1\",IF(D159<'Day Rate Minimums & Caps'!$D$4,\"Fail 3\",IF(D159<D158,\"Fail 2\",\"Pass\"))))","v":"No Price"},{"$f":"IF(E159=\"\",\"No Price\",IF(E159>'Day Rate Minimums & Caps'!$C$5,\"Fail 1\",IF(E159<'Day Rate Minimums & Caps'!$D$5,\"Fail 3\",IF(E159<E158,\"Fail 2\",\"Pass\"))))","v":"No Price"},null,null,"3. Senior QAT analyst",1.095100864553314,null,null,"3. Senior QAT analyst",0,0]
[null,null,"4. Lead QAT analyst",null,null,null,null,null,"4. Lead QAT analyst",{"$f":"IF(D160=\"\",\"No Price\",IF(D160>'Day Rate Minimums & Caps'!$C$4,\"Fail 1\",IF(D160<'Day Rate Minimums & Caps'!$D$4,\"Fail 3\",IF(D160<D159,\"Fail 2\",\"Pass\"))))","v":"No Price"},{"$f":"IF(E160=\"\",\"No Price\",IF(E160>'Day Rate Minimums & Caps'!$C$5,\"Fail 1\",IF(E160<'Day Rate Minimums & Caps'!$D$5,\"Fail 3\",IF(E160<E159,\"Fail 2\",\"Pass\"))))","v":"No Price"},null,null,"4. Lead QAT analyst",0.98559077809798268,null,null,"4. Lead QAT analyst",0,0]
[]
[null,"Test engineer","1. Tester (test engineer)",null,null,null,null,"Test engineer","1. Tester (test engineer)",{"$f":"IF(D162=\"\",\"No Price\",IF(D162>'Day Rate Minimums & Caps'!$C$4,\"Fail 1\",IF(D162<'Day Rate Minimums & Caps'!$D$4,\"Fail 3\",\"Pass\")))","v":"No Price"},{"$f":"IF(E162=\"\",\"No Price\",IF(E162>'Day Rate Minimums & Caps'!$C$5,\"Fail 1\",IF(E162<'Day Rate Minimums & Caps'!$D$5,\"Fail 3\",\"Pass\")))","v":"No Price"},null,"Test engineer","1. Tester (test engineer)",8.2132564841498557E-2,null,"Test engineer","1. Tester (test engineer)",{"$f":"D162*O162","v":0},{"$f":"E162*O162","v":0}]
[null,null,"2. Test engineer",null,null,null,null,null,"2. Test engineer",{"$f":"IF(D163=\"\",\"No Price\",IF(D163>'Day Rate Minimums & Caps'!$C$4,\"Fail 1\",IF(D163<'Day Rate Minimums & Caps'!$D$4,\"Fail 3\",IF(D163<D162,\"Fail 2\",\"Pass\"))))","v":"No Price"},{"$f":"IF(E163=\"\",\"No Price\",IF(E163>'Day Rate Minimums & Caps'!$C$5,\"Fail 1\",IF(E163<'Day Rate Minimums & Caps'!$D$5,\"Fail 3\",IF(E163<E162,\"Fail 2\",\"Pass\"))))","v":"No Price"},null,null,"2. Test engineer",3.2853025936599423,null,null,"2. Test engineer",0,0]
[null,null,"3. Senior test engineer",null,null,null,null,null,"3. Senior test engineer",{"$f":"IF(D164=\"\",\"No Price\",IF(D164>'Day Rate Minimums & Caps'!$C$4,\"Fail 1\",IF(D164<'Day Rate Minimums & Caps'!$D$4,\"Fail 3\",IF(D164<D163,\"Fail 2\",\"Pass\"))))","v":"No Price"},{"$f":"IF(E164=\"\",\"No Price\",IF(E164>'Day Rate Minimums & Caps'!$C$5,\"Fail 1\",IF(E164<'Day Rate Minimums & Caps'!$D$5,\"Fail 3\",IF(E164<E163,\"Fail 2\",\"Pass\"))))","v":"No Price"},null,null,"3. Senior test engineer",2.190201729106628,null,null,"3. Senior test engineer",0,0]
[null,null,"4. Lead test engineer",null,null,null,null,null,"4. Lead test engineer",{"$f":"IF(D165=\"\",\"No Price\",IF(D165>'Day Rate Minimums & Caps'!$C$4,\"Fail 1\",IF(D165<'Day Rate Minimums & Caps'!$D$4,\"Fail 3\",IF(D165<D164,\"Fail 2\",\"Pass\"))))","v":"No Price"},{"$f":"IF(E165=\"\",\"No Price\",IF(E165>'Day Rate Minimums & Caps'!$C$5,\"Fail 1\",IF(E165<'Day Rate Minimums & Caps'!$D$5,\"Fail 3\",IF(E165<E164,\"Fail 2\",\"Pass\"))))","v":"No Price"},null,null,"4. Lead test engineer",0.2737752161383285,null,null,"4. Lead test engineer",0,0]
[]
[null,"Test manager","1. Test manager",null,null,null,null,"Test manager","1. Test manager",{"$f":"IF(D167=\"\",\"No Price\",IF(D167>'Day Rate Minimums & Caps'!$C$4,\"Fail 1\",IF(D167<'Day Rate Minimums & Caps'!$D$4,\"Fail 3\",\"Pass\")))","v":"No Price"},{"$f":"IF(E167=\"\",\"No Price\",IF(E167>'Day Rate Minimums & Caps'!$C$5,\"Fail 1\",IF(E167<'Day Rate Minimums & Caps'!$D$5,\"Fail 3\",\"Pass\")))","v":"No Price"},null,"Test manager","1. Test manager",0.30115273775216139,null,"Test manager","1. Test manager",{"$f":"D167*O167","v":0},{"$f":"E167*O167","v":0}]
[null,null,"2. Head of test",null,null,null,null,null,"2. Head of test",{"$f":"IF(D168=\"\",\"No Price\",IF(D168>'Day Rate Minimums & Caps'!$C$4,\"Fail 1\",IF(D168<'Day Rate Minimums & Caps'!$D$4,\"Fail 3\",IF(D168<D167,\"Fail 2\",\"Pass\"))))","v":"No Price"},{"$f":"IF(E168=\"\",\"No Price\",IF(E168>'Day Rate Minimums & Caps'!$C$5,\"Fail 1\",IF(E168<'Day Rate Minimums & Caps'!$D$5,\"Fail 3\",IF(E168<E167,\"Fail 2\",\"Pass\"))))","v":"No Price"},null,null,"2. Head of test",6.3291139240506333E-2,null,null,"2. Head of test",0,0]
[]
[null,"Software development roles",null,"National","London",null,null,"Software development roles",null,"National","London",null,"Software development roles",null,"Evaluation Weighting",null,"Software development roles",null,"Weighted Price National","Weighted Price London"]
[null,"Development operations (DevOps) engineer","1. Apprentice DevOps engineer",null,null,null,null,"Development operations (DevOps) engineer","1. Apprentice DevOps engineer",{"$f":"IF(D171=\"\",\"No Price\",IF(D171>'Day Rate Minimums & Caps'!$C$4,\"Fail 1\",IF(D171<'Day Rate Minimums & Caps'!$D$4,\"Fail 3\",\"Pass\")))","v":"No Price"},{"$f":"IF(E171=\"\",\"No Price\",IF(E171>'Day Rate Minimums & Caps'!$C$5,\"Fail 1\",IF(E171<'Day Rate Minimums & Caps'!$D$5,\"Fail 3\",\"Pass\")))","v":"No Price"},null,"Development operations (DevOps) engineer","1. Apprentice DevOps engineer",2.7377521613832854E-2,null,"Development operations (DevOps) engineer","1. Apprentice DevOps engineer",{"$f":"D171*O171","v":0},{"$f":"E171*O171","v":0}]
[null,null,"2. Junior DevOps engineer",null,null,null,null,null,"2. Junior DevOps engineer",{"$f":"IF(D172=\"\",\"No Price\",IF(D172>'Day Rate Minimums & Caps'!$C$4,\"Fail 1\",IF(D172<'Day Rate Minimums & Caps'!$D$4,\"Fail 3\",IF(D172<D171,\"Fail 2\",\"Pass\"))))","v":"No Price"},{"$f":"IF(E172=\"\",\"No Price\",IF(E172>'Day Rate Minimums & Caps'!$C$5,\"Fail 1\",IF(E172<'Day Rate Minimums & Caps'!$D$5,\"Fail 3\",IF(E172<E171,\"Fail 2\",\"Pass\"))))","v":"No Price"},null,null,"2. Junior DevOps engineer",0.60230547550432278,null,null,"2. Junior DevOps engineer",0,0]
[null,null,"3. DevOps engineer",null,null,null,null,null,"3. DevOps engineer",{"$f":"IF(D173=\"\",\"No Price\",IF(D173>'Day Rate Minimums & Caps'!$C$4,\"Fail 1\",IF(D173<'Day Rate Minimums & Caps'!$D$4,\"Fail 3\",IF(D173<D172,\"Fail 2\",\"Pass\"))))","v":"No Price"},{"$f":"IF(E173=\"\",\"No Price\",IF(E173>'Day Rate Minimums & Caps'!$C$5,\"Fail 1\",IF(E173<'Day Rate Minimums & Caps'!$D$5,\"Fail 3\",IF(E173<E172,\"Fail 2\",\"Pass\"))))","v":"No Price"},null,null,"3. DevOps engineer",0.9308357348703169,null,null,"3. DevOps engineer",0,0]
[null,null,"4. Senior DevOps engineer",null,null,null,null,null,"4. Senior DevOps engineer",{"$f":"IF(D174=\"\",\"No Price\",IF(D174>'Day Rate Minimums & Caps'!$C$4,\"Fail 1\",IF(D174<'Day Rate Minimums & Caps'!$D$4,\"Fail 3\",IF(D174<D173,\"Fail 2\",\"Pass\"))))","v":"No Price"},{"$f":"IF(E174=\"\",\"No Price\",IF(E174>'Day Rate Minimums & Caps'!$C$5,\"Fail 1\",IF(E174<'Day Rate Minimums & Caps'!$D$5,\"Fail 3\",IF(E174<E173,\"Fail 2\",\"Pass\"))))","v":"No Price"},null,null,"4. Senior DevOps engineer",1.478386167146974,null,null,"4. Senior DevOps engineer",0,0]
[null,null,"5. Senior DevOps engineer - management",null,null,null,null,null,"5. Senior DevOps engineer - management",{"$f":"IF(D175=\"\",\"No Price\",IF(D175>'Day Rate Minimums & Caps'!$C$4,\"Fail 1\",IF(D175<'Day Rate Minimums & Caps'!$D$4,\"Fail 3\",IF(D175<D174,\"Fail 2\",\"Pass\"))))","v":"No Price"},{"$f":"IF(E175=\"\",\"No Price\",IF(E175>'Day Rate Minimums & Caps'!$C$5,\"Fail 1\",IF(E175<'Day Rate Minimums & Caps'!$D$5,\"Fail 3\",IF(E175<E174,\"Fail 2\",\"Pass\"))))","v":"No Price"},null,null,"5. Senior DevOps engineer - management",6.3291139240506333E-2,null,null,"5. Senior DevOps engineer - management",0,0]
[null,null,"6. Lead DevOps engineer",null,null,null,null,null,"6. Lead DevOps engineer",{"$f":"IF(D176=\"\",\"No Price\",IF(D176>'Day Rate Minimums & Caps'!$C$4,\"Fail 1\",IF(D176<'Day Rate Minimums & Caps'!$D$4,\"Fail 3\",IF(D176<D175,\"Fail 2\",\"Pass\"))))","v":"No Price"},{"$f":"IF(E176=\"\",\"No Price\",IF(E176>'Day Rate Minimums & Caps'!$C$5,\"Fail 1\",IF(E176<'Day Rate Minimums & Caps'!$D$5,\"Fail 3\",IF(E176<E175,\"Fail 2\",\"Pass\"))))","v":"No Price"},null,null,"6. Lead DevOps engineer",0.98559077809798268,null,null,"6. Lead DevOps engineer",0,0]
[null,null,"7. Lead DevOps engineer - management",null,null,null,null,null,"7. Lead DevOps engineer - management",{"$f":"IF(D177=\"\",\"No Price\",IF(D177>'Day Rate Minimums & Caps'!$C$4,\"Fail 1\",IF(D177<'Day Rate Minimums & Caps'!$D$4,\"Fail 3\",IF(D177<D176,\"Fail 2\",\"Pass\"))))","v":"No Price"},{"$f":"IF(E177=\"\",\"No Price\",IF(E177>'Day Rate Minimums & Caps'!$C$5,\"Fail 1\",IF(E177<'Day Rate Minimums & Caps'!$D$5,\"Fail 3\",IF(E177<E176,\"Fail 2\",\"Pass\"))))","v":"No Price"},null,null,"7. Lead DevOps engineer - management",6.3291139240506333E-2,null,null,"7. Lead DevOps engineer - management",0,0]
[null,null,"8. Principal DevOps engineer",null,null,null,null,null,"8. Principal DevOps engineer",{"$f":"IF(D178=\"\",\"No Price\",IF(D178>'Day Rate Minimums & Caps'!$C$4,\"Fail 1\",IF(D178<'Day Rate Minimums & Caps'!$D$4,\"Fail 3\",IF(D178<D177,\"Fail 2\",\"Pass\"))))","v":"No Price"},{"$f":"IF(E178=\"\",\"No Price\",IF(E178>'Day Rate Minimums & Caps'!$C$5,\"Fail 1\",IF(E178<'Day Rate Minimums & Caps'!$D$5,\"Fail 3\",IF(E178<E177,\"Fail 2\",\"Pass\"))))","v":"No Price"},null,null,"8. Principal DevOps engineer",0.54755043227665701,null,null,"8. Principal DevOps engineer",0,0]
[null,null,"9. Principal DevOps engineer - management",null,null,null,null,null,"9. Principal DevOps engineer - management",{"$f":"IF(D179=\"\",\"No Price\",IF(D179>'Day Rate Minimums & Caps'!$C$4,\"Fail 1\",IF(D179<'Day Rate Minimums & Caps'!$D$4,\"Fail 3\",IF(D179<D178,\"Fail 2\",\"Pass\"))))","v":"No Price"},{"$f":"IF(E179=\"\",\"No Price\",IF(E179>'Day Rate Minimums & Caps'!$C$5,\"Fail 1\",IF(E179<'Day Rate Minimums & Caps'!$D$5,\"Fail 3\",IF(E179<E178,\"Fail 2\",\"Pass\"))))","v":"No Price"},null,null,"9. Principal DevOps engineer - management",6.3291139240506333E-2,null,null,"9. Principal DevOps engineer - management",0,0]
[]
[null,"Frontend developer","1. Apprentice frontend developer",null,null,null,null,"Frontend developer","1. Apprentice frontend developer",{"$f":"IF(D181=\"\",\"No Price\",IF(D181>'Day Rate Minimums & Caps'!$C$4,\"Fail 1\",IF(D181<'Day Rate Minimums & Caps'!$D$4,\"Fail 3\",\"Pass\")))","v":"No Price"},{"$f":"IF(E181=\"\",\"No Price\",IF(E181>'Day Rate Minimums & Caps'!$C$5,\"Fail 1\",IF(E181<'Day Rate Minimums & Caps'!$D$5,\"Fail 3\",\"Pass\")))","v":"No Price"},null,"Frontend developer","1. Apprentice frontend developer",6.3291139240506333E-2,null,"Frontend developer","1. Apprentice frontend developer",{"$f":"D181*O181","v":0},{"$f":"E181*O181","v":0}]
[null,null,"2. Junior frontend developer",null,null,null,null,null,"2. Junior frontend developer",{"$f":"IF(D182=\"\",\"No Price\",IF(D182>'Day Rate Minimums & Caps'!$C$4,\"Fail 1\",IF(D182<'Day Rate Minimums & Caps'!$D$4,\"Fail 3\",IF(D182<D181,\"Fail 2\",\"Pass\"))))","v":"No Price"},{"$f":"IF(E182=\"\",\"No Price\",IF(E182>'Day Rate Minimums & Caps'!$C$5,\"Fail 1\",IF(E182<'Day Rate Minimums & Caps'!$D$5,\"Fail 3\",IF(E182<E181,\"Fail 2\",\"Pass\"))))","v":"No Price"},null,null,"2. Junior frontend developer",6.3291139240506333E-2,null,null,"2. Junior frontend developer",0,0]
[null,null,"3. Frontend developer",null,null,null,null,null,"3. Frontend developer",{"$f":"IF(D183=\"\",\"No Price\",IF(D183>'Day Rate Minimums & Caps'!$C$4,\"Fail 1\",IF(D183<'Day Rate Minimums & Caps'!$D$4,\"Fail 3\",IF(D183<D182,\"Fail 2\",\"Pass\"))))","v":"No Price"},{"$f":"IF(E183=\"\",\"No Price\",IF(E183>'Day Rate Minimums & Caps'!$C$5,\"Fail 1\",IF(E183<'Day Rate Minimums & Caps'!$D$5,\"Fail 3\",IF(E183<E182,\"Fail 2\",\"Pass\"))))","v":"No Price"},null,null,"3. Frontend developer",6.3291139240506333E-2,null,null,"3. Frontend developer",0,0]
[null,null,"4. Senior frontend developer",null,null,null,null,null,"4. Senior frontend developer",{"$f":"IF(D184=\"\",\"No Price\",IF(D184>'Day Rate Minimums & Caps'!$C$4,\"Fail 1\",IF(D184<'Day Rate Minimums & Caps'!$D$4,\"Fail 3\",IF(D184<D183,\"Fail 2\",\"Pass\"))))","v":"No Price"},{"$f":"IF(E184=\"\",\"No Price\",IF(E184>'Day Rate Minimums & Caps'!$C$5,\"Fail 1\",IF(E184<'Day Rate Minimums & Caps'!$D$5,\"Fail 3\",IF(E184<E183,\"Fail 2\",\"Pass\"))))","v":"No Price"},null,null,"4. Senior frontend developer",6.3291139240506333E-2,null,null,"4. Senior frontend developer",0,0]
[null,null,"5. Lead frontend developer",null,null,null,null,null,"5. Lead frontend developer",{"$f":"IF(D185=\"\",\"No Price\",IF(D185>'Day Rate Minimums & Caps'!$C$4,\"Fail 1\",IF(D185<'Day Rate Minimums & Caps'!$D$4,\"Fail 3\",IF(D185<D184,\"Fail 2\",\"Pass\"))))","v":"No Price"},{"$f":"IF(E185=\"\",\"No Price\",IF(E185>'Day Rate Minimums & Caps'!$C$5,\"Fail 1\",IF(E185<'Day Rate Minimums & Caps'!$D$5,\"Fail 3\",IF(E185<E184,\"Fail 2\",\"Pass\"))))","v":"No Price"},null,null,"5. Lead frontend developer",6.3291139240506333E-2,null,null,"5. Lead frontend developer",0,0]
[null,null,"6. Head of frontend development",null,null,null,null,null,"6. Head of frontend development",{"$f":"IF(D186=\"\",\"No Price\",IF(D186>'Day Rate Minimums & Caps'!$C$4,\"Fail 1\",IF(D186<'Day Rate Minimums & Caps'!$D$4,\"Fail 3\",IF(D186<D185,\"Fail 2\",\"Pass\"))))","v":"No Price"},{"$f":"IF(E186=\"\",\"No Price\",IF(E186>'Day Rate Minimums & Caps'!$C$5,\"Fail 1\",IF(E186<'Day Rate Minimums & Caps'!$D$5,\"Fail 3\",IF(E186<E185,\"Fail 2\",\"Pass\"))))","v":"No Price"},null,null,"6. Head of frontend development",6.3291139240506333E-2,null,null,"6. Head of frontend development",0,0]
[]
[null,"Software developer","1. Apprentice developer",null,null,null,null,"Software developer","1. Apprentice developer",{"$f":"IF(D188=\"\",\"No Price\",IF(D188>'Day Rate Minimums & Caps'!$C$4,\"Fail 1\",IF(D188<'Day Rate Minimums & Caps'!$D$4,\"Fail 3\",\"Pass\")))","v":"No Price"},{"$f":"IF(E188=\"\",\"No Price\",IF(E188>'Day Rate Minimums & Caps'!$C$5,\"Fail 1\",IF(E188<'Day Rate Minimums & Caps'!$D$5,\"Fail 3\",\"Pass\")))","v":"No Price"},null,"Software developer","1. Apprentice developer",0.10951008645533142,null,"Software developer","1. Apprentice developer",{"$f":"D188*O188","v":0},{"$f":"E188*O188","v":0}]
[null,null,"2. Junior developer",null,null,null,null,null,"2. Junior developer",{"$f":"IF(D189=\"\",\"No Price\",IF(D189>'Day Rate Minimums & Caps'!$C$4,\"Fail 1\",IF(D189<'Day Rate Minimums & Caps'!$D$4,\"Fail 3\",IF(D189<D188,\"Fail 2\",\"Pass\"))))","v":"No Price"},{"$f":"IF(E189=\"\",\"No Price\",IF(E189>'Day Rate Minimums & Caps'!$C$5,\"Fail 1\",IF(E189<'Day Rate Minimums & Caps'!$D$5,\"Fail 3\",IF(E189<E188,\"Fail 2\",\"Pass\"))))","v":"No Price"},null,null,"2. Junior developer",0.49279538904899134,null,null,"2. Junior developer",0,0]
[null,null,"3. Developer",null,null,null,null,null,"3. Developer",{"$f":"IF(D190=\"\",\"No Price\",IF(D190>'Day Rate Minimums & Caps'!$C$4,\"Fail 1\",IF(D190<'Day Rate Minimums & Caps'!$D$4,\"Fail 3\",IF(D190<D189,\"Fail 2\",\"Pass\"))))","v":"No Price"},{"$f":"IF(E190=\"\",\"No Price\",IF(E190>'Day Rate Minimums & Caps'!$C$5,\"Fail 1\",IF(E190<'Day Rate Minimums & Caps'!$D$5,\"Fail 3\",IF(E190<E189,\"Fail 2\",\"Pass\"))))","v":"No Price"},null,null,"3. Developer",3.3126801152737753,null,null,"3. Developer",0,0]
[null,null,"4. Senior developer",null,null,null,null,null,"4. Senior developer",{"$f":"IF(D191=\"\",\"No Price\",IF(D191>'Day Rate Minimums & Caps'!$C$4,\"Fail 1\",IF(D191<'Day Rate Minimums & Caps'!$D$4,\"Fail 3\",IF(D191<D190,\"Fail 2\",\"Pass\"))))","v":"No Price"},{"$f":"IF(E191=\"\",\"No Price\",IF(E191>'Day Rate Minimums & Caps'!$C$5,\"Fail 1\",IF(E191<'Day Rate Minimums & Caps'!$D$5,\"Fail 3\",IF(E191<E190,\"Fail 2\",\"Pass\"))))","v":"No Price"},null,null,"4. Senior developer",6.3515850144092205,null,null,"4. Senior developer",0,0]
[null,null,"5. Senior developer - management",null,null,null,null,null,"5. Senior developer - management",{"$f":"IF(D192=\"\",\"No Price\",IF(D192>'Day Rate Minimums & Caps'!$C$4,\"Fail 1\",IF(D192<'Day Rate Minimums & Caps'!$D$4,\"Fail 3\",IF(D192<D191,\"Fail 2\",\"Pass\"))))","v":"No Price"},{"$f":"IF(E192=\"\",\"No Price\",IF(E192>'Day Rate Minimums & Caps'!$C$5,\"Fail 1\",IF(E192<'Day Rate Minimums & Caps'!$D$5,\"Fail 3\",IF(E192<E191,\"Fail 2\",\"Pass\"))))","v":"No Price"},null,null,"5. Senior developer - management",6.3291139240506333E-2,null,null,"5. Senior developer - management",0,0]
[null,null,"6. Lead developer",null,null,null,null,null,"6. Lead developer",{"$f":"IF(D193=\"\",\"No Price\",IF(D193>'Day Rate Minimums & Caps'!$C$4,\"Fail 1\",IF(D193<'Day Rate Minimums & Caps'!$D$4,\"Fail 3\",IF(D193<D192,\"Fail 2\",\"Pass\"))))","v":"No Price"},{"$f":"IF(E193=\"\",\"No Price\",IF(E193>'Day Rate Minimums & Caps'!$C$5,\"Fail 1\",IF(E193<'Day Rate Minimums & Caps'!$D$5,\"Fail 3\",IF(E193<E192,\"Fail 2\",\"Pass\"))))","v":"No Price"},null,null,"6. Lead developer",6.6801152737752156,null,null,"6. Lead developer",0,0]
[null,null,"7. Lead developer - management",null,null,null,null,null,"7. Lead developer - management",{"$f":"IF(D194=\"\",\"No Price\",IF(D194>'Day Rate Minimums & Caps'!$C$4,\"Fail 1\",IF(D194<'Day Rate Minimums & Caps'!$D$4,\"Fail 3\",IF(D194<D193,\"Fail 2\",\"Pass\"))))","v":"No Price"},{"$f":"IF(E194=\"\",\"No Price\",IF(E194>'Day Rate Minimums & Caps'!$C$5,\"Fail 1\",IF(E194<'Day Rate Minimums & Caps'!$D$5,\"Fail 3\",IF(E194<E193,\"Fail 2\",\"Pass\"))))","v":"No Price"},null,null,"7. Lead developer - management",6.3291139240506333E-2,null,null,"7. Lead developer - management",0,0]
[null,null,"8. Principal developer",null,null,null,null,null,"8. Principal developer",{"$f":"IF(D195=\"\",\"No Price\",IF(D195>'Day Rate Minimums & Caps'!$C$4,\"Fail 1\",IF(D195<'Day Rate Minimums & Caps'!$D$4,\"Fail 3\",IF(D195<D194,\"Fail 2\",\"Pass\"))))","v":"No Price"},{"$f":"IF(E195=\"\",\"No Price\",IF(E195>'Day Rate Minimums & Caps'!$C$5,\"Fail 1\",IF(E195<'Day Rate Minimums & Caps'!$D$5,\"Fail 3\",IF(E195<E194,\"Fail 2\",\"Pass\"))))","v":"No Price"},null,null,"8. Principal developer",1.3962536023054755,null,null,"8. Principal developer",0,0]
[null,null,"9. Principal developer - management",null,null,null,null,null,"9. Principal developer - management",{"$f":"IF(D196=\"\",\"No Price\",IF(D196>'Day Rate Minimums & Caps'!$C$4,\"Fail 1\",IF(D196<'Day Rate Minimums & Caps'!$D$4,\"Fail 3\",IF(D196<D195,\"Fail 2\",\"Pass\"))))","v":"No Price"},{"$f":"IF(E196=\"\",\"No Price\",IF(E196>'Day Rate Minimums & Caps'!$C$5,\"Fail 1\",IF(E196<'Day Rate Minimums & Caps'!$D$5,\"Fail 3\",IF(E196<E195,\"Fail 2\",\"Pass\"))))","v":"No Price"},null,null,"9. Principal developer - management",6.3291139240506333E-2,null,null,"9. Principal developer - management",0,0]
[]
[null,"User-centred design roles",null,"National","London",null,null,"User-centred design roles",null,"National ","London",null,"User-centred design roles",null,"Evaluation Weighting",null,"User-centred design roles",null,"Weighted Price National","Weighted Price London"]
[null,"Accessibility specialist","1. Junior accessibility specialist",null,null,null,null,"Accessibility specialist","1. Junior accessibility specialist",{"$f":"IF(D199=\"\",\"No Price\",IF(D199>'Day Rate Minimums & Caps'!$C$4,\"Fail 1\",IF(D199<'Day Rate Minimums & Caps'!$D$4,\"Fail 3\",\"Pass\")))","v":"No Price"},{"$f":"IF(E199=\"\",\"No Price\",IF(E199>'Day Rate Minimums & Caps'!$C$5,\"Fail 1\",IF(E199<'Day Rate Minimums & Caps'!$D$5,\"Fail 3\",\"Pass\")))","v":"No Price"},null,"Accessibility specialist","1. Junior accessibility specialist",6.3291139240506333E-2,null,"Accessibility specialist","1. Junior accessibility specialist",{"$f":"D199*O199","v":0},{"$f":"E199*O199","v":0}]
[null,null,"2. Accessibility specialist",null,null,null,null,null,"2. Accessibility specialist",{"$f":"IF(D200=\"\",\"No Price\",IF(D200>'Day Rate Minimums & Caps'!$C$4,\"Fail 1\",IF(D200<'Day Rate Minimums & Caps'!$D$4,\"Fail 3\",IF(D200<D199,\"Fail 2\",\"Pass\"))))","v":"No Price"},{"$f":"IF(E200=\"\",\"No Price\",IF(E200>'Day Rate Minimums & Caps'!$C$5,\"Fail 1\",IF(E200<'Day Rate Minimums & Caps'!$D$5,\"Fail 3\",IF(E200<E199,\"Fail 2\",\"Pass\"))))","v":"No Price"},null,null,"2. Accessibility specialist",6.3291139240506333E-2,null,null,"2. Accessibility specialist",0,0]
[null,null,"3. Senior accessibility specialist",null,null,null,null,null,"3. Senior accessibility specialist",{"$f":"IF(D201=\"\",\"No Price\",IF(D201>'Day Rate Minimums & Caps'!$C$4,\"Fail 1\",IF(D201<'Day Rate Minimums & Caps'!$D$4,\"Fail 3\",IF(D201<D200,\"Fail 2\",\"Pass\"))))","v":"No Price"},{"$f":"IF(E201=\"\",\"No Price\",IF(E201>'Day Rate Minimums & Caps'!$C$5,\"Fail 1\",IF(E201<'Day Rate Minimums & Caps'!$D$5,\"Fail 3\",IF(E201<E200,\"Fail 2\",\"Pass\"))))","v":"No Price"},null,null,"3. Senior accessibility specialist",6.3291139240506333E-2,null,null,"3. Senior accessibility specialist",0,0]
[null,null,"4. Head of accessibility",null,null,null,null,null,"4. Head of accessibility",{"$f":"IF(D202=\"\",\"No Price\",IF(D202>'Day Rate Minimums & Caps'!$C$4,\"Fail 1\",IF(D202<'Day Rate Minimums & Caps'!$D$4,\"Fail 3\",IF(D202<D201,\"Fail 2\",\"Pass\"))))","v":"No Price"},{"$f":"IF(E202=\"\",\"No Price\",IF(E202>'Day Rate Minimums & Caps'!$C$5,\"Fail 1\",IF(E202<'Day Rate Minimums & Caps'!$D$5,\"Fail 3\",IF(E202<E201,\"Fail 2\",\"Pass\"))))","v":"No Price"},null,null,"4. Head of accessibility",6.3291139240506333E-2,null,null,"4. Head of accessibility",0,0]
[]
[null,"Content designer","1. Associate content designer",null,null,null,null,"Content designer","1. Associate content designer",{"$f":"IF(D204=\"\",\"No Price\",IF(D204>'Day Rate Minimums & Caps'!$C$4,\"Fail 1\",IF(D204<'Day Rate Minimums & Caps'!$D$4,\"Fail 3\",\"Pass\")))","v":"No Price"},{"$f":"IF(E204=\"\",\"No Price\",IF(E204>'Day Rate Minimums & Caps'!$C$5,\"Fail 1\",IF(E204<'Day Rate Minimums & Caps'!$D$5,\"Fail 3\",\"Pass\")))","v":"No Price"},null,"Content designer","1. Associate content designer",6.3291139240506333E-2,null,"Content designer","1. Associate content designer",{"$f":"D204*O204","v":0},{"$f":"E204*O204","v":0}]
[null,null,"2. Junior content designer",null,null,null,null,null,"2. Junior content designer",{"$f":"IF(D205=\"\",\"No Price\",IF(D205>'Day Rate Minimums & Caps'!$C$4,\"Fail 1\",IF(D205<'Day Rate Minimums & Caps'!$D$4,\"Fail 3\",IF(D205<D204,\"Fail 2\",\"Pass\"))))","v":"No Price"},{"$f":"IF(E205=\"\",\"No Price\",IF(E205>'Day Rate Minimums & Caps'!$C$5,\"Fail 1\",IF(E205<'Day Rate Minimums & Caps'!$D$5,\"Fail 3\",IF(E205<E204,\"Fail 2\",\"Pass\"))))","v":"No Price"},null,null,"2. Junior content designer",6.3291139240506333E-2,null,null,"2. Junior content designer",0,0]
[null,null,"3. Content designer",null,null,null,null,null,"3. Content designer",{"$f":"IF(D206=\"\",\"No Price\",IF(D206>'Day Rate Minimums & Caps'!$C$4,\"Fail 1\",IF(D206<'Day Rate Minimums & Caps'!$D$4,\"Fail 3\",IF(D206<D205,\"Fail 2\",\"Pass\"))))","v":"No Price"},{"$f":"IF(E206=\"\",\"No Price\",IF(E206>'Day Rate Minimums & Caps'!$C$5,\"Fail 1\",IF(E206<'Day Rate Minimums & Caps'!$D$5,\"Fail 3\",IF(E206<E205,\"Fail 2\",\"Pass\"))))","v":"No Price"},null,null,"3. Content designer",1.095100864553314,null,null,"3. Content designer",0,0]
[null,null,"4. Senior content designer",null,null,null,null,null,"4. Senior content designer",{"$f":"IF(D207=\"\",\"No Price\",IF(D207>'Day Rate Minimums & Caps'!$C$4,\"Fail 1\",IF(D207<'Day Rate Minimums & Caps'!$D$4,\"Fail 3\",IF(D207<D206,\"Fail 2\",\"Pass\"))))","v":"No Price"},{"$f":"IF(E207=\"\",\"No Price\",IF(E207>'Day Rate Minimums & Caps'!$C$5,\"Fail 1\",IF(E207<'Day Rate Minimums & Caps'!$D$5,\"Fail 3\",IF(E207<E206,\"Fail 2\",\"Pass\"))))","v":"No Price"},null,null,"4. Senior content designer",0.76657060518731979,null,null,"4. Senior content designer",0,0]
[null,null,"5. Lead content designer",null,null,null,null,null,"5. Lead content designer",{"$f":"IF(D208=\"\",\"No Price\",IF(D208>'Day Rate Minimums & Caps'!$C$4,\"Fail 1\",IF(D208<'Day Rate Minimums & Caps'!$D$4,\"Fail 3\",IF(D208<D207,\"Fail 2\",\"Pass\"))))","v":"No Price"},{"$f":"IF(E208=\"\",\"No Price\",IF(E208>'Day Rate Minimums & Caps'!$C$5,\"Fail 1\",IF(E208<'Day Rate Minimums & Caps'!$D$5,\"Fail 3\",IF(E208<E207,\"Fail 2\",\"Pass\"))))","v":"No Price"},null,null,"5. Lead content designer",0.49279538904899134,null,null,"5. Lead content designer",0,0]
[null,null,"6. Head of content design",null,null,null,null,null,"6. Head of content design",{"$f":"IF(D209=\"\",\"No Price\",IF(D209>'Day Rate Minimums & Caps'!$C$4,\"Fail 1\",IF(D209<'Day Rate Minimums & Caps'!$D$4,\"Fail 3\",IF(D209<D208,\"Fail 2\",\"Pass\"))))","v":"No Price"},{"$f":"IF(E209=\"\",\"No Price\",IF(E209>'Day Rate Minimums & Caps'!$C$5,\"Fail 1\",IF(E209<'Day Rate Minimums & Caps'!$D$5,\"Fail 3\",IF(E209<E208,\"Fail 2\",\"Pass\"))))","v":"No Price"},null,null,"6. Head of content design",2.7377521613832854E-2,null,null,"6. Head of content design",0,0]
[]
[null,"Content strategist","1. Content strategist",null,null,null,null,"Content strategist","1. Content strategist",{"$f":"IF(D211=\"\",\"No Price\",IF(D211>'Day Rate Minimums & Caps'!$C$4,\"Fail 1\",IF(D211<'Day Rate Minimums & Caps'!$D$4,\"Fail 3\",\"Pass\")))","v":"No Price"},{"$f":"IF(E211=\"\",\"No Price\",IF(E211>'Day Rate Minimums & Caps'!$C$5,\"Fail 1\",IF(E211<'Day Rate Minimums & Caps'!$D$5,\"Fail 3\",\"Pass\")))","v":"No Price"},null,"Content strategist","1. Content strategist",6.3291139240506333E-2,null,"Content strategist","1. Content strategist",{"$f":"D211*O211","v":0},{"$f":"E211*O211","v":0}]
[]
[null,"Graphic designer","1. Associate graphic designer",null,null,null,null,"Graphic designer","1. Associate graphic designer",{"$f":"IF(D213=\"\",\"No Price\",IF(D213>'Day Rate Minimums & Caps'!$C$4,\"Fail 1\",IF(D213<'Day Rate Minimums & Caps'!$D$4,\"Fail 3\",\"Pass\")))","v":"No Price"},{"$f":"IF(E213=\"\",\"No Price\",IF(E213>'Day Rate Minimums & Caps'!$C$5,\"Fail 1\",IF(E213<'Day Rate Minimums & Caps'!$D$5,\"Fail 3\",\"Pass\")))","v":"No Price"},null,"Graphic designer","1. Associate graphic designer",6.3291139240506333E-2,null,"Graphic designer","1. Associate graphic designer",{"$f":"D213*O213","v":0},{"$f":"E213*O213","v":0}]
[null,null,"2. Junior graphic designer",null,null,null,null,null,"2. Junior graphic designer",{"$f":"IF(D214=\"\",\"No Price\",IF(D214>'Day Rate Minimums & Caps'!$C$4,\"Fail 1\",IF(D214<'Day Rate Minimums & Caps'!$D$4,\"Fail 3\",IF(D214<D213,\"Fail 2\",\"Pass\"))))","v":"No Price"},{"$f":"IF(E214=\"\",\"No Price\",IF(E214>'Day Rate Minimums & Caps'!$C$5,\"Fail 1\",IF(E214<'Day Rate Minimums & Caps'!$D$5,\"Fail 3\",IF(E214<E213,\"Fail 2\",\"Pass\"))))","v":"No Price"},null,null,"2. Junior graphic designer",1.3688760806916427E-2,null,null,"2. Junior graphic designer",0,0]
[null,null,"3. Graphic designer",null,null,null,null,null,"3. Graphic designer",{"$f":"IF(D215=\"\",\"No Price\",IF(D215>'Day Rate Minimums & Caps'!$C$4,\"Fail 1\",IF(D215<'Day Rate Minimums & Caps'!$D$4,\"Fail 3\",IF(D215<D214,\"Fail 2\",\"Pass\"))))","v":"No Price"},{"$f":"IF(E215=\"\",\"No Price\",IF(E215>'Day Rate Minimums & Caps'!$C$5,\"Fail 1\",IF(E215<'Day Rate Minimums & Caps'!$D$5,\"Fail 3\",IF(E215<E214,\"Fail 2\",\"Pass\"))))","v":"No Price"},null,null,"3. Graphic designer",0.39697406340057628,null,null,"3. Graphic designer",0,0]
[null,null,"4. Senior graphic designer",null,null,null,null,null,"4. Senior graphic designer",{"$f":"IF(D216=\"\",\"No Price\",IF(D216>'Day Rate Minimums & Caps'!$C$4,\"Fail 1\",IF(D216<'Day Rate Minimums & Caps'!$D$4,\"Fail 3\",IF(D216<D215,\"Fail 2\",\"Pass\"))))","v":"No Price"},{"$f":"IF(E216=\"\",\"No Price\",IF(E216>'Day Rate Minimums & Caps'!$C$5,\"Fail 1\",IF(E216<'Day Rate Minimums & Caps'!$D$5,\"Fail 3\",IF(E216<E215,\"Fail 2\",\"Pass\"))))","v":"No Price"},null,null,"4. Senior graphic designer",0.49279538904899134,null,null,"4. Senior graphic designer",0,0]
[null,null,"5. Lead graphic designer",null,null,null,null,null,"5. Lead graphic designer",{"$f":"IF(D217=\"\",\"No Price\",IF(D217>'Day Rate Minimums & Caps'!$C$4,\"Fail 1\",IF(D217<'Day Rate Minimums & Caps'!$D$4,\"Fail 3\",IF(D217<D216,\"Fail 2\",\"Pass\"))))","v":"No Price"},{"$f":"IF(E217=\"\",\"No Price\",IF(E217>'Day Rate Minimums & Caps'!$C$5,\"Fail 1\",IF(E217<'Day Rate Minimums & Caps'!$D$5,\"Fail 3\",IF(E217<E216,\"Fail 2\",\"Pass\"))))","v":"No Price"},null,null,"5. Lead graphic designer",0.46541786743515851,null,null,"5. Lead graphic designer",0,0]
[null,null,"6. Head of graphic design",null,null,null,null,null,"6. Head of graphic design",{"$f":"IF(D218=\"\",\"No Price\",IF(D218>'Day Rate Minimums & Caps'!$C$4,\"Fail 1\",IF(D218<'Day Rate Minimums & Caps'!$D$4,\"Fail 3\",IF(D218<D217,\"Fail 2\",\"Pass\"))))","v":"No Price"},{"$f":"IF(E218=\"\",\"No Price\",IF(E218>'Day Rate Minimums & Caps'!$C$5,\"Fail 1\",IF(E218<'Day Rate Minimums & Caps'!$D$5,\"Fail 3\",IF(E218<E217,\"Fail 2\",\"Pass\"))))","v":"No Price"},null,null,"6. Head of graphic design",8.2132564841498557E-2,null,null,"6. Head of graphic design",0,0]
[]
[null,"Interaction designer","1. Associate interaction designer",null,null,null,null,"Interaction designer","1. Associate interaction designer",{"$f":"IF(D220=\"\",\"No Price\",IF(D220>'Day Rate Minimums & Caps'!$C$4,\"Fail 1\",IF(D220<'Day Rate Minimums & Caps'!$D$4,\"Fail 3\",\"Pass\")))","v":"No Price"},{"$f":"IF(E220=\"\",\"No Price\",IF(E220>'Day Rate Minimums & Caps'!$C$5,\"Fail 1\",IF(E220<'Day Rate Minimums & Caps'!$D$5,\"Fail 3\",\"Pass\")))","v":"No Price"},null,"Interaction designer","1. Associate interaction designer",6.3291139240506333E-2,null,"Interaction designer","1. Associate interaction designer",{"$f":"D220*O220","v":0},{"$f":"E220*O220","v":0}]
[null,null,"2. Junior interaction designer",null,null,null,null,null,"2. Junior interaction designer",{"$f":"IF(D221=\"\",\"No Price\",IF(D221>'Day Rate Minimums & Caps'!$C$4,\"Fail 1\",IF(D221<'Day Rate Minimums & Caps'!$D$4,\"Fail 3\",IF(D221<D220,\"Fail 2\",\"Pass\"))))","v":"No Price"},{"$f":"IF(E221=\"\",\"No Price\",IF(E221>'Day Rate Minimums & Caps'!$C$5,\"Fail 1\",IF(E221<'Day Rate Minimums & Caps'!$D$5,\"Fail 3\",IF(E221<E220,\"Fail 2\",\"Pass\"))))","v":"No Price"},null,null,"2. Junior interaction designer",1.3688760806916427E-2,null,null,"2. Junior interaction designer",0,0]
[null,null,"3. Interaction designer",null,null,null,null,null,"3. Interaction designer",{"$f":"IF(D222=\"\",\"No Price\",IF(D222>'Day Rate Minimums & Caps'!$C$4,\"Fail 1\",IF(D222<'Day Rate Minimums & Caps'!$D$4,\"Fail 3\",IF(D222<D221,\"Fail 2\",\"Pass\"))))","v":"No Price"},{"$f":"IF(E222=\"\",\"No Price\",IF(E222>'Day Rate Minimums & Caps'!$C$5,\"Fail 1\",IF(E222<'Day Rate Minimums & Caps'!$D$5,\"Fail 3\",IF(E222<E221,\"Fail 2\",\"Pass\"))))","v":"No Price"},null,null,"3. Interaction designer",0.39697406340057628,null,null,"3. Interaction designer",0,0]
[null,null,"4. Senior interaction designer",null,null,null,null,null,"4. Senior interaction designer",{"$f":"IF(D223=\"\",\"No Price\",IF(D223>'Day Rate Minimums & Caps'!$C$4,\"Fail 1\",IF(D223<'Day Rate Minimums & Caps'!$D$4,\"Fail 3\",IF(D223<D222,\"Fail 2\",\"Pass\"))))","v":"No Price"},{"$f":"IF(E223=\"\",\"No Price\",IF(E223>'Day Rate Minimums & Caps'!$C$5,\"Fail 1\",IF(E223<'Day Rate Minimums & Caps'!$D$5,\"Fail 3\",IF(E223<E222,\"Fail 2\",\"Pass\"))))","v":"No Price"},null,null,"4. Senior interaction designer",0.49279538904899134,null,null,"4. Senior interaction designer",0,0]
[null,null,"5. Lead interaction designer",null,null,null,null,null,"5. Lead interaction designer",{"$f":"IF(D224=\"\",\"No Price\",IF(D224>'Day Rate Minimums & Caps'!$C$4,\"Fail 1\",IF(D224<'Day Rate Minimums & Caps'!$D$4,\"Fail 3\",IF(D224<D223,\"Fail 2\",\"Pass\"))))","v":"No Price"},{"$f":"IF(E224=\"\",\"No Price\",IF(E224>'Day Rate Minimums & Caps'!$C$5,\"Fail 1\",IF(E224<'Day Rate Minimums & Caps'!$D$5,\"Fail 3\",IF(E224<E223,\"Fail 2\",\"Pass\"))))","v":"No Price"},null,null,"5. Lead interaction designer",0.46541786743515851,null,null,"5. Lead interaction designer",0,0]
[null,null,"6. Head of interaction design",null,null,null,null,null,"6. Head of interaction design",{"$f":"IF(D225=\"\",\"No Price\",IF(D225>'Day Rate Minimums & Caps'!$C$4,\"Fail 1\",IF(D225<'Day Rate Minimums & Caps'!$D$4,\"Fail 3\",IF(D225<D224,\"Fail 2\",\"Pass\"))))","v":"No Price"},{"$f":"IF(E225=\"\",\"No Price\",IF(E225>'Day Rate Minimums & Caps'!$C$5,\"Fail 1\",IF(E225<'Day Rate Minimums & Caps'!$D$5,\"Fail 3\",IF(E225<E224,\"Fail 2\",\"Pass\"))))","v":"No Price"},null,null,"6. Head of interaction design",8.2132564841498557E-2,null,null,"6. Head of interaction design",0,0]
[]
[null,"Service designer","1. Associate service designer",null,null,null,null,"Service designer","1. Associate service designer",{"$f":"IF(D227=\"\",\"No Price\",IF(D227>'Day Rate Minimums & Caps'!$C$4,\"Fail 1\",IF(D227<'Day Rate Minimums & Caps'!$D$4,\"Fail 3\",\"Pass\")))","v":"No Price"},{"$f":"IF(E227=\"\",\"No Price\",IF(E227>'Day Rate Minimums & Caps'!$C$5,\"Fail 1\",IF(E227<'Day Rate Minimums & Caps'!$D$5,\"Fail 3\",\"Pass\")))","v":"No Price"},null,"Service designer","1. Associate service designer",6.3291139240506333E-2,null,"Service designer","1. Associate service designer",{"$f":"D227*O227","v":0},{"$f":"E227*O227","v":0}]
[null,null,"2. Junior service designer",null,null,null,null,null,"2. Junior service designer",{"$f":"IF(D228=\"\",\"No Price\",IF(D228>'Day Rate Minimums & Caps'!$C$4,\"Fail 1\",IF(D228<'Day Rate Minimums & Caps'!$D$4,\"Fail 3\",IF(D228<D227,\"Fail 2\",\"Pass\"))))","v":"No Price"},{"$f":"IF(E228=\"\",\"No Price\",IF(E228>'Day Rate Minimums & Caps'!$C$5,\"Fail 1\",IF(E228<'Day Rate Minimums & Caps'!$D$5,\"Fail 3\",IF(E228<E227,\"Fail 2\",\"Pass\"))))","v":"No Price"},null,null,"2. Junior service designer",0.16426512968299711,null,null,"2. Junior service designer",0,{"$f":"E228*O228","v":0}]
[null,null,"3. Service designer",null,null,null,null,null,"3. Service designer",{"$f":"IF(D229=\"\",\"No Price\",IF(D229>'Day Rate Minimums & Caps'!$C$4,\"Fail 1\",IF(D229<'Day Rate Minimums & Caps'!$D$4,\"Fail 3\",IF(D229<D228,\"Fail 2\",\"Pass\"))))","v":"No Price"},{"$f":"IF(E229=\"\",\"No Price\",IF(E229>'Day Rate Minimums & Caps'!$C$5,\"Fail 1\",IF(E229<'Day Rate Minimums & Caps'!$D$5,\"Fail 3\",IF(E229<E228,\"Fail 2\",\"Pass\"))))","v":"No Price"},null,null,"3. Service designer",0.98559077809798268,null,null,"3. Service designer",0,0]
[null,null,"4. Senior service designer",null,null,null,null,null,"4. Senior service designer",{"$f":"IF(D230=\"\",\"No Price\",IF(D230>'Day Rate Minimums & Caps'!$C$4,\"Fail 1\",IF(D230<'Day Rate Minimums & Caps'!$D$4,\"Fail 3\",IF(D230<D229,\"Fail 2\",\"Pass\"))))","v":"No Price"},{"$f":"IF(E230=\"\",\"No Price\",IF(E230>'Day Rate Minimums & Caps'!$C$5,\"Fail 1\",IF(E230<'Day Rate Minimums & Caps'!$D$5,\"Fail 3\",IF(E230<E229,\"Fail 2\",\"Pass\"))))","v":"No Price"},null,null,"4. Senior service designer",1.095100864553314,null,null,"4. Senior service designer",0,0]
[null,null,"5. Lead service designer",null,null,null,null,null,"5. Lead service designer",{"$f":"IF(D231=\"\",\"No Price\",IF(D231>'Day Rate Minimums & Caps'!$C$4,\"Fail 1\",IF(D231<'Day Rate Minimums & Caps'!$D$4,\"Fail 3\",IF(D231<D230,\"Fail 2\",\"Pass\"))))","v":"No Price"},{"$f":"IF(E231=\"\",\"No Price\",IF(E231>'Day Rate Minimums & Caps'!$C$5,\"Fail 1\",IF(E231<'Day Rate Minimums & Caps'!$D$5,\"Fail 3\",IF(E231<E230,\"Fail 2\",\"Pass\"))))","v":"No Price"},null,null,"5. Lead service designer",1.2319884726224783,null,null,"5. Lead service designer",0,0]
[null,null,"6. Head of service design",null,null,null,null,null,"6. Head of service design",{"$f":"IF(D232=\"\",\"No Price\",IF(D232>'Day Rate Minimums & Caps'!$C$4,\"Fail 1\",IF(D232<'Day Rate Minimums & Caps'!$D$4,\"Fail 3\",IF(D232<D231,\"Fail 2\",\"Pass\"))))","v":"No Price"},{"$f":"IF(E232=\"\",\"No Price\",IF(E232>'Day Rate Minimums & Caps'!$C$5,\"Fail 1\",IF(E232<'Day Rate Minimums & Caps'!$D$5,\"Fail 3\",IF(E232<E231,\"Fail 2\",\"Pass\"))))","v":"No Price"},null,null,"6. Head of service design",0.32853025936599423,null,null,"6. Head of service design",0,0]
[]
[null,"Technical writer","1. Technical writer",null,null,null,null,"Technical writer","1. Technical writer",{"$f":"IF(D234=\"\",\"No Price\",IF(D234>'Day Rate Minimums & Caps'!$C$4,\"Fail 1\",IF(D234<'Day Rate Minimums & Caps'!$D$4,\"Fail 3\",\"Pass\")))","v":"No Price"},{"$f":"IF(E234=\"\",\"No Price\",IF(E234>'Day Rate Minimums & Caps'!$C$5,\"Fail 1\",IF(E234<'Day Rate Minimums & Caps'!$D$5,\"Fail 3\",\"Pass\")))","v":"No Price"},null,"Technical writer","1. Technical writer",5.4755043227665709E-2,null,"Technical writer","1. Technical writer",{"$f":"D234*O234","v":0},{"$f":"E234*O234","v":0}]
[null,null,"2. Lead technical writer",null,null,null,null,null,"2. Lead technical writer",{"$f":"IF(D235=\"\",\"No Price\",IF(D235>'Day Rate Minimums & Caps'!$C$4,\"Fail 1\",IF(D235<'Day Rate Minimums & Caps'!$D$4,\"Fail 3\",IF(D235<D234,\"Fail 2\",\"Pass\"))))","v":"No Price"},{"$f":"IF(E235=\"\",\"No Price\",IF(E235>'Day Rate Minimums & Caps'!$C$5,\"Fail 1\",IF(E235<'Day Rate Minimums & Caps'!$D$5,\"Fail 3\",IF(E235<E234,\"Fail 2\",\"Pass\"))))","v":"No Price"},null,null,"2. Lead technical writer",6.3291139240506333E-2,null,null,"2. Lead technical writer",0,0]
[]
[null,"User researcher","1. Associate user researcher",null,null,null,null,"User researcher","1. Associate user researcher",{"$f":"IF(D237=\"\",\"No Price\",IF(D237>'Day Rate Minimums & Caps'!$C$4,\"Fail 1\",IF(D237<'Day Rate Minimums & Caps'!$D$4,\"Fail 3\",\"Pass\")))","v":"No Price"},{"$f":"IF(E237=\"\",\"No Price\",IF(E237>'Day Rate Minimums & Caps'!$C$5,\"Fail 1\",IF(E237<'Day Rate Minimums & Caps'!$D$5,\"Fail 3\",\"Pass\")))","v":"No Price"},null,"User researcher","1. Associate user researcher",2.7377521613832854E-2,null,"User researcher","1. Associate user researcher",{"$f":"D237*O237","v":0},{"$f":"E237*O237","v":0}]
[null,null,"2. Junior user researcher",null,null,null,null,null,"2. Junior user researcher",{"$f":"IF(D238=\"\",\"No Price\",IF(D238>'Day Rate Minimums & Caps'!$C$4,\"Fail 1\",IF(D238<'Day Rate Minimums & Caps'!$D$4,\"Fail 3\",IF(D238<D237,\"Fail 2\",\"Pass\"))))","v":"No Price"},{"$f":"IF(E238=\"\",\"No Price\",IF(E238>'Day Rate Minimums & Caps'!$C$5,\"Fail 1\",IF(E238<'Day Rate Minimums & Caps'!$D$5,\"Fail 3\",IF(E238<E237,\"Fail 2\",\"Pass\"))))","v":"No Price"},null,null,"2. Junior user researcher",0.35590778097982706,null,null,"2. Junior user researcher",0,0]
[null,null,"3. User researcher",null,null,null,null,null,"3. User researcher",{"$f":"IF(D239=\"\",\"No Price\",IF(D239>'Day Rate Minimums & Caps'!$C$4,\"Fail 1\",IF(D239<'Day Rate Minimums & Caps'!$D$4,\"Fail 3\",IF(D239<D238,\"Fail 2\",\"Pass\"))))","v":"No Price"},{"$f":"IF(E239=\"\",\"No Price\",IF(E239>'Day Rate Minimums & Caps'!$C$5,\"Fail 1\",IF(E239<'Day Rate Minimums & Caps'!$D$5,\"Fail 3\",IF(E239<E238,\"Fail 2\",\"Pass\"))))","v":"No Price"},null,null,"3. User researcher",1.095100864553314,null,null,"3. User researcher",0,0]
[null,null,"4. Senior user researcher",null,null,null,null,null,"4. Senior user researcher",{"$f":"IF(D240=\"\",\"No Price\",IF(D240>'Day Rate Minimums & Caps'!$C$4,\"Fail 1\",IF(D240<'Day Rate Minimums & Caps'!$D$4,\"Fail 3\",IF(D240<D239,\"Fail 2\",\"Pass\"))))","v":"No Price"},{"$f":"IF(E240=\"\",\"No Price\",IF(E240>'Day Rate Minimums & Caps'!$C$5,\"Fail 1\",IF(E240<'Day Rate Minimums & Caps'!$D$5,\"Fail 3\",IF(E240<E239,\"Fail 2\",\"Pass\"))))","v":"No Price"},null,null,"4. Senior user researcher",2.217579250720461,null,null,"4. Senior user researcher",0,0]
[null,null,"5. Lead user researcher",null,null,null,null,null,"5. Lead user researcher",{"$f":"IF(D241=\"\",\"No Price\",IF(D241>'Day Rate Minimums & Caps'!$C$4,\"Fail 1\",IF(D241<'Day Rate Minimums & Caps'!$D$4,\"Fail 3\",IF(D241<D240,\"Fail 2\",\"Pass\"))))","v":"No Price"},{"$f":"IF(E241=\"\",\"No Price\",IF(E241>'Day Rate Minimums & Caps'!$C$5,\"Fail 1\",IF(E241<'Day Rate Minimums & Caps'!$D$5,\"Fail 3\",IF(E241<E240,\"Fail 2\",\"Pass\"))))","v":"No Price"},null,null,"5. Lead user researcher",1.2593659942363111,null,null,"5. Lead user researcher",0,0]
[null,null,"6. Head of user research",null,null,null,null,null,"6. Head of user research",{"$f":"IF(D242=\"\",\"No Price\",IF(D242>'Day Rate Minimums & Caps'!$C$4,\"Fail 1\",IF(D242<'Day Rate Minimums & Caps'!$D$4,\"Fail 3\",IF(D242<D241,\"Fail 2\",\"Pass\"))))","v":"No Price"},{"$f":"IF(E242=\"\",\"No Price\",IF(E242>'Day Rate Minimums & Caps'!$C$5,\"Fail 1\",IF(E242<'Day Rate Minimums & Caps'!$D$5,\"Fail 3\",IF(E242<E241,\"Fail 2\",\"Pass\"))))","v":"No Price"},null,null,"6. Head of user research",0.19164265129682997,null,null,"6. Head of user research",0,0]
[]
[null,null,null,null,null,null,null,null,null,null,null,null,null,null,null,null,null,"Total:",{"$f":"SUM(S4:T36,S39:T67,S70:T126,S129:T154,S157:T168,S171:T196,S199:T242)","v":0}]
[null,null,null,null,null,null,null,null,null,null,null,null,null,null,null,null,null,"Total for evaluation:",{"$f":"S244/200","v":0}]

{"sheet":"Offshore Rate Card","index":4,"n_rows":243,"n_cols":18,"rows_kept":243,"cut":false,"hidden":false,"merged":[[80,1,82,1],[84,1,87,1],[89,1,93,1],[95,1,98,1],[100,1,101,1],[103,1,107,1],[109,1,113,1],[115,1,116,1],[118,1,121,1],[123,1,126,1],[129,1,134,1],[136,1,139,1],[141,1,144,1],[146,1,150,1],[156,1,156,2],[157,1,160,1],[162,1,165,1],[167,1,168,1],[170,1,170,2],[171,1,179,1],[181,1,186,1],[234,1,235,1],[237,1,242,1],[188,1,196,1],[198,1,198,2],[199,1,202,1],[204,1,209,1],[213,1,218,1],[220,1,225,1],[227,1,232,1],[84,7,87,7],[89,7,93,7],[95,7,98,7],[100,7,101,7],[103,7,107,7],[109,7,113,7],[115,7,116,7],[129,7,134,7],[136,7,139,7],[141,7,144,7],[146,7,150,7],[156,7,156,8],[157,7,160,7],[162,7,165,7],[204,7,209,7],[213,7,218,7],[220,7,225,7],[227,7,232,7],[234,7,235,7],[237,7,242,7],[167,7,168,7],[170,7,170,8],[171,7,179,7],[181,7,186,7],[188,7,196,7],[198,7,198,8],[199,7,202,7],[0,1,0,11],[0,15,0,17],[1,15,2,15],[1,16,2,16],[1,17,2,17],[3,1,3,2],[4,1,7,1],[3,7,3,8],[4,7,7,7],[26,7,30,7],[32,7,36,7],[38,7,38,8],[39,7,42,7],[44,7,47,7],[9,1,11,1],[9,7,11,7],[13,1,16,1],[13,7,16,7],[18,7,20,7],[18,1,20,1],[22,1,24,1],[26,1,30,1],[32,1,36,1],[80,7,82,7],[118,7,121,7],[123,7,126,7],[128,1,128,2],[128,7,128,8],[2,1,2,2],[49,7,50,7],[49,1,50,1],[52,1,54,1],[56,1,61,1],[63,1,67,1],[69,1,69,2],[70,1,74,1],[76,1,78,1],[52,7,54,7],[56,7,61,7],[63,7,67,7],[69,7,69,8],[70,7,74,7],[76,7,78,7],[38,1,38,2],[39,1,42,1],[44,1,47,1],[22,7,24,7]]}
[null,"OPTIONAL - NOT EVALUATED\n PLEASE ENSURE ALL PRICES ARE LESS THAN 'THE NATIONAL EQUIVALENT COST PER ROLE?' OR \nYOUR BID WILL BE DEEMED NON COMPLIANT \n*Table 7 will indicate a 'FAIL' if your price is above than the national rate entered",null,null,null,null,null,null,null,null,null,null,null,null,null,"Table 8 - Please enter the location of the offshore rate below the corresponding offshore 1, 2 or 3 below:"]
[null,null,null,null,null,null,null,null,null,null,null,null,null,null,null,"Offshore 1","Offshore 2","Offshore 3"]
[null,"Table 6 - Offshore Rate Card OPTIONAL - enter a price only if you have off shore capability\n",null,null,null,null,null,"Table 7 - Offshore Rate Card validation table - DO NOT AMEND"]
[null,"Architecture roles",null,"Offshore 1 ","Offshore 2","Offshore 3",null,"Architecture roles",null,"Offshore 1","Offshore 2","Offshore 3"]
[null,"Business architect","1. Trainee business architect",null,null,null,null,"Business architect","1. Trainee business architect",{"$f":"IF(D5=\"\",\"No Price\",IF(D5>'UK Rate Card - evaluated'!D4,\"Fail 1\",\"Pass\"))","v":"No Price"},{"$f":"IF(E5=\"\",\"No Price\",IF(E5>'UK Rate Card - evaluated'!D4,\"Fail 1\",\"Pass\"))","v":"No Price"},{"$f":"IF(F5=\"\",\"No Price\",IF(F5>'UK Rate Card - evaluated'!D4,\"Fail 1\",\"Pass\"))","v":"No Price"}]
[null,null,"2. Associate business architect",null,null,null,null,null,"2. Associate business architect",{"$f":"IF(D6=\"\",\"No Price\",IF(D6>'UK Rate Card - evaluated'!D5,\"Fail 1\",\"Pass\"))","v":"No Price"},{"$f":"IF(E6=\"\",\"No Price\",IF(E6>'UK Rate Card - evaluated'!D5,\"Fail 1\",\"Pass\"))","v":"No Price"},{"$f":"IF(F6=\"\",\"No Price\",IF(F6>'UK Rate Card - evaluated'!D5,\"Fail 1\",\"Pass\"))","v":"No Price"}]
[null,null,"3. Business architect",null,null,null,null,null,"3. Business architect",{"$f":"IF(D7=\"\",\"No Price\",IF(D7>'UK Rate Card - evaluated'!D6,\"Fail 1\",\"Pass\"))","v":"No Price"},{"$f":"IF(E7=\"\",\"No Price\",IF(E7>'UK Rate Card - evaluated'!D6,\"Fail 1\",\"Pass\"))","v":"No Price"},{"$f":"IF(F7=\"\",\"No Price\",IF(F7>'UK Rate Card - evaluated'!D6,\"Fail 1\",\"Pass\"))","v":"No Price"}]
[null,null,"4. Lead business architect",null,null,null,null,null,"4. Lead business architect",{"$f":"IF(D8=\"\",\"No Price\",IF(D8>'UK Rate Card - evaluated'!D7,\"Fail 1\",\"Pass\"))","v":"No Price"},{"$f":"IF(E8=\"\",\"No Price\",IF(E8>'UK Rate Card - evaluated'!D7,\"Fail 1\",\"Pass\"))","v":"No Price"},{"$f":"IF(F8=\"\",\"No Price\",IF(F8>'UK Rate Card - evaluated'!D7,\"Fail 1\",\"Pass\"))","v":"No Price"}]
[]
[null,"Data architect","1. Data architect",null,null,null,null,"Data architect","1. Data architect",{"$f":"IF(D10=\"\",\"No Price\",IF(D10>'UK Rate Card - evaluated'!D9,\"Fail 1\",\"Pass\"))","v":"No Price"},{"$f":"IF(E10=\"\",\"No Price\",IF(E10>'UK Rate Card - evaluated'!D9,\"Fail 1\",\"Pass\"))","v":"No Price"},{"$f":"IF(F10=\"\",\"No Price\",IF(F10>'UK Rate Card - evaluated'!D9,\"Fail 1\",\"Pass\"))","v":"No Price"}]
[null,null,"2. Senior data architect",null,null,null,null,null,"2. Senior data architect",{"$f":"IF(D11=\"\",\"No Price\",IF(D11>'UK Rate Card - evaluated'!D10,\"Fail 1\",\"Pass\"))","v":"No Price"},{"$f":"IF(E11=\"\",\"No Price\",IF(E11>'UK Rate Card - evaluated'!D10,\"Fail 1\",\"Pass\"))","v":"No Price"},{"$f":"IF(F11=\"\",\"No Price\",IF(F11>'UK Rate Card - evaluated'!D10,\"Fail 1\",\"Pass\"))","v":"No Price"}]
[null,null,"3. Chief data architect",null,null,null,null,null,"3. Chief data architect",{"$f":"IF(D12=\"\",\"No Price\",IF(D12>'UK Rate Card - evaluated'!D11,\"Fail 1\",\"Pass\"))","v":"No Price"},{"$f":"IF(E12=\"\",\"No Price\",IF(E12>'UK Rate Card - evaluated'!D11,\"Fail 1\",\"Pass\"))","v":"No Price"},{"$f":"IF(F12=\"\",\"No Price\",IF(F12>'UK Rate Card - evaluated'!D11,\"Fail 1\",\"Pass\"))","v":"No Price"}]
[]
[null,"Enterprise architect","1. Enterprise architect",null,null,null,null,"Enterprise architect","1. Enterprise architect",{"$f":"IF(D14=\"\",\"No Price\",IF(D14>'UK Rate Card - evaluated'!D13,\"Fail 1\",\"Pass\"))","v":"No Price"},{"$f":"IF(E14=\"\",\"No Price\",IF(E14>'UK Rate Card - evaluated'!D13,\"Fail 1\",\"Pass\"))","v":"No Price"},{"$f":"IF(F14=\"\",\"No Price\",IF(F14>'UK Rate Card - evaluated'!D13,\"Fail 1\",\"Pass\"))","v":"No Price"}]
[null,null,"2. Senior enterprise architect",null,null,null,null,null,"2. Senior enterprise architect",{"$f":"IF(D15=\"\",\"No Price\",IF(D15>'UK Rate Card - evaluated'!D14,\"Fail 1\",\"Pass\"))","v":"No Price"},{"$f":"IF(E15=\"\",\"No Price\",IF(E15>'UK Rate Card - evaluated'!D14,\"Fail 1\",\"Pass\"))","v":"No Price"},{"$f":"IF(F15=\"\",\"No Price\",IF(F15>'UK Rate Card - evaluated'!D14,\"Fail 1\",\"Pass\"))","v":"No Price"}]
[null,null,"3. Lead enterprise architect",null,null,null,null,null,"3. Lead enterprise architect",{"$f":"IF(D16=\"\",\"No Price\",IF(D16>'UK Rate Card - evaluated'!D15,\"Fail 1\",\"Pass\"))","v":"No Price"},{"$f":"IF(E16=\"\",\"No Price\",IF(E16>'UK Rate Card - evaluated'!D15,\"Fail 1\",\"Pass\"))","v":"No Price"},{"$f":"IF(F16=\"\",\"No Price\",IF(F16>'UK Rate Card - evaluated'!D15,\"Fail 1\",\"Pass\"))","v":"No Price"}]
[null,null,"4. Principal enterprise architect",null,null,null,null,null,"4. Principal enterprise architect",{"$f":"IF(D17=\"\",\"No Price\",IF(D17>'UK Rate Card - evaluated'!D16,\"Fail 1\",\"Pass\"))","v":"No Price"},{"$f":"IF(E17=\"\",\"No Price\",IF(E17>'UK Rate Card - evaluated'!D16,\"Fail 1\",\"Pass\"))","v":"No Price"},{"$f":"IF(F17=\"\",\"No Price\",IF(F17>'UK Rate Card - evaluated'!D16,\"Fail 1\",\"Pass\"))","v":"No Price"}]
[]
[null,"Network architect","1. Associate network architect",null,null,null,null,"Network architect","1. Associate network architect",{"$f":"IF(D19=\"\",\"No Price\",IF(D19>'UK Rate Card - evaluated'!D18,\"Fail 1\",\"Pass\"))","v":"No Price"},{"$f":"IF(E19=\"\",\"No Price\",IF(E19>'UK Rate Card - evaluated'!D18,\"Fail 1\",\"Pass\"))","v":"No Price"},{"$f":"IF(F19=\"\",\"No Price\",IF(F19>'UK Rate Card - evaluated'!D18,\"Fail 1\",\"Pass\"))","v":"No Price"}]
[null,null,"2. Network architect",null,null,null,null,null,"2. Network architect",{"$f":"IF(D20=\"\",\"No Price\",IF(D20>'UK Rate Card - evaluated'!D19,\"Fail 1\",\"Pass\"))","v":"No Price"},{"$f":"IF(E20=\"\",\"No Price\",IF(E20>'UK Rate Card - evaluated'!D19,\"Fail 1\",\"Pass\"))","v":"No Price"},{"$f":"IF(F20=\"\",\"No Price\",IF(F20>'UK Rate Card - evaluated'!D19,\"Fail 1\",\"Pass\"))","v":"No Price"}]
[null,null,"3. Lead network architect",null,null,null,null,null,"3. Lead network architect",{"$f":"IF(D21=\"\",\"No Price\",IF(D21>'UK Rate Card - evaluated'!D20,\"Fail 1\",\"Pass\"))","v":"No Price"},{"$f":"IF(E21=\"\",\"No Price\",IF(E21>'UK Rate Card - evaluated'!D20,\"Fail 1\",\"Pass\"))","v":"No Price"},{"$f":"IF(F21=\"\",\"No Price\",IF(F21>'UK Rate Card - evaluated'!D20,\"Fail 1\",\"Pass\"))","v":"No Price"}]
[]
[null,"Security architect","1. Security architect",null,null,null,null,"Security architect","1. Security architect",{"$f":"IF(D23=\"\",\"No Price\",IF(D23>'UK Rate Card - evaluated'!D22,\"Fail 1\",\"Pass\"))","v":"No Price"},{"$f":"IF(E23=\"\",\"No Price\",IF(E23>'UK Rate Card - evaluated'!D22,\"Fail 1\",\"Pass\"))","v":"No Price"},{"$f":"IF(F23=\"\",\"No Price\",IF(F23>'UK Rate Card - evaluated'!D22,\"Fail 1\",\"Pass\"))","v":"No Price"}]
[null,null,"2. Lead security architect",null,null,null,null,null,"2. Lead security architect",{"$f":"IF(D24=\"\",\"No Price\",IF(D24>'UK Rate Card - evaluated'!D23,\"Fail 1\",\"Pass\"))","v":"No Price"},{"$f":"IF(E24=\"\",\"No Price\",IF(E24>'UK Rate Card - evaluated'!D23,\"Fail 1\",\"Pass\"))","v":"No Price"},{"$f":"IF(F24=\"\",\"No Price\",IF(F24>'UK Rate Card - evaluated'!D23,\"Fail 1\",\"Pass\"))","v":"No Price"}]
[null,null,"3. Principal security architect",null,null,null,null,null,"3. Principal security architect",{"$f":"IF(D25=\"\",\"No Price\",IF(D25>'UK Rate Card - evaluated'!D24,\"Fail 1\",\"Pass\"))","v":"No Price"},{"$f":"IF(E25=\"\",\"No Price\",IF(E25>'UK Rate Card - evaluated'!D24,\"Fail 1\",\"Pass\"))","v":"No Price"},{"$f":"IF(F25=\"\",\"No Price\",IF(F25>'UK Rate Card - evaluated'!D24,\"Fail 1\",\"Pass\"))","v":"No Price"}]
[]
[null,"Solution architect","1. Associate solution architect",null,null,null,null,"Solution architect","1. Associate solution architect",{"$f":"IF(D27=\"\",\"No Price\",IF(D27>'UK Rate Card - evaluated'!D26,\"Fail 1\",\"Pass\"))","v":"No Price"},{"$f":"IF(E27=\"\",\"No Price\",IF(E27>'UK Rate Card - evaluated'!D26,\"Fail 1\",\"Pass\"))","v":"No Price"},{"$f":"IF(F27=\"\",\"No Price\",IF(F27>'UK Rate Card - evaluated'!D26,\"Fail 1\",\"Pass\"))","v":"No Price"}]
[null,null,"2. Solution architect",null,null,null,null,null,"2. Solution architect",{"$f":"IF(D28=\"\",\"No Price\",IF(D28>'UK Rate Card - evaluated'!D27,\"Fail 1\",\"Pass\"))","v":"No Price"},{"$f":"IF(E28=\"\",\"No Price\",IF(E28>'UK Rate Card - evaluated'!D27,\"Fail 1\",\"Pass\"))","v":"No Price"},{"$f":"IF(F28=\"\",\"No Price\",IF(F28>'UK Rate Card - evaluated'!D27,\"Fail 1\",\"Pass\"))","v":"No Price"}]
[null,null,"3. Senior solution architect",null,null,null,null,null,"3. Senior solution architect",{"$f":"IF(D29=\"\",\"No Price\",IF(D29>'UK Rate Card - evaluated'!D28,\"Fail 1\",\"Pass\"))","v":"No Price"},{"$f":"IF(E29=\"\",\"No Price\",IF(E29>'UK Rate Card - evaluated'!D28,\"Fail 1\",\"Pass\"))","v":"No Price"},{"$f":"IF(F29=\"\",\"No Price\",IF(F29>'UK Rate Card - evaluated'!D28,\"Fail 1\",\"Pass\"))","v":"No Price"}]
[null,null,"4. Lead solution architect",null,null,null,null,null,"4. Lead solution architect",{"$f":"IF(D30=\"\",\"No Price\",IF(D30>'UK Rate Card - evaluated'!D29,\"Fail 1\",\"Pass\"))","v":"No Price"},{"$f":"IF(E30=\"\",\"No Price\",IF(E30>'UK Rate Card - evaluated'!D29,\"Fail 1\",\"Pass\"))","v":"No Price"},{"$f":"IF(F30=\"\",\"No Price\",IF(F30>'UK Rate Card - evaluated'!D29,\"Fail 1\",\"Pass\"))","v":"No Price"}]
[null,null,"5. Principal solution architect",null,null,null,null,null,"5. Principal solution architect",{"$f":"IF(D31=\"\",\"No Price\",IF(D31>'UK Rate Card - evaluated'!D30,\"Fail 1\",\"Pass\"))","v":"No Price"},{"$f":"IF(E31=\"\",\"No Price\",IF(E31>'UK Rate Card - evaluated'!D30,\"Fail 1\",\"Pass\"))","v":"No Price"},{"$f":"IF(F31=\"\",\"No Price\",IF(F31>'UK Rate Card - evaluated'!D30,\"Fail 1\",\"Pass\"))","v":"No Price"}]
[]
[null,"Technical architect","1. Associate technical architect",null,null,null,null,"Technical architect","1. Associate technical architect",{"$f":"IF(D33=\"\",\"No Price\",IF(D33>'UK Rate Card - evaluated'!D32,\"Fail 1\",\"Pass\"))","v":"No Price"},{"$f":"IF(E33=\"\",\"No Price\",IF(E33>'UK Rate Card - evaluated'!D32,\"Fail 1\",\"Pass\"))","v":"No Price"},{"$f":"IF(F33=\"\",\"No Price\",IF(F33>'UK Rate Card - evaluated'!D32,\"Fail 1\",\"Pass\"))","v":"No Price"}]
[null,null,"2. Technical architect",null,null,null,null,null,"2. Technical architect",{"$f":"IF(D34=\"\",\"No Price\",IF(D34>'UK Rate Card - evaluated'!D33,\"Fail 1\",\"Pass\"))","v":"No Price"},{"$f":"IF(E34=\"\",\"No Price\",IF(E34>'UK Rate Card - evaluated'!D33,\"Fail 1\",\"Pass\"))","v":"No Price"},{"$f":"IF(F34=\"\",\"No Price\",IF(F34>'UK Rate Card - evaluated'!D33,\"Fail 1\",\"Pass\"))","v":"No Price"}]
[null,null,"3. Senior technical architect",null,null,null,null,null,"3. Senior technical architect",{"$f":"IF(D35=\"\",\"No Price\",IF(D35>'UK Rate Card - evaluated'!D34,\"Fail 1\",\"Pass\"))","v":"No Price"},{"$f":"IF(E35=\"\",\"No Price\",IF(E35>'UK Rate Card - evaluated'!D34,\"Fail 1\",\"Pass\"))","v":"No Price"},{"$f":"IF(F35=\"\",\"No Price\",IF(F35>'UK Rate Card - evaluated'!D34,\"Fail 1\",\"Pass\"))","v":"No Price"}]
[null,null,"4. Lead technical architect",null,null,null,null,null,"4. Lead technical architect",{"$f":"IF(D36=\"\",\"No Price\",IF(D36>'UK Rate Card - evaluated'!D35,\"Fail 1\",\"Pass\"))","v":"No Price"},{"$f":"IF(E36=\"\",\"No Price\",IF(E36>'UK Rate Card - evaluated'!D35,\"Fail 1\",\"Pass\"))","v":"No Price"},{"$f":"IF(F36=\"\",\"No Price\",IF(F36>'UK Rate Card - evaluated'!D35,\"Fail 1\",\"Pass\"))","v":"No Price"}]
[null,null,"5. Principal technical architect",null,null,null,null,null,"5. Principal technical architect",{"$f":"IF(D37=\"\",\"No Price\",IF(D37>'UK Rate Card - evaluated'!D36,\"Fail 1\",\"Pass\"))","v":"No Price"},{"$f":"IF(E37=\"\",\"No Price\",IF(E37>'UK Rate Card - evaluated'!D36,\"Fail 1\",\"Pass\"))","v":"No Price"},{"$f":"IF(F37=\"\",\"No Price\",IF(F37>'UK Rate Card - evaluated'!D36,\"Fail 1\",\"Pass\"))","v":"No Price"}]
[]
[null,"Data roles",null,"Offshore 1 ","Offshore 2","Offshore 3",null,"Data roles",null,"Offshore","Offshore","Offshore"]
[null,"Data analyst","1. Associate analyst",null,null,null,null,"Data analyst","1. Associate analyst",{"$f":"IF(D40=\"\",\"No Price\",IF(D40>'UK Rate Card - evaluated'!D39,\"Fail 1\",\"Pass\"))","v":"No Price"},{"$f":"IF(E40=\"\",\"No Price\",IF(E40>'UK Rate Card - evaluated'!D39,\"Fail 1\",\"Pass\"))","v":"No Price"},{"$f":"IF(F40=\"\",\"No Price\",IF(F40>'UK Rate Card - evaluated'!D39,\"Fail 1\",\"Pass\"))","v":"No Price"}]
[null,null,"2. Data analyst",null,null,null,null,null,"2. Data analyst",{"$f":"IF(D41=\"\",\"No Price\",IF(D41>'UK Rate Card - evaluated'!D40,\"Fail 1\",\"Pass\"))","v":"No Price"},{"$f":"IF(E41=\"\",\"No Price\",IF(E41>'UK Rate Card - evaluated'!D40,\"Fail 1\",\"Pass\"))","v":"No Price"},{"$f":"IF(F41=\"\",\"No Price\",IF(F41>'UK Rate Card - evaluated'!D40,\"Fail 1\",\"Pass\"))","v":"No Price"}]
[null,null,"3. Senior data analyst",null,null,null,null,null,"3. Senior data analyst",{"$f":"IF(D42=\"\",\"No Price\",IF(D42>'UK Rate Card - evaluated'!D41,\"Fail 1\",\"Pass\"))","v":"No Price"},{"$f":"IF(E42=\"\",\"No Price\",IF(E42>'UK Rate Card - evaluated'!D41,\"Fail 1\",\"Pass\"))","v":"No Price"},{"$f":"IF(F42=\"\",\"No Price\",IF(F42>'UK Rate Card - evaluated'!D41,\"Fail 1\",\"Pass\"))","v":"No Price"}]
[null,null,"4. Principal data analyst",null,null,null,null,null,"4. Principal data analyst",{"$f":"IF(D43=\"\",\"No Price\",IF(D43>'UK Rate Card - evaluated'!D42,\"Fail 1\",\"Pass\"))","v":"No Price"},{"$f":"IF(E43=\"\",\"No Price\",IF(E43>'UK Rate Card - evaluated'!D42,\"Fail 1\",\"Pass\"))","v":"No Price"},{"$f":"IF(F43=\"\",\"No Price\",IF(F43>'UK Rate Card - evaluated'!D42,\"Fail 1\",\"Pass\"))","v":"No Price"}]
[]
[null,"Data engineer","1. Data engineer",null,null,null,null,"Data engineer","1. Data engineer",{"$f":"IF(D45=\"\",\"No Price\",IF(D45>'UK Rate Card - evaluated'!D44,\"Fail 1\",\"Pass\"))","v":"No Price"},{"$f":"IF(E45=\"\",\"No Price\",IF(E45>'UK Rate Card - evaluated'!D44,\"Fail 1\",\"Pass\"))","v":"No Price"},{"$f":"IF(F45=\"\",\"No Price\",IF(F45>'UK Rate Card - evaluated'!D44,\"Fail 1\",\"Pass\"))","v":"No Price"}]
[null,null,"2. Senior data engineer",null,null,null,null,null,"2. Senior data engineer",{"$f":"IF(D46=\"\",\"No Price\",IF(D46>'UK Rate Card - evaluated'!D45,\"Fail 1\",\"Pass\"))","v":"No Price"},{"$f":"IF(E46=\"\",\"No Price\",IF(E46>'UK Rate Card - evaluated'!D45,\"Fail 1\",\"Pass\"))","v":"No Price"},{"$f":"IF(F46=\"\",\"No Price\",IF(F46>'UK Rate Card - evaluated'!D45,\"Fail 1\",\"Pass\"))","v":"No Price"}]
[null,null,"3. Lead data engineer",null,null,null,null,null,"3. Lead data engineer",{"$f":"IF(D47=\"\",\"No Price\",IF(D47>'UK Rate Card - evaluated'!D46,\"Fail 1\",\"Pass\"))","v":"No Price"},{"$f":"IF(E47=\"\",\"No Price\",IF(E47>'UK Rate Card - evaluated'!D46,\"Fail 1\",\"Pass\"))","v":"No Price"},{"$f":"IF(F47=\"\",\"No Price\",IF(F47>'UK Rate Card - evaluated'!D46,\"Fail 1\",\"Pass\"))","v":"No Price"}]
[null,null,"4. Head of data engineering",null,null,null,null,null,"4. Head of data engineering",{"$f":"IF(D48=\"\",\"No Price\",IF(D48>'UK Rate Card - evaluated'!D47,\"Fail 1\",\"Pass\"))","v":"No Price"},{"$f":"IF(E48=\"\",\"No Price\",IF(E48>'UK Rate Card - evaluated'!D47,\"Fail 1\",\"Pass\"))","v":"No Price"},{"$f":"IF(F48=\"\",\"No Price\",IF(F48>'UK Rate Card - evaluated'!D47,\"Fail 1\",\"Pass\"))","v":"No Price"}]
[]
[null,"Data ethicist","1. Data ethics lead",null,null,null,null,"Data ethicist","1. Data ethics lead",{"$f":"IF(D50=\"\",\"No Price\",IF(D50>'UK Rate Card - evaluated'!D49,\"Fail 1\",\"Pass\"))","v":"No Price"},{"$f":"IF(E50=\"\",\"No Price\",IF(E50>'UK Rate Card - evaluated'!D49,\"Fail 1\",\"Pass\"))","v":"No Price"},{"$f":"IF(F50=\"\",\"No Price\",IF(F50>'UK Rate Card - evaluated'!D49,\"Fail 1\",\"Pass\"))","v":"No Price"}]
[null,null,"2. Head of data ethics",null,null,null,null,null,"2. Head of data ethics",{"$f":"IF(D51=\"\",\"No Price\",IF(D51>'UK Rate Card - evaluated'!D50,\"Fail 1\",\"Pass\"))","v":"No Price"},{"$f":"IF(E51=\"\",\"No Price\",IF(E51>'UK Rate Card - evaluated'!D50,\"Fail 1\",\"Pass\"))","v":"No Price"},{"$f":"IF(F51=\"\",\"No Price\",IF(F51>'UK Rate Card - evaluated'!D50,\"Fail 1\",\"Pass\"))","v":"No Price"}]
[]
[null,"Data governance manager","1. Data governance manager",null,null,null,null,"Data governance manager","1. Data governance manager",{"$f":"IF(D53=\"\",\"No Price\",IF(D53>'UK Rate Card - evaluated'!D52,\"Fail 1\",\"Pass\"))","v":"No Price"},{"$f":"IF(E53=\"\",\"No Price\",IF(E53>'UK Rate Card - evaluated'!D52,\"Fail 1\",\"Pass\"))","v":"No Price"},{"$f":"IF(F53=\"\",\"No Price\",IF(F53>'UK Rate Card - evaluated'!D52,\"Fail 1\",\"Pass\"))","v":"No Price"}]
[null,null,"2. Lead data governance manager",null,null,null,null,null,"2. Lead data governance manager",{"$f":"IF(D54=\"\",\"No Price\",IF(D54>'UK Rate Card - evaluated'!D53,\"Fail 1\",\"Pass\"))","v":"No Price"},{"$f":"IF(E54=\"\",\"No Price\",IF(E54>'UK Rate Card - evaluated'!D53,\"Fail 1\",\"Pass\"))","v":"No Price"},{"$f":"IF(F54=\"\",\"No Price\",IF(F54>'UK Rate Card - evaluated'!D53,\"Fail 1\",\"Pass\"))","v":"No Price"}]
[null,null,"3. Head of data governance",null,null,null,null,null,"3. Head of data governance",{"$f":"IF(D55=\"\",\"No Price\",IF(D55>'UK Rate Card - evaluated'!D54,\"Fail 1\",\"Pass\"))","v":"No Price"},{"$f":"IF(E55=\"\",\"No Price\",IF(E55>'UK Rate Card - evaluated'!D54,\"Fail 1\",\"Pass\"))","v":"No Price"},{"$f":"IF(F55=\"\",\"No Price\",IF(F55>'UK Rate Card - evaluated'!D54,\"Fail 1\",\"Pass\"))","v":"No Price"}]
[]
[null,"Data scientist","1. Trainee data scientist",null,null,null,null,"Data scientist","1. Trainee data scientist",{"$f":"IF(D57=\"\",\"No Price\",IF(D57>'UK Rate Card - evaluated'!D56,\"Fail 1\",\"Pass\"))","v":"No Price"},{"$f":"IF(E57=\"\",\"No Price\",IF(E57>'UK Rate Card - evaluated'!D56,\"Fail 1\",\"Pass\"))","v":"No Price"},{"$f":"IF(F57=\"\",\"No Price\",IF(F57>'UK Rate Card - evaluated'!D56,\"Fail 1\",\"Pass\"))","v":"No Price"}]
[null,null,"2. Associate data scientist",null,null,null,null,null,"2. Associate data scientist",{"$f":"IF(D58=\"\",\"No Price\",IF(D58>'UK Rate Card - evaluated'!D57,\"Fail 1\",\"Pass\"))","v":"No Price"},{"$f":"IF(E58=\"\",\"No Price\",IF(E58>'UK Rate Card - evaluated'!D57,\"Fail 1\",\"Pass\"))","v":"No Price"},{"$f":"IF(F58=\"\",\"No Price\",IF(F58>'UK Rate Card - evaluated'!D57,\"Fail 1\",\"Pass\"))","v":"No Price"}]
[null,null,"3. Data scientist",null,null,null,null,null,"3. Data scientist",{"$f":"IF(D59=\"\",\"No Price\",IF(D59>'UK Rate Card - evaluated'!D58,\"Fail 1\",\"Pass\"))","v":"No Price"},{"$f":"IF(E59=\"\",\"No Price\",IF(E59>'UK Rate Card - evaluated'!D58,\"Fail 1\",\"Pass\"))","v":"No Price"},{"$f":"IF(F59=\"\",\"No Price\",IF(F59>'UK Rate Card - evaluated'!D58,\"Fail 1\",\"Pass\"))","v":"No Price"}]
[null,null,"4. Principal data scientist",null,null,null,null,null,"4. Principal data scientist",{"$f":"IF(D60=\"\",\"No Price\",IF(D60>'UK Rate Card - evaluated'!D59,\"Fail 1\",\"Pass\"))","v":"No Price"},{"$f":"IF(E60=\"\",\"No Price\",IF(E60>'UK Rate Card - evaluated'!D59,\"Fail 1\",\"Pass\"))","v":"No Price"},{"$f":"IF(F60=\"\",\"No Price\",IF(F60>'UK Rate Card - evaluated'!D59,\"Fail 1\",\"Pass\"))","v":"No Price"}]
[null,null,"5. Lead data scientist",null,null,null,null,null,"5. Lead data scientist",{"$f":"IF(D61=\"\",\"No Price\",IF(D61>'UK Rate Card - evaluated'!D60,\"Fail 1\",\"Pass\"))","v":"No Price"},{"$f":"IF(E61=\"\",\"No Price\",IF(E61>'UK Rate Card - evaluated'!D60,\"Fail 1\",\"Pass\"))","v":"No Price"},{"$f":"IF(F61=\"\",\"No Price\",IF(F61>'UK Rate Card - evaluated'!D60,\"Fail 1\",\"Pass\"))","v":"No Price"}]
[null,null,"6. Head of data science",null,null,null,null,null,"6. Head of data science",{"$f":"IF(D62=\"\",\"No Price\",IF(D62>'UK Rate Card - evaluated'!D61,\"Fail 1\",\"Pass\"))","v":"No Price"},{"$f":"IF(E62=\"\",\"No Price\",IF(E62>'UK Rate Card - evaluated'!D61,\"Fail 1\",\"Pass\"))","v":"No Price"},{"$f":"IF(F62=\"\",\"No Price\",IF(F62>'UK Rate Card - evaluated'!D61,\"Fail 1\",\"Pass\"))","v":"No Price"}]
[]
[null,"Performance analyst","1. Associate performance analyst",null,null,null,null,"Performance analyst","1. Associate performance analyst",{"$f":"IF(D64=\"\",\"No Price\",IF(D64>'UK Rate Card - evaluated'!D63,\"Fail 1\",\"Pass\"))","v":"No Price"},{"$f":"IF(E64=\"\",\"No Price\",IF(E64>'UK Rate Card - evaluated'!D63,\"Fail 1\",\"Pass\"))","v":"No Price"},{"$f":"IF(F64=\"\",\"No Price\",IF(F64>'UK Rate Card - evaluated'!D63,\"Fail 1\",\"Pass\"))","v":"No Price"}]
[null,null,"2. Performance analyst",null,null,null,null,null,"2. Performance analyst",{"$f":"IF(D65=\"\",\"No Price\",IF(D65>'UK Rate Card - evaluated'!D64,\"Fail 1\",\"Pass\"))","v":"No Price"},{"$f":"IF(E65=\"\",\"No Price\",IF(E65>'UK Rate Card - evaluated'!D64,\"Fail 1\",\"Pass\"))","v":"No Price"},{"$f":"IF(F65=\"\",\"No Price\",IF(F65>'UK Rate Card - evaluated'!D64,\"Fail 1\",\"Pass\"))","v":"No Price"}]
[null,null,"3. Senior performance analyst",null,null,null,null,null,"3. Senior performance analyst",{"$f":"IF(D66=\"\",\"No Price\",IF(D66>'UK Rate Card - evaluated'!D65,\"Fail 1\",\"Pass\"))","v":"No Price"},{"$f":"IF(E66=\"\",\"No Price\",IF(E66>'UK Rate Card - evaluated'!D65,\"Fail 1\",\"Pass\"))","v":"No Price"},{"$f":"IF(F66=\"\",\"No Price\",IF(F66>'UK Rate Card - evaluated'!D65,\"Fail 1\",\"Pass\"))","v":"No Price"}]
[null,null,"4. Lead performance analyst",null,null,null,null,null,"4. Lead performance analyst",{"$f":"IF(D67=\"\",\"No Price\",IF(D67>'UK Rate Card - evaluated'!D66,\"Fail 1\",\"Pass\"))","v":"No Price"},{"$f":"IF(E67=\"\",\"No Price\",IF(E67>'UK Rate Card - evaluated'!D66,\"Fail 1\",\"Pass\"))","v":"No Price"},{"$f":"IF(F67=\"\",\"No Price\",IF(F67>'UK Rate Card - evaluated'!D66,\"Fail 1\",\"Pass\"))","v":"No Price"}]
[null,null,"5. Head of performance analysis",null,null,null,null,null,"5. Head of performance analysis",{"$f":"IF(D68=\"\",\"No Price\",IF(D68>'UK Rate Card - evaluated'!D67,\"Fail 1\",\"Pass\"))","v":"No Price"},{"$f":"IF(E68=\"\",\"No Price\",IF(E68>'UK Rate Card - evaluated'!D67,\"Fail 1\",\"Pass\"))","v":"No Price"},{"$f":"IF(F68=\"\",\"No Price\",IF(F68>'UK Rate Card - evaluated'!D67,\"Fail 1\",\"Pass\"))","v":"No Price"}]
[]
[null,"IT operations roles",null,"Offshore 1 ","Offshore 2","Offshore 3",null,"IT operations roles",null,"Offshore","Offshore","Offshore"]
[null,"Application operations engineer","1. Associate application operations engineer",null,null,null,null,"Application operations engineer","1. Associate application operations engineer",{"$f":"IF(D71=\"\",\"No Price\",IF(D71>'UK Rate Card - evaluated'!D70,\"Fail 1\",\"Pass\"))","v":"No Price"},{"$f":"IF(E71=\"\",\"No Price\",IF(E71>'UK Rate Card - evaluated'!D70,\"Fail 1\",\"Pass\"))","v":"No Price"},{"$f":"IF(F71=\"\",\"No Price\",IF(F71>'UK Rate Card - evaluated'!D70,\"Fail 1\",\"Pass\"))","v":"No Price"}]
[null,null,"2. Application operations engineer",null,null,null,null,null,"2. Application operations engineer",{"$f":"IF(D72=\"\",\"No Price\",IF(D72>'UK Rate Card - evaluated'!D71,\"Fail 1\",\"Pass\"))","v":"No Price"},{"$f":"IF(E72=\"\",\"No Price\",IF(E72>'UK Rate Card - evaluated'!D71,\"Fail 1\",\"Pass\"))","v":"No Price"},{"$f":"IF(F72=\"\",\"No Price\",IF(F72>'UK Rate Card - evaluated'!D71,\"Fail 1\",\"Pass\"))","v":"No Price"}]
[null,null,"3. Senior application operations engineer",null,null,null,null,null,"3. Senior application operations engineer",{"$f":"IF(D73=\"\",\"No Price\",IF(D73>'UK Rate Card - evaluated'!D72,\"Fail 1\",\"Pass\"))","v":"No Price"},{"$f":"IF(E73=\"\",\"No Price\",IF(E73>'UK Rate Card - evaluated'!D72,\"Fail 1\",\"Pass\"))","v":"No Price"},{"$f":"IF(F73=\"\",\"No Price\",IF(F73>'UK Rate Card - evaluated'!D72,\"Fail 1\",\"Pass\"))","v":"No Price"}]
[null,null,"4. Lead application operations engineer",null,null,null,null,null,"4. Lead application operations engineer",{"$f":"IF(D74=\"\",\"No Price\",IF(D74>'UK Rate Card - evaluated'!D73,\"Fail 1\",\"Pass\"))","v":"No Price"},{"$f":"IF(E74=\"\",\"No Price\",IF(E74>'UK Rate Card - evaluated'!D73,\"Fail 1\",\"Pass\"))","v":"No Price"},{"$f":"IF(F74=\"\",\"No Price\",IF(F74>'UK Rate Card - evaluated'!D73,\"Fail 1\",\"Pass\"))","v":"No Price"}]
[null,null,"5. Principal application operations engineer",null,null,null,null,null,"5. Principal application operations engineer",{"$f":"IF(D75=\"\",\"No Price\",IF(D75>'UK Rate Card - evaluated'!D74,\"Fail 1\",\"Pass\"))","v":"No Price"},{"$f":"IF(E75=\"\",\"No Price\",IF(E75>'UK Rate Card - evaluated'!D74,\"Fail 1\",\"Pass\"))","v":"No Price"},{"$f":"IF(F75=\"\",\"No Price\",IF(F75>'UK Rate Card - evaluated'!D74,\"Fail 1\",\"Pass\"))","v":"No Price"}]
[]
[null,"Business relationship manager","1. Business relationship manager",null,null,null,null,"Business relationship manager","1. Business relationship manager",{"$f":"IF(D77=\"\",\"No Price\",IF(D77>'UK Rate Card - evaluated'!D76,\"Fail 1\",\"Pass\"))","v":"No Price"},{"$f":"IF(E77=\"\",\"No Price\",IF(E77>'UK Rate Card - evaluated'!D76,\"Fail 1\",\"Pass\"))","v":"No Price"},{"$f":"IF(F77=\"\",\"No Price\",IF(F77>'UK Rate Card - evaluated'!D76,\"Fail 1\",\"Pass\"))","v":"No Price"}]
[null,null,"2. Senior business relationship manager",null,null,null,null,null,"2. Senior business relationship manager",{"$f":"IF(D78=\"\",\"No Price\",IF(D78>'UK Rate Card - evaluated'!D77,\"Fail 1\",\"Pass\"))","v":"No Price"},{"$f":"IF(E78=\"\",\"No Price\",IF(E78>'UK Rate Card - evaluated'!D77,\"Fail 1\",\"Pass\"))","v":"No Price"},{"$f":"IF(F78=\"\",\"No Price\",IF(F78>'UK Rate Card - evaluated'!D77,\"Fail 1\",\"Pass\"))","v":"No Price"}]
[null,null,"3. Lead business relationship manager",null,null,null,null,null,"3. Lead business relationship manager",{"$f":"IF(D79=\"\",\"No Price\",IF(D79>'UK Rate Card - evaluated'!D78,\"Fail 1\",\"Pass\"))","v":"No Price"},{"$f":"IF(E79=\"\",\"No Price\",IF(E79>'UK Rate Card - evaluated'!D78,\"Fail 1\",\"Pass\"))","v":"No Price"},{"$f":"IF(F79=\"\",\"No Price\",IF(F79>'UK Rate Card - evaluated'!D78,\"Fail 1\",\"Pass\"))","v":"No Price"}]
[]
[null,"Change and release manager","1. Configuration analyst",null,null,null,null,"Change and release manager","1. Configuration analyst",{"$f":"IF(D81=\"\",\"No Price\",IF(D81>'UK Rate Card - evaluated'!D80,\"Fail 1\",\"Pass\"))","v":"No Price"},{"$f":"IF(E81=\"\",\"No Price\",IF(E81>'UK Rate Card - evaluated'!D80,\"Fail 1\",\"Pass\"))","v":"No Price"},{"$f":"IF(F81=\"\",\"No Price\",IF(F81>'UK Rate Card - evaluated'!D80,\"Fail 1\",\"Pass\"))","v":"No Price"}]
[null,null,"2. Change and release analyst",null,null,null,null,null,"2. Change and release analyst",{"$f":"IF(D82=\"\",\"No Price\",IF(D82>'UK Rate Card - evaluated'!D81,\"Fail 1\",\"Pass\"))","v":"No Price"},{"$f":"IF(E82=\"\",\"No Price\",IF(E82>'UK Rate Card - evaluated'!D81,\"Fail 1\",\"Pass\"))","v":"No Price"},{"$f":"IF(F82=\"\",\"No Price\",IF(F82>'UK Rate Card - evaluated'!D81,\"Fail 1\",\"Pass\"))","v":"No Price"}]
[null,null,"3. Change and release manager",null,null,null,null,null,"3. Change and release manager",{"$f":"IF(D83=\"\",\"No Price\",IF(D83>'UK Rate Card - evaluated'!D82,\"Fail 1\",\"Pass\"))","v":"No Price"},{"$f":"IF(E83=\"\",\"No Price\",IF(E83>'UK Rate Card - evaluated'!D82,\"Fail 1\",\"Pass\"))","v":"No Price"},{"$f":"IF(F83=\"\",\"No Price\",IF(F83>'UK Rate Card - evaluated'!D82,\"Fail 1\",\"Pass\"))","v":"No Price"}]
[]
[null,"Command and control centre manager","1. Operations analyst",null,null,null,null,"Command and control centre manager","1. Operations analyst",{"$f":"IF(D85=\"\",\"No Price\",IF(D85>'UK Rate Card - evaluated'!D84,\"Fail 1\",\"Pass\"))","v":"No Price"},{"$f":"IF(E85=\"\",\"No Price\",IF(E85>'UK Rate Card - evaluated'!D84,\"Fail 1\",\"Pass\"))","v":"No Price"},{"$f":"IF(F85=\"\",\"No Price\",IF(F85>'UK Rate Card - evaluated'!D84,\"Fail 1\",\"Pass\"))","v":"No Price"}]
[null,null,"2. Senior operations analyst",null,null,null,null,null,"2. Senior operations analyst",{"$f":"IF(D86=\"\",\"No Price\",IF(D86>'UK Rate Card - evaluated'!D85,\"Fail 1\",\"Pass\"))","v":"No Price"},{"$f":"IF(E86=\"\",\"No Price\",IF(E86>'UK Rate Card - evaluated'!D85,\"Fail 1\",\"Pass\"))","v":"No Price"},{"$f":"IF(F86=\"\",\"No Price\",IF(F86>'UK Rate Card - evaluated'!D85,\"Fail 1\",\"Pass\"))","v":"No Price"}]
[null,null,"3. Operational control manager",null,null,null,null,null,"3. Operational control manager",{"$f":"IF(D87=\"\",\"No Price\",IF(D87>'UK Rate Card - evaluated'!D86,\"Fail 1\",\"Pass\"))","v":"No Price"},{"$f":"IF(E87=\"\",\"No Price\",IF(E87>'UK Rate Card - evaluated'!D86,\"Fail 1\",\"Pass\"))","v":"No Price"},{"$f":"IF(F87=\"\",\"No Price\",IF(F87>'UK Rate Card - evaluated'!D86,\"Fail 1\",\"Pass\"))","v":"No Price"}]
[null,null,"4. Head of command and control",null,null,null,null,null,"4. Head of command and control",{"$f":"IF(D88=\"\",\"No Price\",IF(D88>'UK Rate Card - evaluated'!D87,\"Fail 1\",\"Pass\"))","v":"No Price"},{"$f":"IF(E88=\"\",\"No Price\",IF(E88>'UK Rate Card - evaluated'!D87,\"Fail 1\",\"Pass\"))","v":"No Price"},{"$f":"IF(F88=\"\",\"No Price\",IF(F88>'UK Rate Card - evaluated'!D87,\"Fail 1\",\"Pass\"))","v":"No Price"}]
[]
[null,"End user computing engineer","1. Associate end user computing engineer",null,null,null,null,"End user computing engineer","1. Associate end user computing engineer",{"$f":"IF(D90=\"\",\"No Price\",IF(D90>'UK Rate Card - evaluated'!D89,\"Fail 1\",\"Pass\"))","v":"No Price"},{"$f":"IF(E90=\"\",\"No Price\",IF(E90>'UK Rate Card - evaluated'!D89,\"Fail 1\",\"Pass\"))","v":"No Price"},{"$f":"IF(F90=\"\",\"No Price\",IF(F90>'UK Rate Card - evaluated'!D89,\"Fail 1\",\"Pass\"))","v":"No Price"}]
[null,null,"2. End user computing engineer",null,null,null,null,null,"2. End user computing engineer",{"$f":"IF(D91=\"\",\"No Price\",IF(D91>'UK Rate Card - evaluated'!D90,\"Fail 1\",\"Pass\"))","v":"No Price"},{"$f":"IF(E91=\"\",\"No Price\",IF(E91>'UK Rate Card - evaluated'!D90,\"Fail 1\",\"Pass\"))","v":"No Price"},{"$f":"IF(F91=\"\",\"No Price\",IF(F91>'UK Rate Card - evaluated'!D90,\"Fail 1\",\"Pass\"))","v":"No Price"}]
[null,null,"3. Senior end user computing engineer",null,null,null,null,null,"3. Senior end user computing engineer",{"$f":"IF(D92=\"\",\"No Price\",IF(D92>'UK Rate Card - evaluated'!D91,\"Fail 1\",\"Pass\"))","v":"No Price"},{"$f":"IF(E92=\"\",\"No Price\",IF(E92>'UK Rate Card - evaluated'!D91,\"Fail 1\",\"Pass\"))","v":"No Price"},{"$f":"IF(F92=\"\",\"No Price\",IF(F92>'UK Rate Card - evaluated'!D91,\"Fail 1\",\"Pass\"))","v":"No Price"}]
[null,null,"4. Lead end user computing engineer",null,null,null,null,null,"4. Lead end user computing engineer",{"$f":"IF(D93=\"\",\"No Price\",IF(D93>'UK Rate Card - evaluated'!D92,\"Fail 1\",\"Pass\"))","v":"No Price"},{"$f":"IF(E93=\"\",\"No Price\",IF(E93>'UK Rate Card - evaluated'!D92,\"Fail 1\",\"Pass\"))","v":"No Price"},{"$f":"IF(F93=\"\",\"No Price\",IF(F93>'UK Rate Card - evaluated'!D92,\"Fail 1\",\"Pass\"))","v":"No Price"}]
[null,null,"5. Principal end user computing engineer",null,null,null,null,null,"5. Principal end user computing engineer",{"$f":"IF(D94=\"\",\"No Price\",IF(D94>'UK Rate Card - evaluated'!D93,\"Fail 1\",\"Pass\"))","v":"No Price"},{"$f":"IF(E94=\"\",\"No Price\",IF(E94>'UK Rate Card - evaluated'!D93,\"Fail 1\",\"Pass\"))","v":"No Price"},{"$f":"IF(F94=\"\",\"No Price\",IF(F94>'UK Rate Card - evaluated'!D93,\"Fail 1\",\"Pass\"))","v":"No Price"}]
[]
[null,"IT service manager","1. IT service analyst",null,null,null,null,"IT service manager","1. IT service analyst",{"$f":"IF(D96=\"\",\"No Price\",IF(D96>'UK Rate Card - evaluated'!D95,\"Fail 1\",\"Pass\"))","v":"No Price"},{"$f":"IF(E96=\"\",\"No Price\",IF(E96>'UK Rate Card - evaluated'!D95,\"Fail 1\",\"Pass\"))","v":"No Price"},{"$f":"IF(F96=\"\",\"No Price\",IF(F96>'UK Rate Card - evaluated'!D95,\"Fail 1\",\"Pass\"))","v":"No Price"}]
[null,null,"2. IT service manager",null,null,null,null,null,"2. IT service manager",{"$f":"IF(D97=\"\",\"No Price\",IF(D97>'UK Rate Card - evaluated'!D96,\"Fail 1\",\"Pass\"))","v":"No Price"},{"$f":"IF(E97=\"\",\"No Price\",IF(E97>'UK Rate Card - evaluated'!D96,\"Fail 1\",\"Pass\"))","v":"No Price"},{"$f":"IF(F97=\"\",\"No Price\",IF(F97>'UK Rate Card - evaluated'!D96,\"Fail 1\",\"Pass\"))","v":"No Price"}]
[null,null,"3. Senior IT service manager",null,null,null,null,null,"3. Senior IT service manager",{"$f":"IF(D98=\"\",\"No Price\",IF(D98>'UK Rate Card - evaluated'!D97,\"Fail 1\",\"Pass\"))","v":"No Price"},{"$f":"IF(E98=\"\",\"No Price\",IF(E98>'UK Rate Card - evaluated'!D97,\"Fail 1\",\"Pass\"))","v":"No Price"},{"$f":"IF(F98=\"\",\"No Price\",IF(F98>'UK Rate Card - evaluated'!D97,\"Fail 1\",\"Pass\"))","v":"No Price"}]
[null,null,"4. Head of IT service management",null,null,null,null,null,"4. Head of IT service management",{"$f":"IF(D99=\"\",\"No Price\",IF(D99>'UK Rate Card - evaluated'!D98,\"Fail 1\",\"Pass\"))","v":"No Price"},{"$f":"IF(E99=\"\",\"No Price\",IF(E99>'UK Rate Card - evaluated'!D98,\"Fail 1\",\"Pass\"))","v":"No Price"},{"$f":"IF(F99=\"\",\"No Price\",IF(F99>'UK Rate Card - evaluated'!D98,\"Fail 1\",\"Pass\"))","v":"No Price"}]
[]
[null,"Incident manager","1. Incident manager",null,null,null,null,"Incident manager","1. Incident manager",{"$f":"IF(D101=\"\",\"No Price\",IF(D101>'UK Rate Card - evaluated'!D100,\"Fail 1\",\"Pass\"))","v":"No Price"},{"$f":"IF(E101=\"\",\"No Price\",IF(E101>'UK Rate Card - evaluated'!D100,\"Fail 1\",\"Pass\"))","v":"No Price"},{"$f":"IF(F101=\"\",\"No Price\",IF(F101>'UK Rate Card - evaluated'!D100,\"Fail 1\",\"Pass\"))","v":"No Price"}]
[null,null,"2. Major incident manager",null,null,null,null,null,"2. Major incident manager",{"$f":"IF(D102=\"\",\"No Price\",IF(D102>'UK Rate Card - evaluated'!D101,\"Fail 1\",\"Pass\"))","v":"No Price"},{"$f":"IF(E102=\"\",\"No Price\",IF(E102>'UK Rate Card - evaluated'!D101,\"Fail 1\",\"Pass\"))","v":"No Price"},{"$f":"IF(F102=\"\",\"No Price\",IF(F102>'UK Rate Card - evaluated'!D101,\"Fail 1\",\"Pass\"))","v":"No Price"}]
[]
[null,"Infrastructure engineer","1. Associate infrastructure engineer",null,null,null,null,"Infrastructure engineer","1. Associate infrastructure engineer",{"$f":"IF(D104=\"\",\"No Price\",IF(D104>'UK Rate Card - evaluated'!D103,\"Fail 1\",\"Pass\"))","v":"No Price"},{"$f":"IF(E104=\"\",\"No Price\",IF(E104>'UK Rate Card - evaluated'!D103,\"Fail 1\",\"Pass\"))","v":"No Price"},{"$f":"IF(F104=\"\",\"No Price\",IF(F104>'UK Rate Card - evaluated'!D103,\"Fail 1\",\"Pass\"))","v":"No Price"}]
[null,null,"2. Infrastructure engineer",null,null,null,null,null,"2. Infrastructure engineer",{"$f":"IF(D105=\"\",\"No Price\",IF(D105>'UK Rate Card - evaluated'!D104,\"Fail 1\",\"Pass\"))","v":"No Price"},{"$f":"IF(E105=\"\",\"No Price\",IF(E105>'UK Rate Card - evaluated'!D104,\"Fail 1\",\"Pass\"))","v":"No Price"},{"$f":"IF(F105=\"\",\"No Price\",IF(F105>'UK Rate Card - evaluated'!D104,\"Fail 1\",\"Pass\"))","v":"No Price"}]
[null,null,"3. Senior infrastructure engineer",null,null,null,null,null,"3. Senior infrastructure engineer",{"$f":"IF(D106=\"\",\"No Price\",IF(D106>'UK Rate Card - evaluated'!D105,\"Fail 1\",\"Pass\"))","v":"No Price"},{"$f":"IF(E106=\"\",\"No Price\",IF(E106>'UK Rate Card - evaluated'!D105,\"Fail 1\",\"Pass\"))","v":"No Price"},{"$f":"IF(F106=\"\",\"No Price\",IF(F106>'UK Rate Card - evaluated'!D105,\"Fail 1\",\"Pass\"))","v":"No Price"}]
[null,null,"4. Lead infrastructure engineer",null,null,null,null,null,"4. Lead infrastructure engineer",{"$f":"IF(D107=\"\",\"No Price\",IF(D107>'UK Rate Card - evaluated'!D106,\"Fail 1\",\"Pass\"))","v":"No Price"},{"$f":"IF(E107=\"\",\"No Price\",IF(E107>'UK Rate Card - evaluated'!D106,\"Fail 1\",\"Pass\"))","v":"No Price"},{"$f":"IF(F107=\"\",\"No Price\",IF(F107>'UK Rate Card - evaluated'!D106,\"Fail 1\",\"Pass\"))","v":"No Price"}]
[null,null,"5. Principal infrastructure engineer",null,null,null,null,null,"5. Principal infrastructure engineer",{"$f":"IF(D108=\"\",\"No Price\",IF(D108>'UK Rate Card - evaluated'!D107,\"Fail 1\",\"Pass\"))","v":"No Price"},{"$f":"IF(E108=\"\",\"No Price\",IF(E108>'UK Rate Card - evaluated'!D107,\"Fail 1\",\"Pass\"))","v":"No Price"},{"$f":"IF(F108=\"\",\"No Price\",IF(F108>'UK Rate Card - evaluated'!D107,\"Fail 1\",\"Pass\"))","v":"No Price"}]
[]
[null,"Infrastructure operations engineer","1. Associate infrastructure operations engineer",null,null,null,null,"Infrastructure operations engineer","1. Associate infrastructure operations engineer",{"$f":"IF(D110=\"\",\"No Price\",IF(D110>'UK Rate Card - evaluated'!D109,\"Fail 1\",\"Pass\"))","v":"No Price"},{"$f":"IF(E110=\"\",\"No Price\",IF(E110>'UK Rate Card - evaluated'!D109,\"Fail 1\",\"Pass\"))","v":"No Price"},{"$f":"IF(F110=\"\",\"No Price\",IF(F110>'UK Rate Card - evaluated'!D109,\"Fail 1\",\"Pass\"))","v":"No Price"}]
[null,null,"2. Infrastructure operations engineer",null,null,null,null,null,"2. Infrastructure operations engineer",{"$f":"IF(D111=\"\",\"No Price\",IF(D111>'UK Rate Card - evaluated'!D110,\"Fail 1\",\"Pass\"))","v":"No Price"},{"$f":"IF(E111=\"\",\"No Price\",IF(E111>'UK Rate Card - evaluated'!D110,\"Fail 1\",\"Pass\"))","v":"No Price"},{"$f":"IF(F111=\"\",\"No Price\",IF(F111>'UK Rate Card - evaluated'!D110,\"Fail 1\",\"Pass\"))","v":"No Price"}]
[null,null,"3. Senior infrastructure operations engineer",null,null,null,null,null,"3. Senior infrastructure operations engineer",{"$f":"IF(D112=\"\",\"No Price\",IF(D112>'UK Rate Card - evaluated'!D111,\"Fail 1\",\"Pass\"))","v":"No Price"},{"$f":"IF(E112=\"\",\"No Price\",IF(E112>'UK Rate Card - evaluated'!D111,\"Fail 1\",\"Pass\"))","v":"No Price"},{"$f":"IF(F112=\"\",\"No Price\",IF(F112>'UK Rate Card - evaluated'!D111,\"Fail 1\",\"Pass\"))","v":"No Price"}]
[null,null,"4. Lead infrastructure operations engineer",null,null,null,null,null,"4. Lead infrastructure operations engineer",{"$f":"IF(D113=\"\",\"No Price\",IF(D113>'UK Rate Card - evaluated'!D112,\"Fail 1\",\"Pass\"))","v":"No Price"},{"$f":"IF(E113=\"\",\"No Price\",IF(E113>'UK Rate Card - evaluated'!D112,\"Fail 1\",\"Pass\"))","v":"No Price"},{"$f":"IF(F113=\"\",\"No Price\",IF(F113>'UK Rate Card - evaluated'!D112,\"Fail 1\",\"Pass\"))","v":"No Price"}]
[null,null,"5. Principal infrastructure operations engineer",null,null,null,null,null,"5. Principal infrastructure operations engineer",{"$f":"IF(D114=\"\",\"No Price\",IF(D114>'UK Rate Card - evaluated'!D113,\"Fail 1\",\"Pass\"))","v":"No Price"},{"$f":"IF(E114=\"\",\"No Price\",IF(E114>'UK Rate Card - evaluated'!D113,\"Fail 1\",\"Pass\"))","v":"No Price"},{"$f":"IF(F114=\"\",\"No Price\",IF(F114>'UK Rate Card - evaluated'!D113,\"Fail 1\",\"Pass\"))","v":"No Price"}]
[]
[null,"Problem manager","1. Problem analyst",null,null,null,null,"Problem manager","1. Problem analyst",{"$f":"IF(D116=\"\",\"No Price\",IF(D116>'UK Rate Card - evaluated'!D115,\"Fail 1\",\"Pass\"))","v":"No Price"},{"$f":"IF(E116=\"\",\"No Price\",IF(E116>'UK Rate Card - evaluated'!D115,\"Fail 1\",\"Pass\"))","v":"No Price"},{"$f":"IF(F116=\"\",\"No Price\",IF(F116>'UK Rate Card - evaluated'!D115,\"Fail 1\",\"Pass\"))","v":"No Price"}]
[null,null,"2. Problem manager",null,null,null,null,null,"2. Problem manager",{"$f":"IF(D117=\"\",\"No Price\",IF(D117>'UK Rate Card - evaluated'!D116,\"Fail 1\",\"Pass\"))","v":"No Price"},{"$f":"IF(E117=\"\",\"No Price\",IF(E117>'UK Rate Card - evaluated'!D116,\"Fail 1\",\"Pass\"))","v":"No Price"},{"$f":"IF(F117=\"\",\"No Price\",IF(F117>'UK Rate Card - evaluated'!D116,\"Fail 1\",\"Pass\"))","v":"No Price"}]
[]
[null,"Service desk manager","1. Service desk analyst",null,null,null,null,"Service desk manager","1. Service desk analyst",{"$f":"IF(D119=\"\",\"No Price\",IF(D119>'UK Rate Card - evaluated'!D118,\"Fail 1\",\"Pass\"))","v":"No Price"},{"$f":"IF(E119=\"\",\"No Price\",IF(E119>'UK Rate Card - evaluated'!D118,\"Fail 1\",\"Pass\"))","v":"No Price"},{"$f":"IF(F119=\"\",\"No Price\",IF(F119>'UK Rate Card - evaluated'!D118,\"Fail 1\",\"Pass\"))","v":"No Price"}]
[null,null,"2. Senior service desk analyst",null,null,null,null,null,"2. Senior service desk analyst",{"$f":"IF(D120=\"\",\"No Price\",IF(D120>'UK Rate Card - evaluated'!D119,\"Fail 1\",\"Pass\"))","v":"No Price"},{"$f":"IF(E120=\"\",\"No Price\",IF(E120>'UK Rate Card - evaluated'!D119,\"Fail 1\",\"Pass\"))","v":"No Price"},{"$f":"IF(F120=\"\",\"No Price\",IF(F120>'UK Rate Card - evaluated'!D119,\"Fail 1\",\"Pass\"))","v":"No Price"}]
[null,null,"3. Service desk manager",null,null,null,null,null,"3. Service desk manager",{"$f":"IF(D121=\"\",\"No Price\",IF(D121>'UK Rate Card - evaluated'!D120,\"Fail 1\",\"Pass\"))","v":"No Price"},{"$f":"IF(E121=\"\",\"No Price\",IF(E121>'UK Rate Card - evaluated'!D120,\"Fail 1\",\"Pass\"))","v":"No Price"},{"$f":"IF(F121=\"\",\"No Price\",IF(F121>'UK Rate Card - evaluated'!D120,\"Fail 1\",\"Pass\"))","v":"No Price"}]
[null,null,"4. Head of service desk",null,null,null,null,null,"4. Head of service desk",{"$f":"IF(D122=\"\",\"No Price\",IF(D122>'UK Rate Card - evaluated'!D121,\"Fail 1\",\"Pass\"))","v":"No Price"},{"$f":"IF(E122=\"\",\"No Price\",IF(E122>'UK Rate Card - evaluated'!D121,\"Fail 1\",\"Pass\"))","v":"No Price"},{"$f":"IF(F122=\"\",\"No Price\",IF(F122>'UK Rate Card - evaluated'!D121,\"Fail 1\",\"Pass\"))","v":"No Price"}]
[]
[null,"Service transition manager","1. Service acceptance analyst",null,null,null,null,"Service transition manager","1. Service acceptance analyst",{"$f":"IF(D124=\"\",\"No Price\",IF(D124>'UK Rate Card - evaluated'!D123,\"Fail 1\",\"Pass\"))","v":"No Price"},{"$f":"IF(E124=\"\",\"No Price\",IF(E124>'UK Rate Card - evaluated'!D123,\"Fail 1\",\"Pass\"))","v":"No Price"},{"$f":"IF(F124=\"\",\"No Price\",IF(F124>'UK Rate Card - evaluated'!D123,\"Fail 1\",\"Pass\"))","v":"No Price"}]
[null,null,"2. Service readiness analyst",null,null,null,null,null,"2. Service readiness analyst",{"$f":"IF(D125=\"\",\"No Price\",IF(D125>'UK Rate Card - evaluated'!D124,\"Fail 1\",\"Pass\"))","v":"No Price"},{"$f":"IF(E125=\"\",\"No Price\",IF(E125>'UK Rate Card - evaluated'!D124,\"Fail 1\",\"Pass\"))","v":"No Price"},{"$f":"IF(F125=\"\",\"No Price\",IF(F125>'UK Rate Card - evaluated'!D124,\"Fail 1\",\"Pass\"))","v":"No Price"}]
[null,null,"3. Service transition manager",null,null,null,null,null,"3. Service transition manager",{"$f":"IF(D126=\"\",\"No Price\",IF(D126>'UK Rate Card - evaluated'!D125,\"Fail 1\",\"Pass\"))","v":"No Price"},{"$f":"IF(E126=\"\",\"No Price\",IF(E126>'UK Rate Card - evaluated'!D125,\"Fail 1\",\"Pass\"))","v":"No Price"},{"$f":"IF(F126=\"\",\"No Price\",IF(F126>'UK Rate Card - evaluated'!D125,\"Fail 1\",\"Pass\"))","v":"No Price"}]
[null,null,"4. Lead service transition manager",null,null,null,null,null,"4. Lead service transition manager",{"$f":"IF(D127=\"\",\"No Price\",IF(D127>'UK Rate Card - evaluated'!D126,\"Fail 1\",\"Pass\"))","v":"No Price"},{"$f":"IF(E127=\"\",\"No Price\",IF(E127>'UK Rate Card - evaluated'!D126,\"Fail 1\",\"Pass\"))","v":"No Price"},{"$f":"IF(F127=\"\",\"No Price\",IF(F127>'UK Rate Card - evaluated'!D126,\"Fail 1\",\"Pass\"))","v":"No Price"}]
[]
[null,"Product and delivery roles",null,"Offshore 1 ","Offshore 2","Offshore 3",null,"Product and delivery roles",null,"Offshore","Offshore","Offshore"]
[null,"Business analyst","1. Trainee business analyst",null,null,null,null,"Business analyst","1. Trainee business analyst",{"$f":"IF(D130=\"\",\"No Price\",IF(D130>'UK Rate Card - evaluated'!D129,\"Fail 1\",\"Pass\"))","v":"No Price"},{"$f":"IF(E130=\"\",\"No Price\",IF(E130>'UK Rate Card - evaluated'!D129,\"Fail 1\",\"Pass\"))","v":"No Price"},{"$f":"IF(F130=\"\",\"No Price\",IF(F130>'UK Rate Card - evaluated'!D129,\"Fail 1\",\"Pass\"))","v":"No Price"}]
[null,null,"2. Junior business analyst",null,null,null,null,null,"2. Junior business analyst",{"$f":"IF(D131=\"\",\"No Price\",IF(D131>'UK Rate Card - evaluated'!D130,\"Fail 1\",\"Pass\"))","v":"No Price"},{"$f":"IF(E131=\"\",\"No Price\",IF(E131>'UK Rate Card - evaluated'!D130,\"Fail 1\",\"Pass\"))","v":"No Price"},{"$f":"IF(F131=\"\",\"No Price\",IF(F131>'UK Rate Card - evaluated'!D130,\"Fail 1\",\"Pass\"))","v":"No Price"}]
[null,null,"3. Business analyst",null,null,null,null,null,"3. Business analyst",{"$f":"IF(D132=\"\",\"No Price\",IF(D132>'UK Rate Card - evaluated'!D131,\"Fail 1\",\"Pass\"))","v":"No Price"},{"$f":"IF(E132=\"\",\"No Price\",IF(E132>'UK Rate Card - evaluated'!D131,\"Fail 1\",\"Pass\"))","v":"No Price"},{"$f":"IF(F132=\"\",\"No Price\",IF(F132>'UK Rate Card - evaluated'!D131,\"Fail 1\",\"Pass\"))","v":"No Price"}]
[null,null,"4. Senior business analyst",null,null,null,null,null,"4. Senior business analyst",{"$f":"IF(D133=\"\",\"No Price\",IF(D133>'UK Rate Card - evaluated'!D132,\"Fail 1\",\"Pass\"))","v":"No Price"},{"$f":"IF(E133=\"\",\"No Price\",IF(E133>'UK Rate Card - evaluated'!D132,\"Fail 1\",\"Pass\"))","v":"No Price"},{"$f":"IF(F133=\"\",\"No Price\",IF(F133>'UK Rate Card - evaluated'!D132,\"Fail 1\",\"Pass\"))","v":"No Price"}]
[null,null,"5. Lead business analyst",null,null,null,null,null,"5. Lead business analyst",{"$f":"IF(D134=\"\",\"No Price\",IF(D134>'UK Rate Card - evaluated'!D133,\"Fail 1\",\"Pass\"))","v":"No Price"},{"$f":"IF(E134=\"\",\"No Price\",IF(E134>'UK Rate Card - evaluated'!D133,\"Fail 1\",\"Pass\"))","v":"No Price"},{"$f":"IF(F134=\"\",\"No Price\",IF(F134>'UK Rate Card - evaluated'!D133,\"Fail 1\",\"Pass\"))","v":"No Price"}]
[null,null,"6. Head of business analysis",null,null,null,null,null,"6. Head of business analysis",{"$f":"IF(D135=\"\",\"No Price\",IF(D135>'UK Rate Card - evaluated'!D134,\"Fail 1\",\"Pass\"))","v":"No Price"},{"$f":"IF(E135=\"\",\"No Price\",IF(E135>'UK Rate Card - evaluated'!D134,\"Fail 1\",\"Pass\"))","v":"No Price"},{"$f":"IF(F135=\"\",\"No Price\",IF(F135>'UK Rate Card - evaluated'!D134,\"Fail 1\",\"Pass\"))","v":"No Price"}]
[]
[null,"Delivery manager","1. Associate delivery manager",null,null,null,null,"Delivery manager","1. Associate delivery manager",{"$f":"IF(D137=\"\",\"No Price\",IF(D137>'UK Rate Card - evaluated'!D136,\"Fail 1\",\"Pass\"))","v":"No Price"},{"$f":"IF(E137=\"\",\"No Price\",IF(E137>'UK Rate Card - evaluated'!D136,\"Fail 1\",\"Pass\"))","v":"No Price"},{"$f":"IF(F137=\"\",\"No Price\",IF(F137>'UK Rate Card - evaluated'!D136,\"Fail 1\",\"Pass\"))","v":"No Price"}]
[null,null,"2. Delivery manager",null,null,null,null,null,"2. Delivery manager",{"$f":"IF(D138=\"\",\"No Price\",IF(D138>'UK Rate Card - evaluated'!D137,\"Fail 1\",\"Pass\"))","v":"No Price"},{"$f":"IF(E138=\"\",\"No Price\",IF(E138>'UK Rate Card - evaluated'!D137,\"Fail 1\",\"Pass\"))","v":"No Price"},{"$f":"IF(F138=\"\",\"No Price\",IF(F138>'UK Rate Card - evaluated'!D137,\"Fail 1\",\"Pass\"))","v":"No Price"}]
[null,null,"3. Senior delivery manager",null,null,null,null,null,"3. Senior delivery manager",{"$f":"IF(D139=\"\",\"No Price\",IF(D139>'UK Rate Card - evaluated'!D138,\"Fail 1\",\"Pass\"))","v":"No Price"},{"$f":"IF(E139=\"\",\"No Price\",IF(E139>'UK Rate Card - evaluated'!D138,\"Fail 1\",\"Pass\"))","v":"No Price"},{"$f":"IF(F139=\"\",\"No Price\",IF(F139>'UK Rate Card - evaluated'!D138,\"Fail 1\",\"Pass\"))","v":"No Price"}]
[null,null,"4. Head of (Agile) delivery management",null,null,null,null,null,"4. Head of (Agile) delivery management",{"$f":"IF(D140=\"\",\"No Price\",IF(D140>'UK Rate Card - evaluated'!D139,\"Fail 1\",\"Pass\"))","v":"No Price"},{"$f":"IF(E140=\"\",\"No Price\",IF(E140>'UK Rate Card - evaluated'!D139,\"Fail 1\",\"Pass\"))","v":"No Price"},{"$f":"IF(F140=\"\",\"No Price\",IF(F140>'UK Rate Card - evaluated'!D139,\"Fail 1\",\"Pass\"))","v":"No Price"}]
[]
[null,"Digital portfolio manager","1. Digital portfolio analyst",null,null,null,null,"Digital portfolio manager","1. Digital portfolio analyst",{"$f":"IF(D142=\"\",\"No Price\",IF(D142>'UK Rate Card - evaluated'!D141,\"Fail 1\",\"Pass\"))","v":"No Price"},{"$f":"IF(E142=\"\",\"No Price\",IF(E142>'UK Rate Card - evaluated'!D141,\"Fail 1\",\"Pass\"))","v":"No Price"},{"$f":"IF(F142=\"\",\"No Price\",IF(F142>'UK Rate Card - evaluated'!D141,\"Fail 1\",\"Pass\"))","v":"No Price"}]
[null,null,"2. Digital portfolio manager",null,null,null,null,null,"2. Digital portfolio manager",{"$f":"IF(D143=\"\",\"No Price\",IF(D143>'UK Rate Card - evaluated'!D142,\"Fail 1\",\"Pass\"))","v":"No Price"},{"$f":"IF(E143=\"\",\"No Price\",IF(E143>'UK Rate Card - evaluated'!D142,\"Fail 1\",\"Pass\"))","v":"No Price"},{"$f":"IF(F143=\"\",\"No Price\",IF(F143>'UK Rate Card - evaluated'!D142,\"Fail 1\",\"Pass\"))","v":"No Price"}]
[null,null,"3. Senior digital portfolio manager",null,null,null,null,null,"3. Senior digital portfolio manager",{"$f":"IF(D144=\"\",\"No Price\",IF(D144>'UK Rate Card - evaluated'!D143,\"Fail 1\",\"Pass\"))","v":"No Price"},{"$f":"IF(E144=\"\",\"No Price\",IF(E144>'UK Rate Card - evaluated'!D143,\"Fail 1\",\"Pass\"))","v":"No Price"},{"$f":"IF(F144=\"\",\"No Price\",IF(F144>'UK Rate Card - evaluated'!D143,\"Fail 1\",\"Pass\"))","v":"No Price"}]
[null,null,"4. Head of portfolio",null,null,null,null,null,"4. Head of portfolio",{"$f":"IF(D145=\"\",\"No Price\",IF(D145>'UK Rate Card - evaluated'!D144,\"Fail 1\",\"Pass\"))","v":"No Price"},{"$f":"IF(E145=\"\",\"No Price\",IF(E145>'UK Rate Card - evaluated'!D144,\"Fail 1\",\"Pass\"))","v":"No Price"},{"$f":"IF(F145=\"\",\"No Price\",IF(F145>'UK Rate Card - evaluated'!D144,\"Fail 1\",\"Pass\"))","v":"No Price"}]
[]
[null,"Product manager","1. Associate product manager",null,null,null,null,"Product manager","1. Associate product manager",{"$f":"IF(D147=\"\",\"No Price\",IF(D147>'UK Rate Card - evaluated'!D146,\"Fail 1\",\"Pass\"))","v":"No Price"},{"$f":"IF(E147=\"\",\"No Price\",IF(E147>'UK Rate Card - evaluated'!D146,\"Fail 1\",\"Pass\"))","v":"No Price"},{"$f":"IF(F147=\"\",\"No Price\",IF(F147>'UK Rate Card - evaluated'!D146,\"Fail 1\",\"Pass\"))","v":"No Price"}]
[null,null,"2. Product manager",null,null,null,null,null,"2. Product manager",{"$f":"IF(D148=\"\",\"No Price\",IF(D148>'UK Rate Card - evaluated'!D147,\"Fail 1\",\"Pass\"))","v":"No Price"},{"$f":"IF(E148=\"\",\"No Price\",IF(E148>'UK Rate Card - evaluated'!D147,\"Fail 1\",\"Pass\"))","v":"No Price"},{"$f":"IF(F148=\"\",\"No Price\",IF(F148>'UK Rate Card - evaluated'!D147,\"Fail 1\",\"Pass\"))","v":"No Price"}]
[null,null,"3. Senior product manager",null,null,null,null,null,"3. Senior product manager",{"$f":"IF(D149=\"\",\"No Price\",IF(D149>'UK Rate Card - evaluated'!D148,\"Fail 1\",\"Pass\"))","v":"No Price"},{"$f":"IF(E149=\"\",\"No Price\",IF(E149>'UK Rate Card - evaluated'!D148,\"Fail 1\",\"Pass\"))","v":"No Price"},{"$f":"IF(F149=\"\",\"No Price\",IF(F149>'UK Rate Card - evaluated'!D148,\"Fail 1\",\"Pass\"))","v":"No Price"}]
[null,null,"4. Lead product manager",null,null,null,null,null,"4. Lead product manager",{"$f":"IF(D150=\"\",\"No Price\",IF(D150>'UK Rate Card - evaluated'!D149,\"Fail 1\",\"Pass\"))","v":"No Price"},{"$f":"IF(E150=\"\",\"No Price\",IF(E150>'UK Rate Card - evaluated'!D149,\"Fail 1\",\"Pass\"))","v":"No Price"},{"$f":"IF(F150=\"\",\"No Price\",IF(F150>'UK Rate Card - evaluated'!D149,\"Fail 1\",\"Pass\"))","v":"No Price"}]
[null,null,"5. Head of product",null,null,null,null,null,"5. Head of product",{"$f":"IF(D151=\"\",\"No Price\",IF(D151>'UK Rate Card - evaluated'!D150,\"Fail 1\",\"Pass\"))","v":"No Price"},{"$f":"IF(E151=\"\",\"No Price\",IF(E151>'UK Rate Card - evaluated'!D150,\"Fail 1\",\"Pass\"))","v":"No Price"},{"$f":"IF(F151=\"\",\"No Price\",IF(F151>'UK Rate Card - evaluated'!D150,\"Fail 1\",\"Pass\"))","v":"No Price"}]
[]
[null,"Programme delivery manager","1. Programme delivery manager",null,null,null,null,"Programme delivery manager","1. Programme delivery manager",{"$f":"IF(D153=\"\",\"No Price\",IF(D153>'UK Rate Card - evaluated'!D152,\"Fail 1\",\"Pass\"))","v":"No Price"},{"$f":"IF(E153=\"\",\"No Price\",IF(E153>'UK Rate Card - evaluated'!D152,\"Fail 1\",\"Pass\"))","v":"No Price"},{"$f":"IF(F153=\"\",\"No Price\",IF(F153>'UK Rate Card - evaluated'!D152,\"Fail 1\",\"Pass\"))","v":"No Price"}]
[]
[null,"Service owner","1. Service owner",null,null,null,null,"Service owner","1. Service owner",{"$f":"IF(D155=\"\",\"No Price\",IF(D155>'UK Rate Card - evaluated'!D154,\"Fail 1\",\"Pass\"))","v":"No Price"},{"$f":"IF(E155=\"\",\"No Price\",IF(E155>'UK Rate Card - evaluated'!D154,\"Fail 1\",\"Pass\"))","v":"No Price"},{"$f":"IF(F155=\"\",\"No Price\",IF(F155>'UK Rate Card - evaluated'!D154,\"Fail 1\",\"Pass\"))","v":"No Price"}]
[]
[null,"Quality assurance testing (QAT) roles",null,"Offshore 1 ","Offshore 2","Offshore 3",null,"Quality assurance testing (QAT) roles",null,"Offshore","Offshore","Offshore"]
[null,"Quality assurance testing (QAT) analyst","1. Tester (QAT)",null,null,null,null,"Quality assurance testing (QAT) analyst","1. Tester (QAT)",{"$f":"IF(D158=\"\",\"No Price\",IF(D158>'UK Rate Card - evaluated'!D157,\"Fail 1\",\"Pass\"))","v":"No Price"},{"$f":"IF(E158=\"\",\"No Price\",IF(E158>'UK Rate Card - evaluated'!D157,\"Fail 1\",\"Pass\"))","v":"No Price"},{"$f":"IF(F158=\"\",\"No Price\",IF(F158>'UK Rate Card - evaluated'!D157,\"Fail 1\",\"Pass\"))","v":"No Price"}]
[null,null,"2. QAT analyst",null,null,null,null,null,"2. QAT analyst",{"$f":"IF(D159=\"\",\"No Price\",IF(D159>'UK Rate Card - evaluated'!D158,\"Fail 1\",\"Pass\"))","v":"No Price"},{"$f":"IF(E159=\"\",\"No Price\",IF(E159>'UK Rate Card - evaluated'!D158,\"Fail 1\",\"Pass\"))","v":"No Price"},{"$f":"IF(F159=\"\",\"No Price\",IF(F159>'UK Rate Card - evaluated'!D158,\"Fail 1\",\"Pass\"))","v":"No Price"}]
[null,null,"3. Senior QAT analyst",null,null,null,null,null,"3. Senior QAT analyst",{"$f":"IF(D160=\"\",\"No Price\",IF(D160>'UK Rate Card - evaluated'!D159,\"Fail 1\",\"Pass\"))","v":"No Price"},{"$f":"IF(E160=\"\",\"No Price\",IF(E160>'UK Rate Card - evaluated'!D159,\"Fail 1\",\"Pass\"))","v":"No Price"},{"$f":"IF(F160=\"\",\"No Price\",IF(F160>'UK Rate Card - evaluated'!D159,\"Fail 1\",\"Pass\"))","v":"No Price"}]
[null,null,"4. Lead QAT analyst",null,null,null,null,null,"4. Lead QAT analyst",{"$f":"IF(D161=\"\",\"No Price\",IF(D161>'UK Rate Card - evaluated'!D160,\"Fail 1\",\"Pass\"))","v":"No Price"},{"$f":"IF(E161=\"\",\"No Price\",IF(E161>'UK Rate Card - evaluated'!D160,\"Fail 1\",\"Pass\"))","v":"No Price"},{"$f":"IF(F161=\"\",\"No Price\",IF(F161>'UK Rate Card - evaluated'!D160,\"Fail 1\",\"Pass\"))","v":"No Price"}]
[]
[null,"Test engineer","1. Tester (test engineer)",null,null,null,null,"Test engineer","1. Tester (test engineer)",{"$f":"IF(D163=\"\",\"No Price\",IF(D163>'UK Rate Card - evaluated'!D162,\"Fail 1\",\"Pass\"))","v":"No Price"},{"$f":"IF(E163=\"\",\"No Price\",IF(E163>'UK Rate Card - evaluated'!D162,\"Fail 1\",\"Pass\"))","v":"No Price"},{"$f":"IF(F163=\"\",\"No Price\",IF(F163>'UK Rate Card - evaluated'!D162,\"Fail 1\",\"Pass\"))","v":"No Price"}]
[null,null,"2. Test engineer",null,null,null,null,null,"2. Test engineer",{"$f":"IF(D164=\"\",\"No Price\",IF(D164>'UK Rate Card - evaluated'!D163,\"Fail 1\",\"Pass\"))","v":"No Price"},{"$f":"IF(E164=\"\",\"No Price\",IF(E164>'UK Rate Card - evaluated'!D163,\"Fail 1\",\"Pass\"))","v":"No Price"},{"$f":"IF(F164=\"\",\"No Price\",IF(F164>'UK Rate Card - evaluated'!D163,\"Fail 1\",\"Pass\"))","v":"No Price"}]
[null,null,"3. Senior test engineer",null,null,null,null,null,"3. Senior test engineer",{"$f":"IF(D165=\"\",\"No Price\",IF(D165>'UK Rate Card - evaluated'!D164,\"Fail 1\",\"Pass\"))","v":"No Price"},{"$f":"IF(E165=\"\",\"No Price\",IF(E165>'UK Rate Card - evaluated'!D164,\"Fail 1\",\"Pass\"))","v":"No Price"},{"$f":"IF(F165=\"\",\"No Price\",IF(F165>'UK Rate Card - evaluated'!D164,\"Fail 1\",\"Pass\"))","v":"No Price"}]
[null,null,"4. Lead test engineer",null,null,null,null,null,"4. Lead test engineer",{"$f":"IF(D166=\"\",\"No Price\",IF(D166>'UK Rate Card - evaluated'!D165,\"Fail 1\",\"Pass\"))","v":"No Price"},{"$f":"IF(E166=\"\",\"No Price\",IF(E166>'UK Rate Card - evaluated'!D165,\"Fail 1\",\"Pass\"))","v":"No Price"},{"$f":"IF(F166=\"\",\"No Price\",IF(F166>'UK Rate Card - evaluated'!D165,\"Fail 1\",\"Pass\"))","v":"No Price"}]
[]
[null,"Test manager","1. Test manager",null,null,null,null,"Test manager","1. Test manager",{"$f":"IF(D168=\"\",\"No Price\",IF(D168>'UK Rate Card - evaluated'!D167,\"Fail 1\",\"Pass\"))","v":"No Price"},{"$f":"IF(E168=\"\",\"No Price\",IF(E168>'UK Rate Card - evaluated'!D167,\"Fail 1\",\"Pass\"))","v":"No Price"},{"$f":"IF(F168=\"\",\"No Price\",IF(F168>'UK Rate Card - evaluated'!D167,\"Fail 1\",\"Pass\"))","v":"No Price"}]
[null,null,"2. Head of test",null,null,null,null,null,"2. Head of test",{"$f":"IF(D169=\"\",\"No Price\",IF(D169>'UK Rate Card - evaluated'!D168,\"Fail 1\",\"Pass\"))","v":"No Price"},{"$f":"IF(E169=\"\",\"No Price\",IF(E169>'UK Rate Card - evaluated'!D168,\"Fail 1\",\"Pass\"))","v":"No Price"},{"$f":"IF(F169=\"\",\"No Price\",IF(F169>'UK Rate Card - evaluated'!D168,\"Fail 1\",\"Pass\"))","v":"No Price"}]
[]
[null,"Software development roles",null,"Offshore 1 ","Offshore 2","Offshore 3",null,"Software development roles",null,"Offshore","Offshore","Offshore"]
[null,"Development operations (DevOps) engineer","1. Apprentice DevOps engineer",null,null,null,null,"Development operations (DevOps) engineer","1. Apprentice DevOps engineer",{"$f":"IF(D172=\"\",\"No Price\",IF(D172>'UK Rate Card - evaluated'!D171,\"Fail 1\",\"Pass\"))","v":"No Price"},{"$f":"IF(E172=\"\",\"No Price\",IF(E172>'UK Rate Card - evaluated'!D171,\"Fail 1\",\"Pass\"))","v":"No Price"},{"$f":"IF(F172=\"\",\"No Price\",IF(F172>'UK Rate Card - evaluated'!D171,\"Fail 1\",\"Pass\"))","v":"No Price"}]
[null,null,"2. Junior DevOps engineer",null,null,null,null,null,"2. Junior DevOps engineer",{"$f":"IF(D173=\"\",\"No Price\",IF(D173>'UK Rate Card - evaluated'!D172,\"Fail 1\",\"Pass\"))","v":"No Price"},{"$f":"IF(E173=\"\",\"No Price\",IF(E173>'UK Rate Card - evaluated'!D172,\"Fail 1\",\"Pass\"))","v":"No Price"},{"$f":"IF(F173=\"\",\"No Price\",IF(F173>'UK Rate Card - evaluated'!D172,\"Fail 1\",\"Pass\"))","v":"No Price"}]
[null,null,"3. DevOps engineer",null,null,null,null,null,"3. DevOps engineer",{"$f":"IF(D174=\"\",\"No Price\",IF(D174>'UK Rate Card - evaluated'!D173,\"Fail 1\",\"Pass\"))","v":"No Price"},{"$f":"IF(E174=\"\",\"No Price\",IF(E174>'UK Rate Card - evaluated'!D173,\"Fail 1\",\"Pass\"))","v":"No Price"},{"$f":"IF(F174=\"\",\"No Price\",IF(F174>'UK Rate Card - evaluated'!D173,\"Fail 1\",\"Pass\"))","v":"No Price"}]
[null,null,"4. Senior DevOps engineer",null,null,null,null,null,"4. Senior DevOps engineer",{"$f":"IF(D175=\"\",\"No Price\",IF(D175>'UK Rate Card - evaluated'!D174,\"Fail 1\",\"Pass\"))","v":"No Price"},{"$f":"IF(E175=\"\",\"No Price\",IF(E175>'UK Rate Card - evaluated'!D174,\"Fail 1\",\"Pass\"))","v":"No Price"},{"$f":"IF(F175=\"\",\"No Price\",IF(F175>'UK Rate Card - evaluated'!D174,\"Fail 1\",\"Pass\"))","v":"No Price"}]
[null,null,"5. Senior DevOps engineer - management",null,null,null,null,null,"5. Senior DevOps engineer - management",{"$f":"IF(D176=\"\",\"No Price\",IF(D176>'UK Rate Card - evaluated'!D175,\"Fail 1\",\"Pass\"))","v":"No Price"},{"$f":"IF(E176=\"\",\"No Price\",IF(E176>'UK Rate Card - evaluated'!D175,\"Fail 1\",\"Pass\"))","v":"No Price"},{"$f":"IF(F176=\"\",\"No Price\",IF(F176>'UK Rate Card - evaluated'!D175,\"Fail 1\",\"Pass\"))","v":"No Price"}]
[null,null,"6. Lead DevOps engineer",null,null,null,null,null,"6. Lead DevOps engineer",{"$f":"IF(D177=\"\",\"No Price\",IF(D177>'UK Rate Card - evaluated'!D176,\"Fail 1\",\"Pass\"))","v":"No Price"},{"$f":"IF(E177=\"\",\"No Price\",IF(E177>'UK Rate Card - evaluated'!D176,\"Fail 1\",\"Pass\"))","v":"No Price"},{"$f":"IF(F177=\"\",\"No Price\",IF(F177>'UK Rate Card - evaluated'!D176,\"Fail 1\",\"Pass\"))","v":"No Price"}]
[null,null,"7. Lead DevOps engineer - management",null,null,null,null,null,"7. Lead DevOps engineer - management",{"$f":"IF(D178=\"\",\"No Price\",IF(D178>'UK Rate Card - evaluated'!D177,\"Fail 1\",\"Pass\"))","v":"No Price"},{"$f":"IF(E178=\"\",\"No Price\",IF(E178>'UK Rate Card - evaluated'!D177,\"Fail 1\",\"Pass\"))","v":"No Price"},{"$f":"IF(F178=\"\",\"No Price\",IF(F178>'UK Rate Card - evaluated'!D177,\"Fail 1\",\"Pass\"))","v":"No Price"}]
[null,null,"8. Principal DevOps engineer",null,null,null,null,null,"8. Principal DevOps engineer",{"$f":"IF(D179=\"\",\"No Price\",IF(D179>'UK Rate Card - evaluated'!D178,\"Fail 1\",\"Pass\"))","v":"No Price"},{"$f":"IF(E179=\"\",\"No Price\",IF(E179>'UK Rate Card - evaluated'!D178,\"Fail 1\",\"Pass\"))","v":"No Price"},{"$f":"IF(F179=\"\",\"No Price\",IF(F179>'UK Rate Card - evaluated'!D178,\"Fail 1\",\"Pass\"))","v":"No Price"}]
[null,null,"9. Principal DevOps engineer - management",null,null,null,null,null,"9. Principal DevOps engineer - management",{"$f":"IF(D180=\"\",\"No Price\",IF(D180>'UK Rate Card - evaluated'!D179,\"Fail 1\",\"Pass\"))","v":"No Price"},{"$f":"IF(E180=\"\",\"No Price\",IF(E180>'UK Rate Card - evaluated'!D179,\"Fail 1\",\"Pass\"))","v":"No Price"},{"$f":"IF(F180=\"\",\"No Price\",IF(F180>'UK Rate Card - evaluated'!D179,\"Fail 1\",\"Pass\"))","v":"No Price"}]
[]
[null,"Frontend developer","1. Apprentice frontend developer",null,null,null,null,"Frontend developer","1. Apprentice frontend developer",{"$f":"IF(D182=\"\",\"No Price\",IF(D182>'UK Rate Card - evaluated'!D181,\"Fail 1\",\"Pass\"))","v":"No Price"},{"$f":"IF(E182=\"\",\"No Price\",IF(E182>'UK Rate Card - evaluated'!D181,\"Fail 1\",\"Pass\"))","v":"No Price"},{"$f":"IF(F182=\"\",\"No Price\",IF(F182>'UK Rate Card - evaluated'!D181,\"Fail 1\",\"Pass\"))","v":"No Price"}]
[null,null,"2. Junior frontend developer",null,null,null,null,null,"2. Junior frontend developer",{"$f":"IF(D183=\"\",\"No Price\",IF(D183>'UK Rate Card - evaluated'!D182,\"Fail 1\",\"Pass\"))","v":"No Price"},{"$f":"IF(E183=\"\",\"No Price\",IF(E183>'UK Rate Card - evaluated'!D182,\"Fail 1\",\"Pass\"))","v":"No Price"},{"$f":"IF(F183=\"\",\"No Price\",IF(F183>'UK Rate Card - evaluated'!D182,\"Fail 1\",\"Pass\"))","v":"No Price"}]
[null,null,"3. Frontend developer",null,null,null,null,null,"3. Frontend developer",{"$f":"IF(D184=\"\",\"No Price\",IF(D184>'UK Rate Card - evaluated'!D183,\"Fail 1\",\"Pass\"))","v":"No Price"},{"$f":"IF(E184=\"\",\"No Price\",IF(E184>'UK Rate Card - evaluated'!D183,\"Fail 1\",\"Pass\"))","v":"No Price"},{"$f":"IF(F184=\"\",\"No Price\",IF(F184>'UK Rate Card - evaluated'!D183,\"Fail 1\",\"Pass\"))","v":"No Price"}]
[null,null,"4. Senior frontend developer",null,null,null,null,null,"4. Senior frontend developer",{"$f":"IF(D185=\"\",\"No Price\",IF(D185>'UK Rate Card - evaluated'!D184,\"Fail 1\",\"Pass\"))","v":"No Price"},{"$f":"IF(E185=\"\",\"No Price\",IF(E185>'UK Rate Card - evaluated'!D184,\"Fail 1\",\"Pass\"))","v":"No Price"},{"$f":"IF(F185=\"\",\"No Price\",IF(F185>'UK Rate Card - evaluated'!D184,\"Fail 1\",\"Pass\"))","v":"No Price"}]
[null,null,"5. Lead frontend developer",null,null,null,null,null,"5. Lead frontend developer",{"$f":"IF(D186=\"\",\"No Price\",IF(D186>'UK Rate Card - evaluated'!D185,\"Fail 1\",\"Pass\"))","v":"No Price"},{"$f":"IF(E186=\"\",\"No Price\",IF(E186>'UK Rate Card - evaluated'!D185,\"Fail 1\",\"Pass\"))","v":"No Price"},{"$f":"IF(F186=\"\",\"No Price\",IF(F186>'UK Rate Card - evaluated'!D185,\"Fail 1\",\"Pass\"))","v":"No Price"}]
[null,null,"6. Head of frontend development",null,null,null,null,null,"6. Head of frontend development",{"$f":"IF(D187=\"\",\"No Price\",IF(D187>'UK Rate Card - evaluated'!D186,\"Fail 1\",\"Pass\"))","v":"No Price"},{"$f":"IF(E187=\"\",\"No Price\",IF(E187>'UK Rate Card - evaluated'!D186,\"Fail 1\",\"Pass\"))","v":"No Price"},{"$f":"IF(F187=\"\",\"No Price\",IF(F187>'UK Rate Card - evaluated'!D186,\"Fail 1\",\"Pass\"))","v":"No Price"}]
[]
[null,"Software developer","1. Apprentice developer",null,null,null,null,"Software developer","1. Apprentice developer",{"$f":"IF(D189=\"\",\"No Price\",IF(D189>'UK Rate Card - evaluated'!D188,\"Fail 1\",\"Pass\"))","v":"No Price"},{"$f":"IF(E189=\"\",\"No Price\",IF(E189>'UK Rate Card - evaluated'!D188,\"Fail 1\",\"Pass\"))","v":"No Price"},{"$f":"IF(F189=\"\",\"No Price\",IF(F189>'UK Rate Card - evaluated'!D188,\"Fail 1\",\"Pass\"))","v":"No Price"}]
[null,null,"2. Junior developer",null,null,null,null,null,"2. Junior developer",{"$f":"IF(D190=\"\",\"No Price\",IF(D190>'UK Rate Card - evaluated'!D189,\"Fail 1\",\"Pass\"))","v":"No Price"},{"$f":"IF(E190=\"\",\"No Price\",IF(E190>'UK Rate Card - evaluated'!D189,\"Fail 1\",\"Pass\"))","v":"No Price"},{"$f":"IF(F190=\"\",\"No Price\",IF(F190>'UK Rate Card - evaluated'!D189,\"Fail 1\",\"Pass\"))","v":"No Price"}]
[null,null,"3. Developer",null,null,null,null,null,"3. Developer",{"$f":"IF(D191=\"\",\"No Price\",IF(D191>'UK Rate Card - evaluated'!D190,\"Fail 1\",\"Pass\"))","v":"No Price"},{"$f":"IF(E191=\"\",\"No Price\",IF(E191>'UK Rate Card - evaluated'!D190,\"Fail 1\",\"Pass\"))","v":"No Price"},{"$f":"IF(F191=\"\",\"No Price\",IF(F191>'UK Rate Card - evaluated'!D190,\"Fail 1\",\"Pass\"))","v":"No Price"}]
[null,null,"4. Senior developer",null,null,null,null,null,"4. Senior developer",{"$f":"IF(D192=\"\",\"No Price\",IF(D192>'UK Rate Card - evaluated'!D191,\"Fail 1\",\"Pass\"))","v":"No Price"},{"$f":"IF(E192=\"\",\"No Price\",IF(E192>'UK Rate Card - evaluated'!D191,\"Fail 1\",\"Pass\"))","v":"No Price"},{"$f":"IF(F192=\"\",\"No Price\",IF(F192>'UK Rate Card - evaluated'!D191,\"Fail 1\",\"Pass\"))","v":"No Price"}]
[null,null,"5. Senior developer - management",null,null,null,null,null,"5. Senior developer - management",{"$f":"IF(D193=\"\",\"No Price\",IF(D193>'UK Rate Card - evaluated'!D192,\"Fail 1\",\"Pass\"))","v":"No Price"},{"$f":"IF(E193=\"\",\"No Price\",IF(E193>'UK Rate Card - evaluated'!D192,\"Fail 1\",\"Pass\"))","v":"No Price"},{"$f":"IF(F193=\"\",\"No Price\",IF(F193>'UK Rate Card - evaluated'!D192,\"Fail 1\",\"Pass\"))","v":"No Price"}]
[null,null,"6. Lead developer",null,null,null,null,null,"6. Lead developer",{"$f":"IF(D194=\"\",\"No Price\",IF(D194>'UK Rate Card - evaluated'!D193,\"Fail 1\",\"Pass\"))","v":"No Price"},{"$f":"IF(E194=\"\",\"No Price\",IF(E194>'UK Rate Card - evaluated'!D193,\"Fail 1\",\"Pass\"))","v":"No Price"},{"$f":"IF(F194=\"\",\"No Price\",IF(F194>'UK Rate Card - evaluated'!D193,\"Fail 1\",\"Pass\"))","v":"No Price"}]
[null,null,"7. Lead developer - management",null,null,null,null,null,"7. Lead developer - management",{"$f":"IF(D195=\"\",\"No Price\",IF(D195>'UK Rate Card - evaluated'!D194,\"Fail 1\",\"Pass\"))","v":"No Price"},{"$f":"IF(E195=\"\",\"No Price\",IF(E195>'UK Rate Card - evaluated'!D194,\"Fail 1\",\"Pass\"))","v":"No Price"},{"$f":"IF(F195=\"\",\"No Price\",IF(F195>'UK Rate Card - evaluated'!D194,\"Fail 1\",\"Pass\"))","v":"No Price"}]
[null,null,"8. Principal developer",null,null,null,null,null,"8. Principal developer",{"$f":"IF(D196=\"\",\"No Price\",IF(D196>'UK Rate Card - evaluated'!D195,\"Fail 1\",\"Pass\"))","v":"No Price"},{"$f":"IF(E196=\"\",\"No Price\",IF(E196>'UK Rate Card - evaluated'!D195,\"Fail 1\",\"Pass\"))","v":"No Price"},{"$f":"IF(F196=\"\",\"No Price\",IF(F196>'UK Rate Card - evaluated'!D195,\"Fail 1\",\"Pass\"))","v":"No Price"}]
[null,null,"9. Principal developer - management",null,null,null,null,null,"9. Principal developer - management",{"$f":"IF(D197=\"\",\"No Price\",IF(D197>'UK Rate Card - evaluated'!D196,\"Fail 1\",\"Pass\"))","v":"No Price"},{"$f":"IF(E197=\"\",\"No Price\",IF(E197>'UK Rate Card - evaluated'!D196,\"Fail 1\",\"Pass\"))","v":"No Price"},{"$f":"IF(F197=\"\",\"No Price\",IF(F197>'UK Rate Card - evaluated'!D196,\"Fail 1\",\"Pass\"))","v":"No Price"}]
[]
[null,"User-centred design roles",null,"Offshore 1 ","Offshore 2","Offshore 3",null,"User-centred design roles",null,"Offshore","Offshore","Offshore"]
[null,"Accessibility specialist","1. Junior accessibility specialist",null,null,null,null,"Accessibility specialist","1. Junior accessibility specialist",{"$f":"IF(D200=\"\",\"No Price\",IF(D200>'UK Rate Card - evaluated'!D199,\"Fail 1\",\"Pass\"))","v":"No Price"},{"$f":"IF(E200=\"\",\"No Price\",IF(E200>'UK Rate Card - evaluated'!D199,\"Fail 1\",\"Pass\"))","v":"No Price"},{"$f":"IF(F200=\"\",\"No Price\",IF(F200>'UK Rate Card - evaluated'!D199,\"Fail 1\",\"Pass\"))","v":"No Price"}]
[null,null,"2. Accessibility specialist",null,null,null,null,null,"2. Accessibility specialist",{"$f":"IF(D201=\"\",\"No Price\",IF(D201>'UK Rate Card - evaluated'!D200,\"Fail 1\",\"Pass\"))","v":"No Price"},{"$f":"IF(E201=\"\",\"No Price\",IF(E201>'UK Rate Card - evaluated'!D200,\"Fail 1\",\"Pass\"))","v":"No Price"},{"$f":"IF(F201=\"\",\"No Price\",IF(F201>'UK Rate Card - evaluated'!D200,\"Fail 1\",\"Pass\"))","v":"No Price"}]
[null,null,"3. Senior accessibility specialist",null,null,null,null,null,"3. Senior accessibility specialist",{"$f":"IF(D202=\"\",\"No Price\",IF(D202>'UK Rate Card - evaluated'!D201,\"Fail 1\",\"Pass\"))","v":"No Price"},{"$f":"IF(E202=\"\",\"No Price\",IF(E202>'UK Rate Card - evaluated'!D201,\"Fail 1\",\"Pass\"))","v":"No Price"},{"$f":"IF(F202=\"\",\"No Price\",IF(F202>'UK Rate Card - evaluated'!D201,\"Fail 1\",\"Pass\"))","v":"No Price"}]
[null,null,"4. Head of accessibility",null,null,null,null,null,"4. Head of accessibility",{"$f":"IF(D203=\"\",\"No Price\",IF(D203>'UK Rate Card - evaluated'!D202,\"Fail 1\",\"Pass\"))","v":"No Price"},{"$f":"IF(E203=\"\",\"No Price\",IF(E203>'UK Rate Card - evaluated'!D202,\"Fail 1\",\"Pass\"))","v":"No Price"},{"$f":"IF(F203=\"\",\"No Price\",IF(F203>'UK Rate Card - evaluated'!D202,\"Fail 1\",\"Pass\"))","v":"No Price"}]
[]
[null,"Content designer","1. Associate content designer",null,null,null,null,"Content designer","1. Associate content designer",{"$f":"IF(D205=\"\",\"No Price\",IF(D205>'UK Rate Card - evaluated'!D204,\"Fail 1\",\"Pass\"))","v":"No Price"},{"$f":"IF(E205=\"\",\"No Price\",IF(E205>'UK Rate Card - evaluated'!D204,\"Fail 1\",\"Pass\"))","v":"No Price"},{"$f":"IF(F205=\"\",\"No Price\",IF(F205>'UK Rate Card - evaluated'!D204,\"Fail 1\",\"Pass\"))","v":"No Price"}]
[null,null,"2. Junior content designer",null,null,null,null,null,"2. Junior content designer",{"$f":"IF(D206=\"\",\"No Price\",IF(D206>'UK Rate Card - evaluated'!D205,\"Fail 1\",\"Pass\"))","v":"No Price"},{"$f":"IF(E206=\"\",\"No Price\",IF(E206>'UK Rate Card - evaluated'!D205,\"Fail 1\",\"Pass\"))","v":"No Price"},{"$f":"IF(F206=\"\",\"No Price\",IF(F206>'UK Rate Card - evaluated'!D205,\"Fail 1\",\"Pass\"))","v":"No Price"}]
[null,null,"3. Content designer",null,null,null,null,null,"3. Content designer",{"$f":"IF(D207=\"\",\"No Price\",IF(D207>'UK Rate Card - evaluated'!D206,\"Fail 1\",\"Pass\"))","v":"No Price"},{"$f":"IF(E207=\"\",\"No Price\",IF(E207>'UK Rate Card - evaluated'!D206,\"Fail 1\",\"Pass\"))","v":"No Price"},{"$f":"IF(F207=\"\",\"No Price\",IF(F207>'UK Rate Card - evaluated'!D206,\"Fail 1\",\"Pass\"))","v":"No Price"}]
[null,null,"4. Senior content designer",null,null,null,null,null,"4. Senior content designer",{"$f":"IF(D208=\"\",\"No Price\",IF(D208>'UK Rate Card - evaluated'!D207,\"Fail 1\",\"Pass\"))","v":"No Price"},{"$f":"IF(E208=\"\",\"No Price\",IF(E208>'UK Rate Card - evaluated'!D207,\"Fail 1\",\"Pass\"))","v":"No Price"},{"$f":"IF(F208=\"\",\"No Price\",IF(F208>'UK Rate Card - evaluated'!D207,\"Fail 1\",\"Pass\"))","v":"No Price"}]
[null,null,"5. Lead content designer",null,null,null,null,null,"5. Lead content designer",{"$f":"IF(D209=\"\",\"No Price\",IF(D209>'UK Rate Card - evaluated'!D208,\"Fail 1\",\"Pass\"))","v":"No Price"},{"$f":"IF(E209=\"\",\"No Price\",IF(E209>'UK Rate Card - evaluated'!D208,\"Fail 1\",\"Pass\"))","v":"No Price"},{"$f":"IF(F209=\"\",\"No Price\",IF(F209>'UK Rate Card - evaluated'!D208,\"Fail 1\",\"Pass\"))","v":"No Price"}]
[null,null,"6. Head of content design",null,null,null,null,null,"6. Head of content design",{"$f":"IF(D210=\"\",\"No Price\",IF(D210>'UK Rate Card - evaluated'!D209,\"Fail 1\",\"Pass\"))","v":"No Price"},{"$f":"IF(E210=\"\",\"No Price\",IF(E210>'UK Rate Card - evaluated'!D209,\"Fail 1\",\"Pass\"))","v":"No Price"},{"$f":"IF(F210=\"\",\"No Price\",IF(F210>'UK Rate Card - evaluated'!D209,\"Fail 1\",\"Pass\"))","v":"No Price"}]
[]
[null,"Content strategist","1. Content strategist",null,null,null,null,"Content strategist","1. Content strategist",{"$f":"IF(D212=\"\",\"No Price\",IF(D212>'UK Rate Card - evaluated'!D211,\"Fail 1\",\"Pass\"))","v":"No Price"},{"$f":"IF(E212=\"\",\"No Price\",IF(E212>'UK Rate Card - evaluated'!D211,\"Fail 1\",\"Pass\"))","v":"No Price"},{"$f":"IF(F212=\"\",\"No Price\",IF(F212>'UK Rate Card - evaluated'!D211,\"Fail 1\",\"Pass\"))","v":"No Price"}]
[]
[null,"Graphic designer","1. Associate graphic designer",null,null,null,null,"Graphic designer","1. Associate graphic designer",{"$f":"IF(D214=\"\",\"No Price\",IF(D214>'UK Rate Card - evaluated'!D213,\"Fail 1\",\"Pass\"))","v":"No Price"},{"$f":"IF(E214=\"\",\"No Price\",IF(E214>'UK Rate Card - evaluated'!D213,\"Fail 1\",\"Pass\"))","v":"No Price"},{"$f":"IF(F214=\"\",\"No Price\",IF(F214>'UK Rate Card - evaluated'!D213,\"Fail 1\",\"Pass\"))","v":"No Price"}]
[null,null,"2. Junior graphic designer",null,null,null,null,null,"2. Junior graphic designer",{"$f":"IF(D215=\"\",\"No Price\",IF(D215>'UK Rate Card - evaluated'!D214,\"Fail 1\",\"Pass\"))","v":"No Price"},{"$f":"IF(E215=\"\",\"No Price\",IF(E215>'UK Rate Card - evaluated'!D214,\"Fail 1\",\"Pass\"))","v":"No Price"},{"$f":"IF(F215=\"\",\"No Price\",IF(F215>'UK Rate Card - evaluated'!D214,\"Fail 1\",\"Pass\"))","v":"No Price"}]
[null,null,"3. Graphic designer",null,null,null,null,null,"3. Graphic designer",{"$f":"IF(D216=\"\",\"No Price\",IF(D216>'UK Rate Card - evaluated'!D215,\"Fail 1\",\"Pass\"))","v":"No Price"},{"$f":"IF(E216=\"\",\"No Price\",IF(E216>'UK Rate Card - evaluated'!D215,\"Fail 1\",\"Pass\"))","v":"No Price"},{"$f":"IF(F216=\"\",\"No Price\",IF(F216>'UK Rate Card - evaluated'!D215,\"Fail 1\",\"Pass\"))","v":"No Price"}]
[null,null,"4. Senior graphic designer",null,null,null,null,null,"4. Senior graphic designer",{"$f":"IF(D217=\"\",\"No Price\",IF(D217>'UK Rate Card - evaluated'!D216,\"Fail 1\",\"Pass\"))","v":"No Price"},{"$f":"IF(E217=\"\",\"No Price\",IF(E217>'UK Rate Card - evaluated'!D216,\"Fail 1\",\"Pass\"))","v":"No Price"},{"$f":"IF(F217=\"\",\"No Price\",IF(F217>'UK Rate Card - evaluated'!D216,\"Fail 1\",\"Pass\"))","v":"No Price"}]
[null,null,"5. Lead graphic designer",null,null,null,null,null,"5. Lead graphic designer",{"$f":"IF(D218=\"\",\"No Price\",IF(D218>'UK Rate Card - evaluated'!D217,\"Fail 1\",\"Pass\"))","v":"No Price"},{"$f":"IF(E218=\"\",\"No Price\",IF(E218>'UK Rate Card - evaluated'!D217,\"Fail 1\",\"Pass\"))","v":"No Price"},{"$f":"IF(F218=\"\",\"No Price\",IF(F218>'UK Rate Card - evaluated'!D217,\"Fail 1\",\"Pass\"))","v":"No Price"}]
[null,null,"6. Head of graphic design",null,null,null,null,null,"6. Head of graphic design",{"$f":"IF(D219=\"\",\"No Price\",IF(D219>'UK Rate Card - evaluated'!D218,\"Fail 1\",\"Pass\"))","v":"No Price"},{"$f":"IF(E219=\"\",\"No Price\",IF(E219>'UK Rate Card - evaluated'!D218,\"Fail 1\",\"Pass\"))","v":"No Price"},{"$f":"IF(F219=\"\",\"No Price\",IF(F219>'UK Rate Card - evaluated'!D218,\"Fail 1\",\"Pass\"))","v":"No Price"}]
[]
[null,"Interaction designer","1. Associate interaction designer",null,null,null,null,"Interaction designer","1. Associate interaction designer",{"$f":"IF(D221=\"\",\"No Price\",IF(D221>'UK Rate Card - evaluated'!D220,\"Fail 1\",\"Pass\"))","v":"No Price"},{"$f":"IF(E221=\"\",\"No Price\",IF(E221>'UK Rate Card - evaluated'!D220,\"Fail 1\",\"Pass\"))","v":"No Price"},{"$f":"IF(F221=\"\",\"No Price\",IF(F221>'UK Rate Card - evaluated'!D220,\"Fail 1\",\"Pass\"))","v":"No Price"}]
[null,null,"2. Junior interaction designer",null,null,null,null,null,"2. Junior interaction designer",{"$f":"IF(D222=\"\",\"No Price\",IF(D222>'UK Rate Card - evaluated'!D221,\"Fail 1\",\"Pass\"))","v":"No Price"},{"$f":"IF(E222=\"\",\"No Price\",IF(E222>'UK Rate Card - evaluated'!D221,\"Fail 1\",\"Pass\"))","v":"No Price"},{"$f":"IF(F222=\"\",\"No Price\",IF(F222>'UK Rate Card - evaluated'!D221,\"Fail 1\",\"Pass\"))","v":"No Price"}]
[null,null,"3. Interaction designer",null,null,null,null,null,"3. Interaction designer",{"$f":"IF(D223=\"\",\"No Price\",IF(D223>'UK Rate Card - evaluated'!D222,\"Fail 1\",\"Pass\"))","v":"No Price"},{"$f":"IF(E223=\"\",\"No Price\",IF(E223>'UK Rate Card - evaluated'!D222,\"Fail 1\",\"Pass\"))","v":"No Price"},{"$f":"IF(F223=\"\",\"No Price\",IF(F223>'UK Rate Card - evaluated'!D222,\"Fail 1\",\"Pass\"))","v":"No Price"}]
[null,null,"4. Senior interaction designer",null,null,null,null,null,"4. Senior interaction designer",{"$f":"IF(D224=\"\",\"No Price\",IF(D224>'UK Rate Card - evaluated'!D223,\"Fail 1\",\"Pass\"))","v":"No Price"},{"$f":"IF(E224=\"\",\"No Price\",IF(E224>'UK Rate Card - evaluated'!D223,\"Fail 1\",\"Pass\"))","v":"No Price"},{"$f":"IF(F224=\"\",\"No Price\",IF(F224>'UK Rate Card - evaluated'!D223,\"Fail 1\",\"Pass\"))","v":"No Price"}]
[null,null,"5. Lead interaction designer",null,null,null,null,null,"5. Lead interaction designer",{"$f":"IF(D225=\"\",\"No Price\",IF(D225>'UK Rate Card - evaluated'!D224,\"Fail 1\",\"Pass\"))","v":"No Price"},{"$f":"IF(E225=\"\",\"No Price\",IF(E225>'UK Rate Card - evaluated'!D224,\"Fail 1\",\"Pass\"))","v":"No Price"},{"$f":"IF(F225=\"\",\"No Price\",IF(F225>'UK Rate Card - evaluated'!D224,\"Fail 1\",\"Pass\"))","v":"No Price"}]
[null,null,"6. Head of interaction design",null,null,null,null,null,"6. Head of interaction design",{"$f":"IF(D226=\"\",\"No Price\",IF(D226>'UK Rate Card - evaluated'!D225,\"Fail 1\",\"Pass\"))","v":"No Price"},{"$f":"IF(E226=\"\",\"No Price\",IF(E226>'UK Rate Card - evaluated'!D225,\"Fail 1\",\"Pass\"))","v":"No Price"},{"$f":"IF(F226=\"\",\"No Price\",IF(F226>'UK Rate Card - evaluated'!D225,\"Fail 1\",\"Pass\"))","v":"No Price"}]
[]
[null,"Service designer","1. Associate service designer",null,null,null,null,"Service designer","1. Associate service designer",{"$f":"IF(D228=\"\",\"No Price\",IF(D228>'UK Rate Card - evaluated'!D227,\"Fail 1\",\"Pass\"))","v":"No Price"},{"$f":"IF(E228=\"\",\"No Price\",IF(E228>'UK Rate Card - evaluated'!D227,\"Fail 1\",\"Pass\"))","v":"No Price"},{"$f":"IF(F228=\"\",\"No Price\",IF(F228>'UK Rate Card - evaluated'!D227,\"Fail 1\",\"Pass\"))","v":"No Price"}]
[null,null,"2. Junior service designer",null,null,null,null,null,"2. Junior service designer",{"$f":"IF(D229=\"\",\"No Price\",IF(D229>'UK Rate Card - evaluated'!D228,\"Fail 1\",\"Pass\"))","v":"No Price"},{"$f":"IF(E229=\"\",\"No Price\",IF(E229>'UK Rate Card - evaluated'!D228,\"Fail 1\",\"Pass\"))","v":"No Price"},{"$f":"IF(F229=\"\",\"No Price\",IF(F229>'UK Rate Card - evaluated'!D228,\"Fail 1\",\"Pass\"))","v":"No Price"}]
[null,null,"3. Service designer",null,null,null,null,null,"3. Service designer",{"$f":"IF(D230=\"\",\"No Price\",IF(D230>'UK Rate Card - evaluated'!D229,\"Fail 1\",\"Pass\"))","v":"No Price"},{"$f":"IF(E230=\"\",\"No Price\",IF(E230>'UK Rate Card - evaluated'!D229,\"Fail 1\",\"Pass\"))","v":"No Price"},{"$f":"IF(F230=\"\",\"No Price\",IF(F230>'UK Rate Card - evaluated'!D229,\"Fail 1\",\"Pass\"))","v":"No Price"}]
[null,null,"4. Senior service designer",null,null,null,null,null,"4. Senior service designer",{"$f":"IF(D231=\"\",\"No Price\",IF(D231>'UK Rate Card - evaluated'!D230,\"Fail 1\",\"Pass\"))","v":"No Price"},{"$f":"IF(E231=\"\",\"No Price\",IF(E231>'UK Rate Card - evaluated'!D230,\"Fail 1\",\"Pass\"))","v":"No Price"},{"$f":"IF(F231=\"\",\"No Price\",IF(F231>'UK Rate Card - evaluated'!D230,\"Fail 1\",\"Pass\"))","v":"No Price"}]
[null,null,"5. Lead service designer",null,null,null,null,null,"5. Lead service designer",{"$f":"IF(D232=\"\",\"No Price\",IF(D232>'UK Rate Card - evaluated'!D231,\"Fail 1\",\"Pass\"))","v":"No Price"},{"$f":"IF(E232=\"\",\"No Price\",IF(E232>'UK Rate Card - evaluated'!D231,\"Fail 1\",\"Pass\"))","v":"No Price"},{"$f":"IF(F232=\"\",\"No Price\",IF(F232>'UK Rate Card - evaluated'!D231,\"Fail 1\",\"Pass\"))","v":"No Price"}]
[null,null,"6. Head of service design",null,null,null,null,null,"6. Head of service design",{"$f":"IF(D233=\"\",\"No Price\",IF(D233>'UK Rate Card - evaluated'!D232,\"Fail 1\",\"Pass\"))","v":"No Price"},{"$f":"IF(E233=\"\",\"No Price\",IF(E233>'UK Rate Card - evaluated'!D232,\"Fail 1\",\"Pass\"))","v":"No Price"},{"$f":"IF(F233=\"\",\"No Price\",IF(F233>'UK Rate Card - evaluated'!D232,\"Fail 1\",\"Pass\"))","v":"No Price"}]
[]
[null,"Technical writer","1. Technical writer",null,null,null,null,"Technical writer","1. Technical writer",{"$f":"IF(D235=\"\",\"No Price\",IF(D235>'UK Rate Card - evaluated'!D234,\"Fail 1\",\"Pass\"))","v":"No Price"},{"$f":"IF(E235=\"\",\"No Price\",IF(E235>'UK Rate Card - evaluated'!D234,\"Fail 1\",\"Pass\"))","v":"No Price"},{"$f":"IF(F235=\"\",\"No Price\",IF(F235>'UK Rate Card - evaluated'!D234,\"Fail 1\",\"Pass\"))","v":"No Price"}]
[null,null,"2. Lead technical writer",null,null,null,null,null,"2. Lead technical writer",{"$f":"IF(D236=\"\",\"No Price\",IF(D236>'UK Rate Card - evaluated'!D235,\"Fail 1\",\"Pass\"))","v":"No Price"},{"$f":"IF(E236=\"\",\"No Price\",IF(E236>'UK Rate Card - evaluated'!D235,\"Fail 1\",\"Pass\"))","v":"No Price"},{"$f":"IF(F236=\"\",\"No Price\",IF(F236>'UK Rate Card - evaluated'!D235,\"Fail 1\",\"Pass\"))","v":"No Price"}]
[]
[null,"User researcher","1. Associate user researcher",null,null,null,null,"User researcher","1. Associate user researcher",{"$f":"IF(D238=\"\",\"No Price\",IF(D238>'UK Rate Card - evaluated'!D237,\"Fail 1\",\"Pass\"))","v":"No Price"},{"$f":"IF(E238=\"\",\"No Price\",IF(E238>'UK Rate Card - evaluated'!D237,\"Fail 1\",\"Pass\"))","v":"No Price"},{"$f":"IF(F238=\"\",\"No Price\",IF(F238>'UK Rate Card - evaluated'!D237,\"Fail 1\",\"Pass\"))","v":"No Price"}]
[null,null,"2. Junior user researcher",null,null,null,null,null,"2. Junior user researcher",{"$f":"IF(D239=\"\",\"No Price\",IF(D239>'UK Rate Card - evaluated'!D238,\"Fail 1\",\"Pass\"))","v":"No Price"},{"$f":"IF(E239=\"\",\"No Price\",IF(E239>'UK Rate Card - evaluated'!D238,\"Fail 1\",\"Pass\"))","v":"No Price"},{"$f":"IF(F239=\"\",\"No Price\",IF(F239>'UK Rate Card - evaluated'!D238,\"Fail 1\",\"Pass\"))","v":"No Price"}]
[null,null,"3. User researcher",null,null,null,null,null,"3. User researcher",{"$f":"IF(D240=\"\",\"No Price\",IF(D240>'UK Rate Card - evaluated'!D239,\"Fail 1\",\"Pass\"))","v":"No Price"},{"$f":"IF(E240=\"\",\"No Price\",IF(E240>'UK Rate Card - evaluated'!D239,\"Fail 1\",\"Pass\"))","v":"No Price"},{"$f":"IF(F240=\"\",\"No Price\",IF(F240>'UK Rate Card - evaluated'!D239,\"Fail 1\",\"Pass\"))","v":"No Price"}]
[null,null,"4. Senior user researcher",null,null,null,null,null,"4. Senior user researcher",{"$f":"IF(D241=\"\",\"No Price\",IF(D241>'UK Rate Card - evaluated'!D240,\"Fail 1\",\"Pass\"))","v":"No Price"},{"$f":"IF(E241=\"\",\"No Price\",IF(E241>'UK Rate Card - evaluated'!D240,\"Fail 1\",\"Pass\"))","v":"No Price"},{"$f":"IF(F241=\"\",\"No Price\",IF(F241>'UK Rate Card - evaluated'!D240,\"Fail 1\",\"Pass\"))","v":"No Price"}]
[null,null,"5. Lead user researcher",null,null,null,null,null,"5. Lead user researcher",{"$f":"IF(D242=\"\",\"No Price\",IF(D242>'UK Rate Card - evaluated'!D241,\"Fail 1\",\"Pass\"))","v":"No Price"},{"$f":"IF(E242=\"\",\"No Price\",IF(E242>'UK Rate Card - evaluated'!D241,\"Fail 1\",\"Pass\"))","v":"No Price"},{"$f":"IF(F242=\"\",\"No Price\",IF(F242>'UK Rate Card - evaluated'!D241,\"Fail 1\",\"Pass\"))","v":"No Price"}]
[null,null,"6. Head of user research",null,null,null,null,null,"6. Head of user research",{"$f":"IF(D243=\"\",\"No Price\",IF(D243>'UK Rate Card - evaluated'!D242,\"Fail 1\",\"Pass\"))","v":"No Price"},{"$f":"IF(E243=\"\",\"No Price\",IF(E243>'UK Rate Card - evaluated'!D242,\"Fail 1\",\"Pass\"))","v":"No Price"},{"$f":"IF(F243=\"\",\"No Price\",IF(F243>'UK Rate Card - evaluated'!D242,\"Fail 1\",\"Pass\"))","v":"No Price"}]

{"sheet":"EVALUATED","index":5,"n_rows":5,"n_cols":3,"rows_kept":5,"cut":false,"hidden":false,"merged":[]}
[]
[null,"Table 9 - Total price - DO NOT AMEND"]
[]
[null,"Total price from tab 'UK Rate Card':",{"$f":"SUM('UK Rate Card - evaluated'!S244:T244)","v":0}]
[null,"Total for evaluation:",{"$f":"C4/200","v":0}]